date,department/service,beneficiary,amount,summary of purpose,category,transaction number,SAP vendor number
01.03.2018,ADULT SOCIAL CARE,ROYAL BOROUGH OF KENSINGTON & CHELSEA,"9,450.00",ICES CONTRACT,EQUIPMENT PURCHASE & REPAIR,5902292325,1000055350
01.03.2018,CENTRAL FUNCTIONS,HMCTS,-355,HOME OWNERSHIP,LEGAL FEES & COURT COSTS,5902292868,11259243
01.03.2018,CENTRAL FUNCTIONS,HMCTS,355,HOME OWNERSHIP,LEGAL FEES & COURT COSTS,5902254520,11259243
01.03.2018,CHIEF EXECUTIVE,AFRO-BRAZILIAN ARTS & CULTURAL EXCHANGE INSTITUTE,276,CAPITAL PS (REGEN),CONSTRUCTION FEES,5902292311,1000072302
01.03.2018,COMMUNITIES,POHWER,"1,720.00",NHS COMPLAINTS ADVOCACY,EXTERNAL AGENCIES AND BODIES,5902291627,1000070508
01.03.2018,COMMUNITIES,SOLACE WOMEN'S AID,"4,400.00",VIOLENCE AGAINST WOMEN & GIRLS,EXTERNAL AGENCIES AND BODIES,5902291554,1000057231
01.03.2018,COMMUNITIES,SOLACE WOMEN'S AID,"4,500.00",VIOLENCE AGAINST WOMEN & GIRLS,EXTERNAL AGENCIES AND BODIES,5902291549,1000057231
01.03.2018,CUSTOMER EXPERIENCE HGF,IMPERIAL COLLEGE LONDON,-276,CORONER'S,PROFESSIONAL FEES,5902292899,1000041205
01.03.2018,CUSTOMER EXPERIENCE HGF,IMPERIAL COLLEGE LONDON,-276,CORONER'S,PROFESSIONAL FEES,5902292900,1000041205
01.03.2018,CUSTOMER EXPERIENCE HGF,IMPERIAL COLLEGE LONDON,276,CORONER'S,PROFESSIONAL FEES,5902292825,1000041205
01.03.2018,CUSTOMER EXPERIENCE HGF,IMPERIAL COLLEGE LONDON,276,CORONER'S,PROFESSIONAL FEES,5902292829,1000041205
01.03.2018,DULWICH COMMUNITY COUNCIL,KINGSWOOD ESTATE T&RA,"5,000.00",KINGSWOOD FESTIVAL,GRANT,-,CHEQUE PAYMENT
01.03.2018,ENVIRONMENT DIRECTORATE,CHARLTON ENVIRONMENTAL LTD,"2,235.00",GROUNDS MAINTENANCE - GENERAL,MATERIALS,5902291651,1589286
01.03.2018,ENVIRONMENT DIRECTORATE,AMETHYST HORTICULTURE LTD,"3,796.45",GROUNDS MAINTENANCE - GENERAL,MATERIALS,5902291663,1000054623
01.03.2018,LEISURE DIRECTORATE,GROUNDWORK LONDON,"12,304.00",GRANTS COMMISSIONING,GRANTS,5902291563,1897585
01.03.2018,LEISURE DIRECTORATE,ASKEWS & HOLTS LIBRARY SERVICES LTD,"1,651.80",STOCK SERVICES,BOOKS & PUBLICATIONS,5902291387,1494168
01.03.2018,LEISURE DIRECTORATE,ASKEWS & HOLTS LIBRARY SERVICES LTD,"6,992.43",STOCK SERVICES,BOOKS & PUBLICATIONS,5902291393,1494168
01.03.2018,MODERNISATION HGF,INTERSERVE (FACILITIES MANAGEMENT),"27,133.55",FM SERVICES BY INTERSERVE,BUILDING R&M,5902291746,1000070792
02.03.2018,ADULT SOCIAL CARE,BUDDI LTD,826.8,LD LTS 18-64,EXTERNAL AGENCIES AND BODIES,2102788660,1000067243
02.03.2018,ADULT SOCIAL CARE,CONTACT PROFESSIONALS,465,LD LTS 18-64,HOMECARE - SPOT,2102788655,1000057263
02.03.2018,ADULT SOCIAL CARE,CARE MANAGEMENT GROUP,"1,188.00",LD LTS 18-64,SUPPORTED LIVING,2102788650,1000040475
02.03.2018,ADULT SOCIAL CARE,AURORA OPTIONS,"2,996.97",LD LTS 18-64,SUPPORTED LIVING,2102788661,1000066695
02.03.2018,ADULT SOCIAL CARE,REDACTED PERSONAL DATA,"3,682.28",LD LTS 18-64,SUPPORTED LIVING,REDACTED,REDACTED
02.03.2018,ADULT SOCIAL CARE,MIHOMECARE LTD,846.75,MEM LTS 65+,HOMECARE - C&V,2102788643,1000042594
02.03.2018,ADULT SOCIAL CARE,CARE DIRECT UK LTD,565.39,MEM LTS 65+,HOMECARE - SPOT,2102788564,1000066322
02.03.2018,ADULT SOCIAL CARE,MIHOMECARE LTD,953.12,MH LTS 65+,HOMECARE - C&V,2102788645,1000042594
02.03.2018,ADULT SOCIAL CARE,CARE DIRECT UK LTD,351.65,MH LTS 65+,HOMECARE - SPOT,2102788550,1000066322
02.03.2018,ADULT SOCIAL CARE,METRO HOMECARE LTD,386.12,MH LTS 65+,HOMECARE - SPOT,2102788517,1000070695
02.03.2018,ADULT SOCIAL CARE,CARE DIRECT UK LTD,641.24,PHY LTS 18-64,HOMECARE - C&V,2102788604,1000066322
02.03.2018,ADULT SOCIAL CARE,CARE DIRECT UK LTD,268.91,PHY LTS 18-64,HOMECARE - SPOT,2102788563,1000066322
02.03.2018,ADULT SOCIAL CARE,CARE DIRECT UK LTD,310.28,PHY LTS 18-64,HOMECARE - SPOT,2102788569,1000066322
02.03.2018,ADULT SOCIAL CARE,CARE DIRECT UK LTD,317.17,PHY LTS 18-64,HOMECARE - SPOT,2102788640,1000066322
02.03.2018,ADULT SOCIAL CARE,METRO HOMECARE LTD,268.91,PHY LTS 18-64,HOMECARE - SPOT,2102788494,1000070695
02.03.2018,ADULT SOCIAL CARE,METRO HOMECARE LTD,310.28,PHY LTS 18-64,HOMECARE - SPOT,2102788499,1000070695
02.03.2018,ADULT SOCIAL CARE,METRO HOMECARE LTD,337.86,PHY LTS 18-64,HOMECARE - SPOT,2102788525,1000070695
02.03.2018,ADULT SOCIAL CARE,METRO HOMECARE LTD,455.07,PHY LTS 18-64,HOMECARE - SPOT,2102788521,1000070695
02.03.2018,ADULT SOCIAL CARE,MIHOMECARE LTD,293.6,PHY LTS 65+,HOMECARE - C&V,2102788644,1000042594
02.03.2018,ADULT SOCIAL CARE,MIHOMECARE LTD,723.37,PHY LTS 65+,HOMECARE - C&V,2102788641,1000042594
02.03.2018,ADULT SOCIAL CARE,MIHOMECARE LTD,999.94,PHY LTS 65+,HOMECARE - C&V,2102788642,1000042594
02.03.2018,ADULT SOCIAL CARE,METRO HOMECARE LTD,358.54,PHY LTS 65+,HOMECARE - C&V,2102788518,1000070695
02.03.2018,ADULT SOCIAL CARE,METRO HOMECARE LTD,365.44,PHY LTS 65+,HOMECARE - C&V,2102788485,1000070695
02.03.2018,ADULT SOCIAL CARE,METRO HOMECARE LTD,"1,061.83",PHY LTS 65+,HOMECARE - C&V,2102788478,1000070695
02.03.2018,ADULT SOCIAL CARE,METRO HOMECARE LTD,"1,323.84",PHY LTS 65+,HOMECARE - C&V,2102788523,1000070695
02.03.2018,ADULT SOCIAL CARE,CARE DIRECT UK LTD,265.46,PHY LTS 65+,HOMECARE - SPOT,2102788555,1000066322
02.03.2018,ADULT SOCIAL CARE,CARE DIRECT UK LTD,265.46,PHY LTS 65+,HOMECARE - SPOT,2102788603,1000066322
02.03.2018,ADULT SOCIAL CARE,CARE DIRECT UK LTD,268.91,PHY LTS 65+,HOMECARE - SPOT,2102788618,1000066322
02.03.2018,ADULT SOCIAL CARE,CARE DIRECT UK LTD,289.59,PHY LTS 65+,HOMECARE - SPOT,2102788583,1000066322
02.03.2018,ADULT SOCIAL CARE,CARE DIRECT UK LTD,293.04,PHY LTS 65+,HOMECARE - SPOT,2102788616,1000066322
02.03.2018,ADULT SOCIAL CARE,CARE DIRECT UK LTD,313.72,PHY LTS 65+,HOMECARE - SPOT,2102788557,1000066322
02.03.2018,ADULT SOCIAL CARE,CARE DIRECT UK LTD,337.86,PHY LTS 65+,HOMECARE - SPOT,2102788620,1000066322
02.03.2018,ADULT SOCIAL CARE,CARE DIRECT UK LTD,399.91,PHY LTS 65+,HOMECARE - SPOT,2102788529,1000066322
02.03.2018,ADULT SOCIAL CARE,CARE DIRECT UK LTD,406.81,PHY LTS 65+,HOMECARE - SPOT,2102788548,1000066322
02.03.2018,ADULT SOCIAL CARE,CARE DIRECT UK LTD,434.39,PHY LTS 65+,HOMECARE - SPOT,2102788571,1000066322
02.03.2018,ADULT SOCIAL CARE,CARE DIRECT UK LTD,434.39,PHY LTS 65+,HOMECARE - SPOT,2102788638,1000066322
02.03.2018,ADULT SOCIAL CARE,CARE DIRECT UK LTD,475.76,PHY LTS 65+,HOMECARE - SPOT,2102788593,1000066322
02.03.2018,ADULT SOCIAL CARE,CARE DIRECT UK LTD,482.65,PHY LTS 65+,HOMECARE - SPOT,2102788528,1000066322
02.03.2018,ADULT SOCIAL CARE,CARE DIRECT UK LTD,482.65,PHY LTS 65+,HOMECARE - SPOT,2102788575,1000066322
02.03.2018,ADULT SOCIAL CARE,CARE DIRECT UK LTD,675.71,PHY LTS 65+,HOMECARE - SPOT,2102788530,1000066322
02.03.2018,ADULT SOCIAL CARE,CARE DIRECT UK LTD,703.29,PHY LTS 65+,HOMECARE - SPOT,2102788539,1000066322
02.03.2018,ADULT SOCIAL CARE,METRO HOMECARE LTD,337.86,PHY LTS 65+,HOMECARE - SPOT,2102788488,1000070695
02.03.2018,ADULT SOCIAL CARE,METRO HOMECARE LTD,337.86,PHY LTS 65+,HOMECARE - SPOT,2102788510,1000070695
02.03.2018,ADULT SOCIAL CARE,METRO HOMECARE LTD,344.75,PHY LTS 65+,HOMECARE - SPOT,2102788516,1000070695
02.03.2018,ADULT SOCIAL CARE,METRO HOMECARE LTD,406.81,PHY LTS 65+,HOMECARE - SPOT,2102788479,1000070695
02.03.2018,ADULT SOCIAL CARE,METRO HOMECARE LTD,468.86,PHY LTS 65+,HOMECARE - SPOT,2102788524,1000070695
02.03.2018,ADULT SOCIAL CARE,METRO HOMECARE LTD,489.55,PHY LTS 65+,HOMECARE - SPOT,2102788515,1000070695
02.03.2018,ADULT SOCIAL CARE,METRO HOMECARE LTD,489.55,PHY LTS 65+,HOMECARE - SPOT,2102788522,1000070695
02.03.2018,ADULT SOCIAL CARE,METRO HOMECARE LTD,551.6,PHY LTS 65+,HOMECARE - SPOT,2102788527,1000070695
02.03.2018,ADULT SOCIAL CARE,METRO HOMECARE LTD,558.5,PHY LTS 65+,HOMECARE - SPOT,2102788496,1000070695
02.03.2018,ADULT SOCIAL CARE,METRO HOMECARE LTD,868.77,PHY LTS 65+,HOMECARE - SPOT,2102788509,1000070695
02.03.2018,ADULT SOCIAL CARE,METRO HOMECARE LTD,923.93,PHY LTS 65+,HOMECARE - SPOT,2102788519,1000070695
02.03.2018,ADULT SOCIAL CARE,METRO HOMECARE LTD,965.3,PHY LTS 65+,HOMECARE - SPOT,2102788512,1000070695
02.03.2018,ADULT SOCIAL CARE,METRO HOMECARE LTD,"1,061.83",PHY LTS 65+,HOMECARE - SPOT,2102788483,1000070695
02.03.2018,ADULT SOCIAL CARE,METRO HOMECARE LTD,"1,158.36",PHY LTS 65+,HOMECARE - SPOT,2102788486,1000070695
02.03.2018,ADULT SOCIAL CARE,METRO HOMECARE LTD,"1,179.05",PHY LTS 65+,HOMECARE - SPOT,2102788495,1000070695
02.03.2018,ADULT SOCIAL CARE,METRO HOMECARE LTD,"1,572.06",PHY LTS 65+,HOMECARE - SPOT,2102788526,1000070695
02.03.2018,ADULT SOCIAL CARE,METRO HOMECARE LTD,"1,627.22",PHY LTS 65+,HOMECARE - SPOT,2102788497,1000070695
02.03.2018,ADULT SOCIAL CARE,ROMEDICAL LTD,372.27,SAFEGUARDING TEAM,OTHER CONTRACTORS,5902292858,1000076318
02.03.2018,ADULT SOCIAL CARE,ROMEDICAL LTD,396.48,SAFEGUARDING TEAM,OTHER CONTRACTORS,5902292871,1000076318
02.03.2018,ADULT SOCIAL CARE,ROMEDICAL LTD,558.55,SAFEGUARDING TEAM,OTHER CONTRACTORS,5902292863,1000076318
02.03.2018,ADULT SOCIAL CARE,ROMEDICAL LTD,578.81,SAFEGUARDING TEAM,OTHER CONTRACTORS,5902292880,1000076318
02.03.2018,ADULT SOCIAL CARE,PANCHSHEEL GLOBAL PVT LTD,"1,835.72",SAFEGUARDING TEAM,OTHER CONTRACTORS,5902292920,1000078003
02.03.2018,ADULT SOCIAL CARE,LUCAS CONSULT LTD,514.4,SAFEGUARDING TEAM,OTHER CONTRACTORS,5902292908,1000078082
02.03.2018,ADULT SOCIAL CARE,CARE DIRECT UK LTD,255.12,SEN LTS 65+,HOMECARE - SPOT,2102788541,1000066322
02.03.2018,ADULT SOCIAL CARE,CARE DIRECT UK LTD,268.91,SOCIAL ISOLATION,HOMECARE - SPOT,2102788626,1000066322
02.03.2018,ADULT SOCIAL CARE,METRO HOMECARE LTD,296.49,SOCIAL ISOLATION,HOMECARE - SPOT,2102788502,1000070695
02.03.2018,ADULT SOCIAL CARE,M C TECHNICIANS LTD,490,SOUTHWARK RESOURCE CENTRE,EQUIPMENT PURCHASE & REPAIR,5902292716,1000051293
02.03.2018,ADULT SOCIAL CARE,EASYLINK UK,896.75,SOUTHWARK RESOURCE CENTRE,EQUIPMENT PURCHASE & REPAIR,5902292726,1000066550
02.03.2018,ADULT SOCIAL CARE,CRANSTOUN,"1,928.57",SUB LTS 18-64,PLACEMENTS - REHAB,2102788653,11283784
02.03.2018,ADULT SOCIAL CARE,CRANSTOUN,"2,666.45",SUB LTS 18-64,PLACEMENTS - REHAB,2102788652,11283784
02.03.2018,ADULT SOCIAL CARE,CRANSTOUN,"2,666.45",SUB LTS 18-64,PLACEMENTS - REHAB,2102788654,11283784
02.03.2018,ADULT SOCIAL CARE,CRANSTOUN,"1,253.57",SUB LTS 18-64,RESIDENTIAL CARE,2102788651,11283784
02.03.2018,ASSET MANAGEMENT,FREEWAY LIFT SERVICES LTD,399.9,ADAPTATIONS,BUILDING R&M,5902292892,1363482
02.03.2018,CENTRAL FUNCTIONS,VPS (UK) LTD,"22,089.16",AYLESBURY,SECURITY SERVICES,5902292721,1000040614
02.03.2018,CENTRAL FUNCTIONS,CLEANOVATION,396.8,COMMERCIAL PROPERTIES,PREMISES CLEANING,5902292684,1000000539
02.03.2018,CENTRAL FUNCTIONS,BIFFA WASTE SERVICES LTD,813.15,COMMERCIAL PROPERTIES,REFUSE COLLECTION CONTRACT,5902292715,1147051
02.03.2018,CENTRAL FUNCTIONS,BIFFA WASTE SERVICES LTD,"1,150.11",COMMERCIAL PROPERTIES,REFUSE COLLECTION CONTRACT,5902292713,1147051
02.03.2018,CENTRAL FUNCTIONS,FLUID I.T. LTD,"1,241.88",TENANTS FUND,COMPUTER CONSUMABLES,5902292736,1000075702
02.03.2018,CENTRAL FUNCTIONS,FLUID I.T. LTD,"2,391.84",TENANTS FUND,COMPUTER CONSUMABLES,5902292736,1000075702
02.03.2018,CENTRAL FUNCTIONS,FLUID I.T. LTD,"4,010.04",TENANTS FUND,COMPUTER CONSUMABLES,5902292736,1000075702
02.03.2018,CHIEF EXECUTIVE,LONDON BOROUGH OF BROMLEY,"2,513.17",CAPITAL PS (REGEN),CONSTR'N SUB CONTRACT - NON CERTIFICATED,5902292915,1061538
02.03.2018,CHIEF EXECUTIVE,KENT COUNTY COUNCIL - LASER,"1,833.81",CAPITAL PS (REGEN),CONSTRUCTION MAIN CONTRACT -CERTIFICATED,5902292744,1000012926
02.03.2018,CHIEF EXECUTIVE'S OFFICE,SOUTH LONDON  MAUDSLEY NHS FOUNDATION TRUST,"26,653.88",CHIEF EXEC'S OFFICE,GRANTS,5902292904,1000018045
02.03.2018,CHILDREN AND ADULT,MACE LTD,"1,716.88",CAPITAL PS (EDUCATION),CONSTRUCTION FEES,5902292680,1000067959
02.03.2018,CHILDREN AND ADULT,MACE LTD,"1,716.89",CAPITAL PS (EDUCATION),CONSTRUCTION FEES,5902292680,1000067959
02.03.2018,CHILDREN AND ADULT,MACE LTD,"1,716.89",CAPITAL PS (EDUCATION),CONSTRUCTION FEES,5902292680,1000067959
02.03.2018,CHILDREN AND ADULT,MACE LTD,"1,716.89",CAPITAL PS (EDUCATION),CONSTRUCTION FEES,5902292680,1000067959
02.03.2018,CHILDREN AND ADULT,MACE LTD,"1,716.89",CAPITAL PS (EDUCATION),CONSTRUCTION FEES,5902292680,1000067959
02.03.2018,CHILDREN AND ADULT,MACE LTD,"1,716.89",CAPITAL PS (EDUCATION),CONSTRUCTION FEES,5902292680,1000067959
02.03.2018,CHILDREN AND ADULT,MACE LTD,"1,716.89",CAPITAL PS (EDUCATION),CONSTRUCTION FEES,5902292680,1000067959
02.03.2018,CHILDREN AND ADULT,MACE LTD,"1,716.89",CAPITAL PS (EDUCATION),CONSTRUCTION FEES,5902292680,1000067959
02.03.2018,CHILDREN AND ADULT,MACE LTD,"1,716.89",CAPITAL PS (EDUCATION),CONSTRUCTION FEES,5902292680,1000067959
02.03.2018,CHILDREN AND ADULT,MARSDEN FIRE SAFETY LTD,805,CAPITAL PS (SOC SERV),CONSTRUCTION MAIN CONTRACT -CERTIFICATED,5902292762,1000080684
02.03.2018,CHILDREN'S SERVICES,HEALTHCARE & TRANSPORT SERVICES,712,AGENCY FOSTERING,HIRED VEHICLES,5902292691,1000042743
02.03.2018,CHILDREN'S SERVICES,HEALTHCARE & TRANSPORT SERVICES,792,AGENCY FOSTERING,HIRED VEHICLES,5902292692,1000042743
02.03.2018,CHILDREN'S SERVICES,BRAKE BROS,286.93,AYLESBURY EARLY YEARS CENTRE,CATERING MATERIALS & SUPPLIES,5902292755,1001482
02.03.2018,CHILDREN'S SERVICES,BRAKE BROS,516.56,AYLESBURY EARLY YEARS CENTRE,CATERING MATERIALS & SUPPLIES,5902292757,1001482
02.03.2018,CHILDREN'S SERVICES,CATHERINE RUSHFORTH & ASSOCIATES,360,AYLESBURY EARLY YEARS CENTRE,TRAINING,5902292734,1000055976
02.03.2018,CHILDREN'S SERVICES,CASTLE WATER LTD,"2,352.78",AYLESBURY EARLY YEARS CENTRE,WATER,5902292730,1000078867
02.03.2018,CHILDREN'S SERVICES,EDF ENERGY PLC,730.34,EDUC&PARTICIPATION & TRAINING TEAM,ELECTRICITY,5902292750,1008746
02.03.2018,CHILDREN'S SERVICES,REDACTED PERSONAL DATA,-442.86,FRIENDS & FAMILY FOSTERING,PAYMENTS TO CARERS,REDACTED,REDACTED
02.03.2018,CHILDREN'S SERVICES,REDACTED PERSONAL DATA,442.86,FRIENDS & FAMILY FOSTERING,PAYMENTS TO CARERS,REDACTED,REDACTED
02.03.2018,CHILDREN'S SERVICES,HEALTHCARE & TRANSPORT SERVICES,"49,497.75",HOME 2 SCHOOL TRANSPORT,CAB FARES,5902292764,1000042743
02.03.2018,CHILDREN'S SERVICES,REDACTED PERSONAL DATA,375,HOME 2 SCHOOL TRANSPORT,OTHER PAYMENTS FOR CLIENTS,REDACTED,REDACTED
02.03.2018,CHILDREN'S SERVICES,FLEET TUTORS,"3,428.50",LAC EDUCATION,EXTERNAL AGENCIES AND BODIES,5902292717,1000044820
02.03.2018,CHILDREN'S SERVICES,FLEET TUTORS,"10,557.50",LAC EDUCATION,EXTERNAL AGENCIES AND BODIES,5902292717,1000044820
02.03.2018,CHILDREN'S SERVICES,ARC COMMUNITY TRUSTEES,562.5,NURSERY ED GRANT 2 Y Y O,GRANTS,2102788471,1000046206
02.03.2018,CHILDREN'S SERVICES,ARC COMMUNITY TRUSTEES,"4,218.75",NURSERY ED GRANT 2 Y Y O,GRANTS,2102788472,1000046206
02.03.2018,CHILDREN'S SERVICES,ARC COMMUNITY TRUSTEES,"2,868.30",NURSERY ED GRANT 3 Y Y.0.,GRANTS,2102788470,1000046206
02.03.2018,CHILDREN'S SERVICES,ARC COMMUNITY TRUSTEES,"8,032.50",NURSERY ED GRANT 3 Y Y.0.,GRANTS,2102788469,1000046206
02.03.2018,CHILDREN'S SERVICES,HEARTWOOD OUTREACH SERVICES LTD,"10,500.00",RESIDENTIAL,RESIDENTIAL CARE,5902292712,1000075021
02.03.2018,CHILDREN'S SERVICES,UNIVERSITY COLLEGE LONDON,"9,000.00",SCHOLARSHIPS AND WRL,EXTERNAL AGENCIES AND BODIES,5902292737,1000036232
02.03.2018,CHILDREN'S SERVICES,REDACTED PERSONAL DATA,707.14,SEMI INDEPENDENT,OTHER PAYMENTS FOR CLIENTS,REDACTED,REDACTED
02.03.2018,CHILDREN'S SERVICES,REDACTED PERSONAL DATA,500,STAYING PUT,OTHER PAYMENTS FOR CLIENTS,REDACTED,REDACTED
02.03.2018,CHILDREN'S SERVICES,REDACTED PERSONAL DATA,400,UNIVERSITY SUPPORT,OTHER PAYMENTS FOR CLIENTS,REDACTED,REDACTED
02.03.2018,COMMUNITIES,BROWNING EST MGMT ASSN,"2,112.25",BROWNING EMB,M&M ALLOWANCE CO-OPS,5902292676,1000059362
02.03.2018,COMMUNITIES,BROOK DRIVE SHELTERED HOUSING UNIT,650,COMMUNITY ENGAGEMENT,GRANTS,5902292911,1000075090
02.03.2018,COMMUNITIES,PARENT AND FAMILY CONSULTING LTD,500,PREVENT,PROFESSIONAL FEES,5902292923,1000079801
02.03.2018,COMMUNITIES,PARENT AND FAMILY CONSULTING LTD,625,PREVENT,PROFESSIONAL FEES,5902292923,1000079801
02.03.2018,COMMUNITIES,PARENT AND FAMILY CONSULTING LTD,625,PREVENT,PROFESSIONAL FEES,5902292923,1000079801
02.03.2018,COMMUNITIES,PARENT AND FAMILY CONSULTING LTD,650,PREVENT,PROFESSIONAL FEES,5902292923,1000079801
02.03.2018,COMMUNITIES,PARENT AND FAMILY CONSULTING LTD,"1,300.00",PREVENT,PROFESSIONAL FEES,5902292923,1000079801
02.03.2018,CUSTOMER EXPERIENCE HGF,ACCESS INDEPENDENT LTD,"1,244.25",BLUE BADGES,PROFESSIONAL FEES,5902292862,1000059141
02.03.2018,CUSTOMER EXPERIENCE HGF,HENRY TRUMPINGTON,300,COMPLAINTS,PROFESSIONAL FEES,5902292761,1000020175
02.03.2018,CUSTOMER EXPERIENCE HGF,CHARLOTTE BRAZIER,300,COMPLAINTS,PROFESSIONAL FEES,5902292760,1000063622
02.03.2018,CUSTOMER EXPERIENCE HGF,SG PATH LTD,415.8,CORONER'S,PROFESSIONAL FEES,5902292865,1000077883
02.03.2018,CUSTOMER EXPERIENCE HGF,SG PATH LTD,415.8,CORONER'S,PROFESSIONAL FEES,5902292870,1000077883
02.03.2018,CUSTOMER EXPERIENCE HGF,SG PATH LTD,415.8,CORONER'S,PROFESSIONAL FEES,5902292872,1000077883
02.03.2018,CUSTOMER EXPERIENCE HGF,SG PATH LTD,415.8,CORONER'S,PROFESSIONAL FEES,5902292874,1000077883
02.03.2018,CUSTOMER EXPERIENCE HGF,SG PATH LTD,415.8,CORONER'S,PROFESSIONAL FEES,5902292885,1000077883
02.03.2018,CUSTOMER EXPERIENCE HGF,SG PATH LTD,415.8,CORONER'S,PROFESSIONAL FEES,5902292887,1000077883
02.03.2018,CUSTOMER EXPERIENCE HGF,SG PATH LTD,415.8,CORONER'S,PROFESSIONAL FEES,5902292903,1000077883
02.03.2018,CUSTOMER EXPERIENCE HGF,SG PATH LTD,595.9,CORONER'S,PROFESSIONAL FEES,5902292896,1000077883
02.03.2018,CUSTOMER EXPERIENCE HGF,SG PATH LTD,595.9,CORONER'S,PROFESSIONAL FEES,5902292905,1000077883
02.03.2018,CUSTOMER EXPERIENCE HGF,CASTLE WATER LTD,301.41,CORONER'S,WATER,5902292664,1000078867
02.03.2018,CUSTOMER EXPERIENCE HGF,JAMAINE STENNETT,"1,000.00",PRIVATE SECTOR LEASING,EXTERNAL AGENCIES AND BODIES,2102788468,1000080765
02.03.2018,ENVIRONMENT AND LEISURE,PICK EVERARD,592.89,CAPITAL PS (LEISURE),CONSTRUCTION FEES  - EXTERNAL,5902292818,1000077395
02.03.2018,ENVIRONMENT AND LEISURE,TILHILL FORESTRY LTD,"73,148.76",CAPITAL PS (LEISURE),CONSTRUCTION FEES  - EXTERNAL,2102787356,3000001208
02.03.2018,ENVIRONMENT AND SOCIAL REGENERATION,TRAVIS PERKINS,402.19,STORES/LOGISTICS,BSU STORES AUTO POSTINGS,5902292883,1514319
02.03.2018,ENVIRONMENT AND SOCIAL REGENERATION,TRAVIS PERKINS,262.4,STORES/LOGISTICS,CREDITORS -GR/IR CLEARING ACCOUNT,5902292883,1514319
02.03.2018,ENVIRONMENT AND SOCIAL REGENERATION,TRAVIS PERKINS,264,STORES/LOGISTICS,CREDITORS -GR/IR CLEARING ACCOUNT,5902292883,1514319
02.03.2018,ENVIRONMENT AND SOCIAL REGENERATION,TRAVIS PERKINS,267.33,STORES/LOGISTICS,CREDITORS -GR/IR CLEARING ACCOUNT,5902292883,1514319
02.03.2018,ENVIRONMENT AND SOCIAL REGENERATION,TRAVIS PERKINS,276.3,STORES/LOGISTICS,CREDITORS -GR/IR CLEARING ACCOUNT,5902292883,1514319
02.03.2018,ENVIRONMENT AND SOCIAL REGENERATION,TRAVIS PERKINS,283.35,STORES/LOGISTICS,CREDITORS -GR/IR CLEARING ACCOUNT,5902292883,1514319
02.03.2018,ENVIRONMENT AND SOCIAL REGENERATION,TRAVIS PERKINS,283.5,STORES/LOGISTICS,CREDITORS -GR/IR CLEARING ACCOUNT,5902292883,1514319
02.03.2018,ENVIRONMENT AND SOCIAL REGENERATION,TRAVIS PERKINS,284.4,STORES/LOGISTICS,CREDITORS -GR/IR CLEARING ACCOUNT,5902292883,1514319
02.03.2018,ENVIRONMENT AND SOCIAL REGENERATION,TRAVIS PERKINS,302.3,STORES/LOGISTICS,CREDITORS -GR/IR CLEARING ACCOUNT,5902292883,1514319
02.03.2018,ENVIRONMENT AND SOCIAL REGENERATION,TRAVIS PERKINS,318,STORES/LOGISTICS,CREDITORS -GR/IR CLEARING ACCOUNT,5902292883,1514319
02.03.2018,ENVIRONMENT AND SOCIAL REGENERATION,TRAVIS PERKINS,330,STORES/LOGISTICS,CREDITORS -GR/IR CLEARING ACCOUNT,5902292883,1514319
02.03.2018,ENVIRONMENT AND SOCIAL REGENERATION,TRAVIS PERKINS,342,STORES/LOGISTICS,CREDITORS -GR/IR CLEARING ACCOUNT,5902292883,1514319
02.03.2018,ENVIRONMENT AND SOCIAL REGENERATION,TRAVIS PERKINS,343.9,STORES/LOGISTICS,CREDITORS -GR/IR CLEARING ACCOUNT,5902292883,1514319
02.03.2018,ENVIRONMENT AND SOCIAL REGENERATION,TRAVIS PERKINS,351.2,STORES/LOGISTICS,CREDITORS -GR/IR CLEARING ACCOUNT,5902292883,1514319
02.03.2018,ENVIRONMENT AND SOCIAL REGENERATION,TRAVIS PERKINS,353.4,STORES/LOGISTICS,CREDITORS -GR/IR CLEARING ACCOUNT,5902292883,1514319
02.03.2018,ENVIRONMENT AND SOCIAL REGENERATION,TRAVIS PERKINS,360,STORES/LOGISTICS,CREDITORS -GR/IR CLEARING ACCOUNT,5902292883,1514319
02.03.2018,ENVIRONMENT AND SOCIAL REGENERATION,TRAVIS PERKINS,360,STORES/LOGISTICS,CREDITORS -GR/IR CLEARING ACCOUNT,5902292883,1514319
02.03.2018,ENVIRONMENT AND SOCIAL REGENERATION,TRAVIS PERKINS,370,STORES/LOGISTICS,CREDITORS -GR/IR CLEARING ACCOUNT,5902292883,1514319
02.03.2018,ENVIRONMENT AND SOCIAL REGENERATION,TRAVIS PERKINS,370.2,STORES/LOGISTICS,CREDITORS -GR/IR CLEARING ACCOUNT,5902292883,1514319
02.03.2018,ENVIRONMENT AND SOCIAL REGENERATION,TRAVIS PERKINS,375,STORES/LOGISTICS,CREDITORS -GR/IR CLEARING ACCOUNT,5902292883,1514319
02.03.2018,ENVIRONMENT AND SOCIAL REGENERATION,TRAVIS PERKINS,400,STORES/LOGISTICS,CREDITORS -GR/IR CLEARING ACCOUNT,5902292883,1514319
02.03.2018,ENVIRONMENT AND SOCIAL REGENERATION,TRAVIS PERKINS,400,STORES/LOGISTICS,CREDITORS -GR/IR CLEARING ACCOUNT,5902292883,1514319
02.03.2018,ENVIRONMENT AND SOCIAL REGENERATION,TRAVIS PERKINS,411.6,STORES/LOGISTICS,CREDITORS -GR/IR CLEARING ACCOUNT,5902292883,1514319
02.03.2018,ENVIRONMENT AND SOCIAL REGENERATION,TRAVIS PERKINS,445.68,STORES/LOGISTICS,CREDITORS -GR/IR CLEARING ACCOUNT,5902292883,1514319
02.03.2018,ENVIRONMENT AND SOCIAL REGENERATION,TRAVIS PERKINS,461.2,STORES/LOGISTICS,CREDITORS -GR/IR CLEARING ACCOUNT,5902292883,1514319
02.03.2018,ENVIRONMENT AND SOCIAL REGENERATION,TRAVIS PERKINS,468.72,STORES/LOGISTICS,CREDITORS -GR/IR CLEARING ACCOUNT,5902292883,1514319
02.03.2018,ENVIRONMENT AND SOCIAL REGENERATION,TRAVIS PERKINS,476.5,STORES/LOGISTICS,CREDITORS -GR/IR CLEARING ACCOUNT,5902292883,1514319
02.03.2018,ENVIRONMENT AND SOCIAL REGENERATION,TRAVIS PERKINS,492,STORES/LOGISTICS,CREDITORS -GR/IR CLEARING ACCOUNT,5902292883,1514319
02.03.2018,ENVIRONMENT AND SOCIAL REGENERATION,TRAVIS PERKINS,500,STORES/LOGISTICS,CREDITORS -GR/IR CLEARING ACCOUNT,5902292883,1514319
02.03.2018,ENVIRONMENT AND SOCIAL REGENERATION,TRAVIS PERKINS,516.2,STORES/LOGISTICS,CREDITORS -GR/IR CLEARING ACCOUNT,5902292883,1514319
02.03.2018,ENVIRONMENT AND SOCIAL REGENERATION,TRAVIS PERKINS,600.4,STORES/LOGISTICS,CREDITORS -GR/IR CLEARING ACCOUNT,5902292883,1514319
02.03.2018,ENVIRONMENT AND SOCIAL REGENERATION,TRAVIS PERKINS,627,STORES/LOGISTICS,CREDITORS -GR/IR CLEARING ACCOUNT,5902292883,1514319
02.03.2018,ENVIRONMENT AND SOCIAL REGENERATION,TRAVIS PERKINS,629,STORES/LOGISTICS,CREDITORS -GR/IR CLEARING ACCOUNT,5902292883,1514319
02.03.2018,ENVIRONMENT AND SOCIAL REGENERATION,TRAVIS PERKINS,684.5,STORES/LOGISTICS,CREDITORS -GR/IR CLEARING ACCOUNT,5902292883,1514319
02.03.2018,ENVIRONMENT AND SOCIAL REGENERATION,TRAVIS PERKINS,713.3,STORES/LOGISTICS,CREDITORS -GR/IR CLEARING ACCOUNT,5902292883,1514319
02.03.2018,ENVIRONMENT AND SOCIAL REGENERATION,TRAVIS PERKINS,755.2,STORES/LOGISTICS,CREDITORS -GR/IR CLEARING ACCOUNT,5902292883,1514319
02.03.2018,ENVIRONMENT AND SOCIAL REGENERATION,TRAVIS PERKINS,761.52,STORES/LOGISTICS,CREDITORS -GR/IR CLEARING ACCOUNT,5902292883,1514319
02.03.2018,ENVIRONMENT AND SOCIAL REGENERATION,TRAVIS PERKINS,777.53,STORES/LOGISTICS,CREDITORS -GR/IR CLEARING ACCOUNT,5902292883,1514319
02.03.2018,ENVIRONMENT AND SOCIAL REGENERATION,TRAVIS PERKINS,826,STORES/LOGISTICS,CREDITORS -GR/IR CLEARING ACCOUNT,5902292883,1514319
02.03.2018,ENVIRONMENT AND SOCIAL REGENERATION,TRAVIS PERKINS,900,STORES/LOGISTICS,CREDITORS -GR/IR CLEARING ACCOUNT,5902292883,1514319
02.03.2018,ENVIRONMENT AND SOCIAL REGENERATION,TRAVIS PERKINS,921,STORES/LOGISTICS,CREDITORS -GR/IR CLEARING ACCOUNT,5902292883,1514319
02.03.2018,ENVIRONMENT AND SOCIAL REGENERATION,TRAVIS PERKINS,971.5,STORES/LOGISTICS,CREDITORS -GR/IR CLEARING ACCOUNT,5902292883,1514319
02.03.2018,ENVIRONMENT AND SOCIAL REGENERATION,TRAVIS PERKINS,"1,099.40",STORES/LOGISTICS,CREDITORS -GR/IR CLEARING ACCOUNT,5902292883,1514319
02.03.2018,ENVIRONMENT AND SOCIAL REGENERATION,TRAVIS PERKINS,"1,200.00",STORES/LOGISTICS,CREDITORS -GR/IR CLEARING ACCOUNT,5902292883,1514319
02.03.2018,ENVIRONMENT AND SOCIAL REGENERATION,TRAVIS PERKINS,"1,267.60",STORES/LOGISTICS,CREDITORS -GR/IR CLEARING ACCOUNT,5902292883,1514319
02.03.2018,ENVIRONMENT AND SOCIAL REGENERATION,TRAVIS PERKINS,"1,676.80",STORES/LOGISTICS,CREDITORS -GR/IR CLEARING ACCOUNT,5902292883,1514319
02.03.2018,ENVIRONMENT AND SOCIAL REGENERATION,TRAVIS PERKINS,"1,676.80",STORES/LOGISTICS,CREDITORS -GR/IR CLEARING ACCOUNT,5902292883,1514319
02.03.2018,ENVIRONMENT AND SOCIAL REGENERATION,TRAVIS PERKINS,"1,676.80",STORES/LOGISTICS,CREDITORS -GR/IR CLEARING ACCOUNT,5902292883,1514319
02.03.2018,ENVIRONMENT AND SOCIAL REGENERATION,TRAVIS PERKINS,"1,886.40",STORES/LOGISTICS,CREDITORS -GR/IR CLEARING ACCOUNT,5902292883,1514319
02.03.2018,ENVIRONMENT DIRECTORATE,UK POWER NETWORKS (OPERATIONS) LTD,482,COLUMNS - MINOR ROADS,SOUTHWARK DIRECT CHARGES,5902292850,1000016085
02.03.2018,ENVIRONMENT DIRECTORATE,UK POWER NETWORKS (OPERATIONS) LTD,482,COLUMNS - MINOR ROADS,SOUTHWARK DIRECT CHARGES,5902292852,1000016085
02.03.2018,ENVIRONMENT DIRECTORATE,UK POWER NETWORKS (OPERATIONS) LTD,482,COLUMNS - MINOR ROADS,SOUTHWARK DIRECT CHARGES,5902292853,1000016085
02.03.2018,ENVIRONMENT DIRECTORATE,UK POWER NETWORKS (OPERATIONS) LTD,482,COLUMNS - MINOR ROADS,SOUTHWARK DIRECT CHARGES,5902292857,1000016085
02.03.2018,ENVIRONMENT DIRECTORATE,UK POWER NETWORKS (OPERATIONS) LTD,482,COLUMNS - MINOR ROADS,SOUTHWARK DIRECT CHARGES,5902292861,1000016085
02.03.2018,ENVIRONMENT DIRECTORATE,UK POWER NETWORKS (OPERATIONS) LTD,482,COLUMNS - MINOR ROADS,SOUTHWARK DIRECT CHARGES,5902292864,1000016085
02.03.2018,ENVIRONMENT DIRECTORATE,UK POWER NETWORKS (OPERATIONS) LTD,482,COLUMNS - MINOR ROADS,SOUTHWARK DIRECT CHARGES,5902292866,1000016085
02.03.2018,ENVIRONMENT DIRECTORATE,UK POWER NETWORKS (OPERATIONS) LTD,"1,704.00",COLUMNS - MINOR ROADS,SOUTHWARK DIRECT CHARGES,5902292867,1000016085
02.03.2018,ENVIRONMENT DIRECTORATE,CIVICA UK LTD,"8,314.02",FLEET SERVICES MANAGEMENT,COMPUTER MAINTENANCE,5902292722,1730625
02.03.2018,ENVIRONMENT DIRECTORATE,CABLE TEST LTD,275.32,LIGHTING RECOVERABLE WORKS,SOUTHWARK DIRECT CHARGES,5902292838,1000079183
02.03.2018,ENVIRONMENT DIRECTORATE,CABLE TEST LTD,593.84,LIGHTING RECOVERABLE WORKS,SOUTHWARK DIRECT CHARGES,5902292840,1000079183
02.03.2018,ENVIRONMENT DIRECTORATE,CABLE TEST LTD,768.84,LIGHTING RECOVERABLE WORKS,SOUTHWARK DIRECT CHARGES,5902292834,1000079183
02.03.2018,ENVIRONMENT DIRECTORATE,CABLE TEST LTD,768.84,LIGHTING RECOVERABLE WORKS,SOUTHWARK DIRECT CHARGES,5902292841,1000079183
02.03.2018,ENVIRONMENT DIRECTORATE,CABLE TEST LTD,"1,353.32",LIGHTING RECOVERABLE WORKS,SOUTHWARK DIRECT CHARGES,5902292839,1000079183
02.03.2018,ENVIRONMENT DIRECTORATE,CABLE TEST LTD,"2,978.97",LIGHTING RECOVERABLE WORKS,SOUTHWARK DIRECT CHARGES,5902292843,1000079183
02.03.2018,ENVIRONMENT DIRECTORATE,CABLE TEST LTD,"3,198.43",LIGHTING RECOVERABLE WORKS,SOUTHWARK DIRECT CHARGES,5902292837,1000079183
02.03.2018,ENVIRONMENT DIRECTORATE,BELL BRUSH COMPANY,"1,497.30",MANAGEMENT TEAM,MATERIALS,5902291665,1259776
02.03.2018,ENVIRONMENT DIRECTORATE,CONTEGO SAFETY SOLUTIONS LTD,"2,496.50",MANAGEMENT TEAM,MATERIALS,5902292735,1000077673
02.03.2018,ENVIRONMENT DIRECTORATE,LONDON FORGE ENGINEERING LTD,"5,150.00",MANDELA WAY CAR PARK,OTHER R&M,5902292701,1000075006
02.03.2018,ENVIRONMENT DIRECTORATE,CIRRUS RESEARCH PLC,"5,414.00",NOISE& AIR QUALITY,EQUIPMENT PURCHASE & REPAIR,5902292021,1000077731
02.03.2018,ENVIRONMENT DIRECTORATE,KEYSOFT SOLUTIONS LTD,"6,580.00",PROJECT SUPPORT,SOFTWARE,5902292756,1000025779
02.03.2018,ENVIRONMENT DIRECTORATE,GLASDON UK LIMITED,"6,777.62",STREET CLEANING-GENERAL,MATERIALS,5902292511,1024073
02.03.2018,ENVIRONMENT DIRECTORATE,SOUTHWARK NEWSPAPER LTD,384,TRANSPORT PROJECTS,MARKETING & PUBLICITY SERVICES,5902292894,1556957
02.03.2018,ENVIRONMENT DIRECTORATE,SOUTHWARK NEWSPAPER LTD,480,TRANSPORT PROJECTS,MARKETING & PUBLICITY SERVICES,5902292803,1556957
02.03.2018,ENVIRONMENT DIRECTORATE,SOUTHWARK NEWSPAPER LTD,576,TRANSPORT PROJECTS,MARKETING & PUBLICITY SERVICES,5902292884,1556957
02.03.2018,ENVIRONMENT DIRECTORATE,SOUTHWARK NEWSPAPER LTD,648,TRANSPORT PROJECTS,MARKETING & PUBLICITY SERVICES,5902292807,1556957
02.03.2018,ENVIRONMENT DIRECTORATE,SOUTHWARK NEWSPAPER LTD,720,TRANSPORT PROJECTS,MARKETING & PUBLICITY SERVICES,5902292804,1556957
02.03.2018,ENVIRONMENT DIRECTORATE,SOUTHWARK NEWSPAPER LTD,936,TRANSPORT PROJECTS,MARKETING & PUBLICITY SERVICES,5902292888,1556957
02.03.2018,F & C S EXCLUDING CORPORATE BUDGETS,IRRV,"1,925.00",ADMINISTRATIVE SUPPORT,SOFTWARE,5902292242,1153371
02.03.2018,F & C S EXCLUDING CORPORATE BUDGETS,GRANT THORNTON UK LLP,"5,000.00",EXTERNAL AUDIT GRANT FEES,PROFESSIONAL FEES,5902292771,1000058344
02.03.2018,F & C S EXCLUDING CORPORATE BUDGETS,LEXISNEXIS UK,"6,000.00",LEGAL SVCES MANAGEMENT,SOFTWARE,5902292683,11328752
02.03.2018,F & C S EXCLUDING CORPORATE BUDGETS,LEXISNEXIS UK,"2,506.54",LEGAL SVCES MANAGEMENT,SUBSCRIPTIONS,5902292690,11328752
02.03.2018,F & C S EXCLUDING CORPORATE BUDGETS,LEXISNEXIS UK,"30,407.46",LEGAL SVCES MANAGEMENT,SUBSCRIPTIONS,5902292690,11328752
02.03.2018,F & C S EXCLUDING CORPORATE BUDGETS,LONDON BRIDGE BUSINESS IMPROVEMENT,"44,177.94",TEAM LONDON BRIDGE,EXTERNAL AGENCIES AND BODIES,5902292929,1000050879
02.03.2018,HOUSING HRA,HUTCHINSON THOMAS SOLICITORS,"30,000.00",CAPITAL PS (HRA),CAPITAL GRANTS,2102788665,1000080703
02.03.2018,HOUSING HRA,M C TECHNICIANS LTD,"2,276.00",CAPITAL PS (HRA),CONST'N MAIN CONTRACT - NON CERTIFICATED,2102788467,3000001164
02.03.2018,HOUSING HRA,CALFORD SEADEN LLP,"2,775.44",CAPITAL PS (HRA),CONSTRUCTION FEES  - EXTERNAL,5902292759,1061592
02.03.2018,HOUSING STRATEGY AND OPTIONS,NOWMEDICAL LTD,"3,034.00",HOMELESS & HOUSING OPTIONS MGT,PROFESSIONAL FEES,5902292682,1000068185
02.03.2018,HOUSING STRATEGY AND OPTIONS,NOWMEDICAL LTD,"3,799.00",HOMELESS & HOUSING OPTIONS MGT,PROFESSIONAL FEES,5902292681,1000068185
02.03.2018,LEISURE DIRECTORATE,MCDERMOTT FIRST AID TRAINING,550,BMX BIKE TRACK,OTHER R&M,5902292743,1000080650
02.03.2018,LEISURE DIRECTORATE,CASTLE WATER LTD,"2,125.63",DAMILOLA TAYLOR CENTRE,WATER,5902292773,1000078867
02.03.2018,LEISURE DIRECTORATE,THE INDEPENDENT ACADEMIC RESEARCH STUDIES INTERNATIONAL INSTITUTE,"6,575.17",GRANTS COMMISSIONING,GRANTS,5902292798,1000075673
02.03.2018,LEISURE DIRECTORATE,G4S CASH SERVICES (UK) LTD,387.5,LIBARIES DEVELOPMENT,SECURITY SERVICES,5902292802,1420519
02.03.2018,LEISURE DIRECTORATE,KENT COUNTY COUNCIL - LASER,691.96,MINT STREET,GAS,5902292695,1000012926
02.03.2018,LEISURE DIRECTORATE,KENT COUNTY COUNCIL - LASER,900.69,MINT STREET,GAS,5902292703,1000012926
02.03.2018,LEISURE DIRECTORATE,KENT COUNTY COUNCIL - LASER,"2,696.60",PECKHAM LIBRARY,ELECTRICITY,5902292916,1000012926
02.03.2018,LEISURE DIRECTORATE,CASTLE WATER LTD,978.1,SDM BUDGET,WATER,5902292318,1000078867
02.03.2018,MODERNISATION HGF,SYED & QUINN LTD,"1,000.00",ADULTS MULTI-AGENCY SAFEGUARDING TRNG,TRAINING,5902291713,1000029554
02.03.2018,MODERNISATION HGF,SHARPE PRITCHARD LLP,"3,160.00",IT MANAGEMENT,CONSULTANTS SERVICES,5902292693,1790085
02.03.2018,MODERNISATION HGF,SHARPE PRITCHARD LLP,"5,036.00",IT MANAGEMENT,CONSULTANTS SERVICES,5902292693,1790085
02.03.2018,MODERNISATION HGF,DOUG FEERY,"3,248.20",ORG TRANSFORMATION,TRAINING,5902292801,1000080512
02.03.2018,MODERNISATION HGF,GOLDSMITHS COLLEGE,"46,668.00",STEP UP,GRANTS,5902292769,1034461
02.03.2018,PROPERTY SERVICES,CHUBB FIRE LIMITED,301.95,KENNINGTON WORKSHOPS,BUILDING R&M,5902292772,1000006333
02.03.2018,PROPERTY SERVICES,KENT COUNTY COUNCIL - LASER,"2,030.55",KENNINGTON WORKSHOPS,ELECTRICITY,5902292747,1000012926
02.03.2018,PROPERTY SERVICES,AXIS SECURITY SERVICES LTD,365,KENNINGTON WORKSHOPS,SECURITY SERVICES,5902292745,1000035320
02.03.2018,PUBLIC HEALTH,MEDIA CITIZENS LTD,"1,666.66",PH SPECIALIST TEAMS,OTHER EXTERNAL BODIES GRANTS & CONTRIBUTIONS,5902292816,1000052669
02.03.2018,REGENERATION,OPEN COMMUNITIES LTD,"1,782.50",OKR MASTER PLANNING,PROFESSIONAL FEES,5902292749,1000065800
02.03.2018,REGENERATION,SHARPE PRITCHARD LLP,"1,022.00",QUEENS ROAD BLOCK F FEASIBILTY,PROFESSIONAL FEES,5902292842,1790085
02.03.2018,RESIDENT SERVICES,CHARTWELLS,"4,431.22",SUPPORTED HOSTELS,CATERING MATERIALS & SUPPLIES,5902292881,1000010625
02.03.2018,RESIDENT SERVICES,KENT COUNTY COUNCIL - LASER,575.8,SUPPORTED HOSTELS,GAS,5902292906,1000012926
02.03.2018,RESIDENT SERVICES,KENT COUNTY COUNCIL - LASER,618.66,SUPPORTED HOSTELS,GAS,5902292919,1000012926
02.03.2018,RESIDENT SERVICES,KENT COUNTY COUNCIL - LASER,"1,005.61",SUPPORTED HOSTELS,GAS,5902292859,1000012926
02.03.2018,RESIDENT SERVICES,KENT COUNTY COUNCIL - LASER,"3,779.80",SUPPORTED HOSTELS,GAS,5902292914,1000012926
02.03.2018,RESIDENT SERVICES,KONE PLC,"1,368.45",TA HOSTELS,BUILDING R&M,5902292687,1000028876
02.03.2018,RESIDENT SERVICES,KENT COUNTY COUNCIL - LASER,997.39,TA HOSTELS,ELECTRICITY,5902292697,1000012926
02.03.2018,RESIDENT SERVICES,KENT COUNTY COUNCIL - LASER,"1,038.88",TA HOSTELS,ELECTRICITY,5902292698,1000012926
02.03.2018,RESIDENT SERVICES,KENT COUNTY COUNCIL - LASER,"1,151.22",TA HOSTELS,ELECTRICITY,5902292694,1000012926
02.03.2018,RESIDENT SERVICES,KENT COUNTY COUNCIL - LASER,"1,399.81",TA HOSTELS,ELECTRICITY,5902292702,1000012926
02.03.2018,RESIDENT SERVICES,KENT COUNTY COUNCIL - LASER,"1,692.22",TA HOSTELS,ELECTRICITY,5902292696,1000012926
02.03.2018,RESIDENT SERVICES,KENT COUNTY COUNCIL - LASER,"1,921.73",TA HOSTELS,ELECTRICITY,5902292705,1000012926
02.03.2018,RESIDENT SERVICES,KENT COUNTY COUNCIL - LASER,"1,925.08",TA HOSTELS,ELECTRICITY,5902292704,1000012926
02.03.2018,RESIDENT SERVICES,THAMES WATER UTILITIES LTD,652.95,WALWORTH EAST,WATER,5902292729,1630755
02.03.2018,SOUTHWARK BUILDING SERVICES,TRAVIS PERKINS,"-4,297.78",STORES/LOGISTICS,MATERIALS,5902292886,1514319
02.03.2018,SOUTHWARK BUILDING SERVICES,TRAVIS PERKINS,"4,540.00",STORES/LOGISTICS,MATERIALS,5902292883,1514319
02.03.2018,SUSTAINABLE SERVICES,VEOLIA ES SOUTHWARK LTD,"5,685.97",CARBON REDUCTION MANAGEMENT,COSTS RECOVERED,5902292738,1000056979
03.03.2018,CHIEF EXECUTIVE,LDA DESIGN CONSULTING LTD,"21,003.84",CAPITAL PS (REGEN),CONSTRUCTION FEES - ARCHITECT,5902291973,1000031830
03.03.2018,CHILDREN'S SERVICES,ANDREW BAILEY (IRO NETWORK),822.3,CLA TEAM SAFEGUARDING,PROFESSIONAL FEES,5902292333,1000059475
03.03.2018,CHILDREN'S SERVICES,REDACTED PERSONAL DATA,314.6,HOME 2 SCHOOL TRANSPORT,CAR MILEAGE EXPENSES,REDACTED,REDACTED
03.03.2018,CHILDREN'S SERVICES,REDACTED PERSONAL DATA,314.6,HOME 2 SCHOOL TRANSPORT,CAR MILEAGE EXPENSES,REDACTED,REDACTED
03.03.2018,CHILDREN'S SERVICES,REDACTED PERSONAL DATA,"3,290.00",HOME 2 SCHOOL TRANSPORT,OTHER PAYMENTS FOR CLIENTS,REDACTED,REDACTED
03.03.2018,CHILDREN'S SERVICES,REDACTED PERSONAL DATA,980,HOME 2 SCHOOL TRANSPORT,OTHER PAYMENTS FOR CLIENTS,REDACTED,REDACTED
03.03.2018,CHILDREN'S SERVICES,REDACTED PERSONAL DATA,399,HOME 2 SCHOOL TRANSPORT,OTHER PAYMENTS FOR CLIENTS,REDACTED,REDACTED
03.03.2018,CHILDREN'S SERVICES,DODS PARLIAMENTARY COMMUNICATIONS LTD,390,PRIMARY ACHIEVEMENT,OTHER SUBSISTENCE & CONFERENCE EXPENSES,5902292546,1000067040
03.03.2018,COMMUNITIES,PENNACK T&RA,"1,300.00",TENANTS FUND,GRANTS,5902291969,1000069506
03.03.2018,F & C S EXCLUDING CORPORATE BUDGETS,RSM RISK ASSURANCE SERVICES LLP,"26,994.00",FINANCE DIRECTOR,PROFESSIONAL FEES,5902292414,1000050690
03.03.2018,LEISURE DIRECTORATE,NPOWER LTD,"2,201.01",CEMETERIES,ELECTRICITY,5902292699,1000078994
03.03.2018,LEISURE DIRECTORATE,NPOWER,274.7,SDM BUDGET,ELECTRICITY,5902292323,1000032342
03.03.2018,MODERNISATION HGF,LINDA COBB,500,ADULTS MULTI-AGENCY SAFEGUARDING TRNG,TRAINING,5902291968,1000029191
03.03.2018,MODERNISATION HGF,CHRIS FINES,550,CHILDREN'S MULTI-AGENCY SAFEGUARDING TRA,TRAINING,5902291985,1000029192
03.03.2018,MODERNISATION HGF,PRICEWATERHOUSECOOPERS LLP,"16,505.00",ORG TRANSFORMATION,CONSULTANTS SERVICES,5902291932,1000022906
04.03.2018,CHILDREN AND ADULT,NUMBER 10 INTERIM LTD,"2,625.00",CAPITAL PS (STRAT SERV),ICT ACQUISITION,5902291979,1000075139
04.03.2018,ENVIRONMENT AND LEISURE,INTO SERVICES LONDON LTD,500,CAPITAL PS (LEISURE),CONST'N MAIN CONTRACT - NON CERTIFICATED,5902292379,1000059328
04.03.2018,ENVIRONMENT AND LEISURE,INTO SERVICES LONDON LTD,350,CAPITAL PS (LEISURE),CONSTRUCTION FEES - INTERNAL,5902292379,1000059328
04.03.2018,ENVIRONMENT DIRECTORATE,AGENTIS WORKWEAR LTD,640,MANAGEMENT TEAM,"CLOTHING, UNIFORMS & LAUNDRY",5902292635,1000065561
04.03.2018,ENVIRONMENT DIRECTORATE,SOUTHWARK NEWSPAPER LTD,408,TRANSPORT PROJECTS,MARKETING & PUBLICITY SERVICES,5902292876,1556957
04.03.2018,F & C S EXCLUDING CORPORATE BUDGETS,PRINT4UK LTD,600,ADMINISTRATIVE SUPPORT,PRINTING,5902292474,1000059134
04.03.2018,HOUSING HRA,MORGAN SINDALL PLC,"271,065.00",CAPITAL PS (HRA),CONSTRUCTION MAIN CONTRACT -CERTIFICATED,2102788464,3000001556
04.03.2018,LEISURE DIRECTORATE,SOUTHWARK NEWSPAPER LTD,396,CEMETERIES,BOOKS & PUBLICATIONS,5902292708,1556957
04.03.2018,LEISURE DIRECTORATE,CLEARVIEW SURVEYS LTD,850,CREMATORIUM,OTHER R&M,5902292285,1000063949
04.03.2018,MODERNISATION HGF,IOSH SERVICES LIMITED (COURSE FEES),325,CFM OPERATIONAL BUDGET,TRAINING,5902292508,1000050667
04.03.2018,MODERNISATION HGF,IOSH SERVICES LIMITED (COURSE FEES),"1,500.00",CFM OPERATIONAL BUDGET,TRAINING,5902292508,1000050667
05.03.2018,ADULT SOCIAL CARE,HM COURTS & TRIBUNALS SERVICE,400, LD MGMT & SUPPORT,LEGAL FEES & COURT COSTS,2102789201,1000075260
05.03.2018,ADULT SOCIAL CARE,HM COURTS & TRIBUNALS SERVICE,400,DIR OF ASC,LEGAL FEES & COURT COSTS,2102789197,1000075260
05.03.2018,ADULT SOCIAL CARE,CARE DIRECT UK LTD,372.33,MH LTS 65+,HOMECARE - SPOT,2102788743,1000066322
05.03.2018,ADULT SOCIAL CARE,METRO HOMECARE LTD,303.38,PHY LTS 18-64,HOMECARE - C&V,2102788842,1000070695
05.03.2018,ADULT SOCIAL CARE,CARE DIRECT UK LTD,448.18,PHY LTS 18-64,HOMECARE - SPOT,2102788718,1000066322
05.03.2018,ADULT SOCIAL CARE,CARE DIRECT UK LTD,727.42,PHY LTS 18-64,HOMECARE - SPOT,2102788769,1000066322
05.03.2018,ADULT SOCIAL CARE,METRO HOMECARE LTD,289.59,PHY LTS 18-64,HOMECARE - SPOT,2102788831,1000070695
05.03.2018,ADULT SOCIAL CARE,METRO HOMECARE LTD,372.33,PHY LTS 18-64,HOMECARE - SPOT,2102788806,1000070695
05.03.2018,ADULT SOCIAL CARE,METRO HOMECARE LTD,379.23,PHY LTS 18-64,HOMECARE - SPOT,2102788813,1000070695
05.03.2018,ADULT SOCIAL CARE,METRO HOMECARE LTD,537.81,PHY LTS 18-64,HOMECARE - SPOT,2102788796,1000070695
05.03.2018,ADULT SOCIAL CARE,METRO HOMECARE LTD,"1,089.41",PHY LTS 18-64,HOMECARE - SPOT,2102788798,1000070695
05.03.2018,ADULT SOCIAL CARE,METRO HOMECARE LTD,"1,351.42",PHY LTS 18-64,HOMECARE - SPOT,2102788805,1000070695
05.03.2018,ADULT SOCIAL CARE,CARE DIRECT UK LTD,286.14,PHY LTS 65+,HOMECARE - C&V,2102788721,1000066322
05.03.2018,ADULT SOCIAL CARE,CARE DIRECT UK LTD,251.67,PHY LTS 65+,HOMECARE - SPOT,2102788756,1000066322
05.03.2018,ADULT SOCIAL CARE,CARE DIRECT UK LTD,265.46,PHY LTS 65+,HOMECARE - SPOT,2102788786,1000066322
05.03.2018,ADULT SOCIAL CARE,CARE DIRECT UK LTD,279.25,PHY LTS 65+,HOMECARE - SPOT,2102788787,1000066322
05.03.2018,ADULT SOCIAL CARE,CARE DIRECT UK LTD,306.83,PHY LTS 65+,HOMECARE - SPOT,2102788771,1000066322
05.03.2018,ADULT SOCIAL CARE,CARE DIRECT UK LTD,334.41,PHY LTS 65+,HOMECARE - SPOT,2102788761,1000066322
05.03.2018,ADULT SOCIAL CARE,CARE DIRECT UK LTD,386.12,PHY LTS 65+,HOMECARE - SPOT,2102788757,1000066322
05.03.2018,ADULT SOCIAL CARE,CARE DIRECT UK LTD,427.49,PHY LTS 65+,HOMECARE - SPOT,2102788742,1000066322
05.03.2018,ADULT SOCIAL CARE,CARE DIRECT UK LTD,472.31,PHY LTS 65+,HOMECARE - SPOT,2102788720,1000066322
05.03.2018,ADULT SOCIAL CARE,CARE DIRECT UK LTD,489.55,PHY LTS 65+,HOMECARE - SPOT,2102788789,1000066322
05.03.2018,ADULT SOCIAL CARE,CARE DIRECT UK LTD,496.44,PHY LTS 65+,HOMECARE - SPOT,2102788790,1000066322
05.03.2018,ADULT SOCIAL CARE,CARE DIRECT UK LTD,723.98,PHY LTS 65+,HOMECARE - SPOT,2102788727,1000066322
05.03.2018,ADULT SOCIAL CARE,CARE DIRECT UK LTD,723.98,PHY LTS 65+,HOMECARE - SPOT,2102788758,1000066322
05.03.2018,ADULT SOCIAL CARE,METRO HOMECARE LTD,255.12,PHY LTS 65+,HOMECARE - SPOT,2102788801,1000070695
05.03.2018,ADULT SOCIAL CARE,METRO HOMECARE LTD,310.28,PHY LTS 65+,HOMECARE - SPOT,2102788820,1000070695
05.03.2018,ADULT SOCIAL CARE,METRO HOMECARE LTD,310.28,PHY LTS 65+,HOMECARE - SPOT,2102788823,1000070695
05.03.2018,ADULT SOCIAL CARE,METRO HOMECARE LTD,324.07,PHY LTS 65+,HOMECARE - SPOT,2102788824,1000070695
05.03.2018,ADULT SOCIAL CARE,METRO HOMECARE LTD,330.96,PHY LTS 65+,HOMECARE - SPOT,2102788821,1000070695
05.03.2018,ADULT SOCIAL CARE,METRO HOMECARE LTD,337.86,PHY LTS 65+,HOMECARE - SPOT,2102788807,1000070695
05.03.2018,ADULT SOCIAL CARE,METRO HOMECARE LTD,337.86,PHY LTS 65+,HOMECARE - SPOT,2102788840,1000070695
05.03.2018,ADULT SOCIAL CARE,METRO HOMECARE LTD,372.33,PHY LTS 65+,HOMECARE - SPOT,2102788833,1000070695
05.03.2018,ADULT SOCIAL CARE,METRO HOMECARE LTD,386.12,PHY LTS 65+,HOMECARE - SPOT,2102788799,1000070695
05.03.2018,ADULT SOCIAL CARE,METRO HOMECARE LTD,386.12,PHY LTS 65+,HOMECARE - SPOT,2102788815,1000070695
05.03.2018,ADULT SOCIAL CARE,METRO HOMECARE LTD,406.81,PHY LTS 65+,HOMECARE - SPOT,2102788828,1000070695
05.03.2018,ADULT SOCIAL CARE,METRO HOMECARE LTD,427.49,PHY LTS 65+,HOMECARE - SPOT,2102788811,1000070695
05.03.2018,ADULT SOCIAL CARE,METRO HOMECARE LTD,427.49,PHY LTS 65+,HOMECARE - SPOT,2102788836,1000070695
05.03.2018,ADULT SOCIAL CARE,METRO HOMECARE LTD,434.39,PHY LTS 65+,HOMECARE - SPOT,2102788812,1000070695
05.03.2018,ADULT SOCIAL CARE,METRO HOMECARE LTD,448.18,PHY LTS 65+,HOMECARE - SPOT,2102788826,1000070695
05.03.2018,ADULT SOCIAL CARE,METRO HOMECARE LTD,482.65,PHY LTS 65+,HOMECARE - SPOT,2102788841,1000070695
05.03.2018,ADULT SOCIAL CARE,METRO HOMECARE LTD,499.89,PHY LTS 65+,HOMECARE - SPOT,2102788814,1000070695
05.03.2018,ADULT SOCIAL CARE,METRO HOMECARE LTD,503.34,PHY LTS 65+,HOMECARE - SPOT,2102788829,1000070695
05.03.2018,ADULT SOCIAL CARE,METRO HOMECARE LTD,551.6,PHY LTS 65+,HOMECARE - SPOT,2102788832,1000070695
05.03.2018,ADULT SOCIAL CARE,METRO HOMECARE LTD,723.98,PHY LTS 65+,HOMECARE - SPOT,2102788816,1000070695
05.03.2018,ADULT SOCIAL CARE,METRO HOMECARE LTD,772.24,PHY LTS 65+,HOMECARE - SPOT,2102788809,1000070695
05.03.2018,ADULT SOCIAL CARE,METRO HOMECARE LTD,992.88,PHY LTS 65+,HOMECARE - SPOT,2102788843,1000070695
05.03.2018,ADULT SOCIAL CARE,METRO HOMECARE LTD,"1,185.94",PHY LTS 65+,HOMECARE - SPOT,2102788837,1000070695
05.03.2018,ADULT SOCIAL CARE,NESTOR PRIMECARE SERVICES LTD,528.23,TRANSFORMING COM E,HOMECARE - C&V,5902293048,11098703
05.03.2018,ADULT SOCIAL CARE,NESTOR PRIMECARE SERVICES LTD,"31,143.84",TRANSFORMING COM E,HOMECARE - C&V,5902293048,11098703
05.03.2018,ASSET MANAGEMENT,GAS & ENVIRONMENTAL SERVICES LTD,262.2,ENG CONTRACTS,EQUIPMENT PURCHASE & REPAIR,5902293001,1000066947
05.03.2018,CENTRAL FUNCTIONS,STANBURY BUILDING SERVICES LTD,325,COMMERCIAL PROPERTIES,BUILDING R&M,5902293036,1000078207
05.03.2018,CENTRAL FUNCTIONS,STANBURY BUILDING SERVICES LTD,595,COMMERCIAL PROPERTIES,BUILDING R&M,5902292982,1000078207
05.03.2018,CENTRAL FUNCTIONS,HM COURTS & TRIBUNALS SERVICE,255,COMMERCIAL PROPERTIES,LEGAL FEES & COURT COSTS,2102789233,1000075260
05.03.2018,CENTRAL FUNCTIONS,HM COURTS & TRIBUNALS SERVICE,308,COMMERCIAL PROPERTIES,LEGAL FEES & COURT COSTS,2102789163,1000075260
05.03.2018,CENTRAL FUNCTIONS,HM COURTS & TRIBUNALS SERVICE,355,COMMERCIAL PROPERTIES,LEGAL FEES & COURT COSTS,2102789164,1000075260
05.03.2018,CENTRAL FUNCTIONS,FIELD FISHER WATERHOUSE,500,COMMERCIAL PROPERTIES,PROFESSIONAL FEES,5902292964,1000047449
05.03.2018,CENTRAL FUNCTIONS,BAKER MALLETT LLP,"1,792.50",COMMERCIAL PROPERTIES,PROFESSIONAL FEES,5902292963,1000080547
05.03.2018,CENTRAL FUNCTIONS,ALLPAY NET LIMITED,"1,001.68",SERVICE LEVEL AGREEMENTS,BANK CHARGES,5902292947,1000043001
05.03.2018,CENTRAL FUNCTIONS,ALLPAY NET LIMITED,"11,671.55",SERVICE LEVEL AGREEMENTS,BANK CHARGES,5902292949,1000043001
05.03.2018,CHIEF EXECUTIVE,MOUNTVIEW ACADEMY OF THEATRE ARTS,"1,853,181.42",CAPITAL PS (REGEN),CAPITAL GRANTS,5902293070,1000076966
05.03.2018,CHIEF EXECUTIVE,PROJECT CENTRE LTD,"1,361.95",CAPITAL PS (REGEN),CONSTR'N SUB CONTRACT - NON CERTIFICATED,5902292950,1000072621
05.03.2018,CHIEF EXECUTIVE,RED R DESIGN,285,CAPITAL PS (REGEN),CONSTRUCTION FEES  - EXTERNAL,5902292965,1000035984
05.03.2018,CHIEF EXECUTIVE,FAITHFUL & GOULD,"8,671.81",CAPITAL PS (REGEN),CONSTRUCTION FEES  - EXTERNAL,5902293010,1000061390
05.03.2018,CHIEF EXECUTIVE,FIELD FISHER WATERHOUSE,550.65,CAPITAL PS (REGEN),CONSTRUCTION FEES - LEGAL,5902293032,1000047449
05.03.2018,CHIEF EXECUTIVE,FIELD FISHER WATERHOUSE,"38,332.60",CAPITAL PS (REGEN),CONSTRUCTION FEES - LEGAL,5902293032,1000047449
05.03.2018,CHILDREN'S SERVICES,REDACTED PERSONAL DATA,286,ADOPTION REFORM GRANT (PART B),PROFESSIONAL FEES,REDACTED,REDACTED
05.03.2018,CHILDREN'S SERVICES,SYNERGY FOSTERING LTD,"3,315.98",AGENCY FOSTERING,EXTERNAL AGENCIES AND BODIES,5902293038,1000031559
05.03.2018,CHILDREN'S SERVICES,FLEET TUTORS,"-2,685.00",ALTERNATIVE PROVISION,EXTERNAL AGENCIES AND BODIES,5902292994,1000044820
05.03.2018,CHILDREN'S SERVICES,FLEET TUTORS,"32,988.00",ALTERNATIVE PROVISION,EXTERNAL AGENCIES AND BODIES,5902292988,1000044820
05.03.2018,CHILDREN'S SERVICES,REDACTED PERSONAL DATA,305,CARE GRPS  4 TO 6,OTHER PAYMENTS FOR CLIENTS,REDACTED,REDACTED
05.03.2018,CHILDREN'S SERVICES,MARTINS UPHOLSTERY SUPPLIES LTD,565.55,DIRECT DELIVERY,MATERIALS,5902293027,1000049444
05.03.2018,CHILDREN'S SERVICES,REDACTED PERSONAL DATA,300,DISABILITY & HIV,ADDITIONAL PAYMENTS TO AGENCIES/CARERS,REDACTED,REDACTED
05.03.2018,CHILDREN'S SERVICES,REDACTED PERSONAL DATA,969.14,DISABILITY & HIV,PAYMENTS TO CARERS,REDACTED,REDACTED
05.03.2018,CHILDREN'S SERVICES,REDACTED PERSONAL DATA,"1,360.36",DISABILITY & HIV,PAYMENTS TO CARERS,REDACTED,REDACTED
05.03.2018,CHILDREN'S SERVICES,AVOCET SOCIAL CARE LTD,"2,826.20",DISABILITY & HIV,PROFESSIONAL FEES,5902292933,1000071940
05.03.2018,CHILDREN'S SERVICES,DRUMHEAD LTD,750,LEA MUSIC SERVICE(310) - 5018566,CONSULTANTS SERVICES,5902292983,1000051656
05.03.2018,CHILDREN'S SERVICES,DRUMHEAD LTD,"5,600.00",LEA MUSIC SERVICE(310) - 5018566,CONSULTANTS SERVICES,5902292985,1000051656
05.03.2018,CHILDREN'S SERVICES,ANTHONY MALONEY,375,LEA MUSIC SERVICE(310) - 5018566,OP LEASE/HIRE CHARGES:PLANT/EQUIP/FURNIT,5902292979,1000072050
05.03.2018,CHILDREN'S SERVICES,THEATRE PECKHAM,600,LEA MUSIC SERVICE(310) - 5018566,OTHER EMPLOYEE EXPENSES,5902293071,1071668
05.03.2018,CHILDREN'S SERVICES,ARGOS BUSINESS SOLUTIONS LTD,282.91,LEAVING CARE GRANT,OTHER PAYMENTS FOR CLIENTS,5902292935,1000001734
05.03.2018,CHILDREN'S SERVICES,HM COURTS & TRIBUNALS SERVICE,455,LEGAL,LEGAL FEES & COURT COSTS,2102789198,1000075260
05.03.2018,CHILDREN'S SERVICES,HM COURTS & TRIBUNALS SERVICE,455,LEGAL,LEGAL FEES & COURT COSTS,2102789199,1000075260
05.03.2018,CHILDREN'S SERVICES,HM COURTS & TRIBUNALS SERVICE,455,LEGAL,LEGAL FEES & COURT COSTS,2102789202,1000075260
05.03.2018,CHILDREN'S SERVICES,HM COURTS & TRIBUNALS SERVICE,455,LEGAL,LEGAL FEES & COURT COSTS,2102789218,1000075260
05.03.2018,CHILDREN'S SERVICES,HM COURTS & TRIBUNALS SERVICE,"2,055.00",LEGAL,LEGAL FEES & COURT COSTS,2102789166,1000075260
05.03.2018,CHILDREN'S SERVICES,HM COURTS & TRIBUNALS SERVICE,"2,055.00",LEGAL,LEGAL FEES & COURT COSTS,2102789172,1000075260
05.03.2018,CHILDREN'S SERVICES,HM COURTS & TRIBUNALS SERVICE,"2,055.00",LEGAL,LEGAL FEES & COURT COSTS,2102789183,1000075260
05.03.2018,CHILDREN'S SERVICES,HM COURTS & TRIBUNALS SERVICE,"2,055.00",LEGAL,LEGAL FEES & COURT COSTS,2102789196,1000075260
05.03.2018,CHILDREN'S SERVICES,HM COURTS & TRIBUNALS SERVICE,"2,055.00",LEGAL,LEGAL FEES & COURT COSTS,2102789232,1000075260
05.03.2018,CHILDREN'S SERVICES,SOUTH LONDON & MAUDSLEY HOSPITAL,"6,238.00",PARENTING TEAM,EXTERNAL AGENCIES AND BODIES,5902292350,1000013096
05.03.2018,CHILDREN'S SERVICES,1ST PLACE CHILDREN & PARENTS CENTRE,645,RESOURCE PANEL,SECTION 17 PAYMENTS TO AGENCIES/CARERS,5902293085,1000049952
05.03.2018,CHILDREN'S SERVICES,PURPLE PEBBLES(CHILD CARE) SERVICES,"1,284.29",RESOURCE PANEL,SECTION 17 PAYMENTS TO AGENCIES/CARERS,5902293086,1000070705
05.03.2018,CHILDREN'S SERVICES,GOLDSTONE ESTATES LTD,"2,604.00",RESOURCE PANEL,SECTION 17 PAYMENTS TO AGENCIES/CARERS,5902293077,1000076548
05.03.2018,CHILDREN'S SERVICES,INTEGRATED SERVICES PROGRAMME,"2,178.40",STAYING PUT,EXTERNAL AGENCIES AND BODIES,5902293029,1642068
05.03.2018,CHILDREN'S SERVICES,REDACTED PERSONAL DATA,357.15,STAYING PUT,PAYMENTS TO CARERS,REDACTED,REDACTED
05.03.2018,CHILDREN'S SERVICES,REDACTED PERSONAL DATA,357.15,STAYING PUT,PAYMENTS TO CARERS,REDACTED,REDACTED
05.03.2018,CHILDREN'S SERVICES,REDACTED PERSONAL DATA,400,UASC FURTHER EDUCATION SUPPORT,CLIENT TRANSPORT,REDACTED,REDACTED
05.03.2018,CHILDREN'S SERVICES,REDACTED PERSONAL DATA,400,UASC FURTHER EDUCATION SUPPORT,OTHER PAYMENTS FOR CLIENTS,REDACTED,REDACTED
05.03.2018,CLIENT SVCES,ALLPAY NET LIMITED,"4,555.34",CASHIERS SLA,BANK CHARGES,5902292944,1000043001
05.03.2018,COMMUNITIES,SOUTH OF THE RIVER INVESTMENTS LTD,"4,130.00",NO RECOURSE TO PUBLIC FUNDS,ACCOMMODATION CHARGES,5902293015,1000073638
05.03.2018,COMMUNITIES,ZFA LTD,"14,000.00",NO RECOURSE TO PUBLIC FUNDS,ACCOMMODATION CHARGES,5902293026,1000074420
05.03.2018,COMMUNITIES,CROWN HOUSING LTD,"8,896.00",NO RECOURSE TO PUBLIC FUNDS,ACCOMMODATION CHARGES,5902293075,1000075070
05.03.2018,COMMUNITIES,NORBURY PROPERTY SERVICES,"2,828.00",NO RECOURSE TO PUBLIC FUNDS,ACCOMMODATION CHARGES,5902292971,1000075566
05.03.2018,COMMUNITIES,FINEFAIR LTD,"4,263.84",NO RECOURSE TO PUBLIC FUNDS,ACCOMMODATION CHARGES,5902293049,1000075570
05.03.2018,COMMUNITIES,GOLDSTONE ESTATES LTD,"5,656.00",NO RECOURSE TO PUBLIC FUNDS,ACCOMMODATION CHARGES,5902293072,1000076548
05.03.2018,COMMUNITIES,LONDON PROPERTY ONLINE LTD,"1,008.00",NO RECOURSE TO PUBLIC FUNDS,ACCOMMODATION CHARGES,5902293041,1000080013
05.03.2018,COMMUNITIES,ALLPAY NET LIMITED,"1,402.15",NO RECOURSE TO PUBLIC FUNDS,PROFESSIONAL FEES,5902292948,1000043001
05.03.2018,COMMUNITIES,STENFORD PROPERTY LTD,"1,616.00",NO RECOURSE TO PUBLIC FUNDS,SECTION 17 PAYMENTS TO AGENCIES/CARERS,5902293035,1000074759
05.03.2018,CUSTOMER EXPERIENCE HGF,IMPERIAL COLLEGE PROJECTS LTD,276,CORONER'S,PROFESSIONAL FEES,5902293042,1000080106
05.03.2018,CUSTOMER EXPERIENCE HGF,IMPERIAL COLLEGE PROJECTS LTD,276,CORONER'S,PROFESSIONAL FEES,5902293044,1000080106
05.03.2018,CUSTOMER EXPERIENCE HGF,IMPERIAL COLLEGE PROJECTS LTD,324,CORONER'S,PROFESSIONAL FEES,5902292998,1000080106
05.03.2018,CUSTOMER EXPERIENCE HGF,IMPERIAL COLLEGE PROJECTS LTD,332,CORONER'S,PROFESSIONAL FEES,5902292990,1000080106
05.03.2018,CUSTOMER EXPERIENCE HGF,IMPERIAL COLLEGE PROJECTS LTD,332,CORONER'S,PROFESSIONAL FEES,5902293028,1000080106
05.03.2018,CUSTOMER EXPERIENCE HGF,IMPERIAL COLLEGE PROJECTS LTD,344,CORONER'S,PROFESSIONAL FEES,5902293002,1000080106
05.03.2018,CUSTOMER EXPERIENCE HGF,IMPERIAL COLLEGE PROJECTS LTD,364,CORONER'S,PROFESSIONAL FEES,5902293021,1000080106
05.03.2018,CUSTOMER EXPERIENCE HGF,IMPERIAL COLLEGE PROJECTS LTD,372,CORONER'S,PROFESSIONAL FEES,5902292987,1000080106
05.03.2018,CUSTOMER EXPERIENCE HGF,IMPERIAL COLLEGE PROJECTS LTD,372,CORONER'S,PROFESSIONAL FEES,5902292995,1000080106
05.03.2018,CUSTOMER EXPERIENCE HGF,IMPERIAL COLLEGE PROJECTS LTD,388,CORONER'S,PROFESSIONAL FEES,5902292999,1000080106
05.03.2018,CUSTOMER EXPERIENCE HGF,IMPERIAL COLLEGE PROJECTS LTD,408,CORONER'S,PROFESSIONAL FEES,5902292986,1000080106
05.03.2018,CUSTOMER EXPERIENCE HGF,IMPERIAL COLLEGE PROJECTS LTD,468,CORONER'S,PROFESSIONAL FEES,5902293056,1000080106
05.03.2018,CUSTOMER EXPERIENCE HGF,IMPERIAL COLLEGE PROJECTS LTD,484,CORONER'S,PROFESSIONAL FEES,5902293030,1000080106
05.03.2018,CUSTOMER EXPERIENCE HGF,SK HOUSING LTD,"7,103.60",NIGHTLY TA (NSC),EXTERNAL AGENCIES AND BODIES,5902293065,1000070716
05.03.2018,CUSTOMER EXPERIENCE HGF,HOMES2LET,273,NIGHTLY TA (NSC),EXTERNAL AGENCIES AND BODIES,5902292970,1000079868
05.03.2018,CUSTOMER EXPERIENCE HGF,HOMES2LET,"23,997.85",NIGHTLY TA (NSC),EXTERNAL AGENCIES AND BODIES,5902292957,1000079868
05.03.2018,CUSTOMER EXPERIENCE HGF,HOLIDAY INN LONDON WHITECHAPEL,"2,341.67",NIGHTLY TA (NSC),EXTERNAL AGENCIES AND BODIES,5902292984,1000080283
05.03.2018,CUSTOMER EXPERIENCE HGF,IDEAL QUARTERS LTD,"64,780.56",PRIVATE SECTOR LEASING,EXTERNAL AGENCIES AND BODIES,5902292946,1000079241
05.03.2018,ENVIRONMENT AND LEISURE,GROSVENOR T&RA,262.5,CAPITAL PS (LEISURE),CAPITAL GRANTS,5902293019,1536163
05.03.2018,ENVIRONMENT AND LEISURE,ARLO GREEN DESIGN & MARKETING LTD,"2,310.12",CAPITAL PS (LEISURE),CONST'N MAIN CONTRACT - NON CERTIFICATED,5902293040,1000065604
05.03.2018,ENVIRONMENT AND LEISURE,QUINCEY MASON PRACTICES LTD,"4,000.00",CAPITAL PS (LEISURE),CONSTRUCTION FEES,5902292972,1000079912
05.03.2018,ENVIRONMENT AND LEISURE,QUINCEY MASON PRACTICES LTD,"6,540.00",CAPITAL PS (LEISURE),CONSTRUCTION FEES,5902292973,1000079912
05.03.2018,ENVIRONMENT AND LEISURE,PELLINGS LLP,262.5,CAPITAL PS (LEISURE),CONSTRUCTION FEES - QUANTITY SURVEYOR,5902292951,1009262
05.03.2018,ENVIRONMENT DIRECTORATE,CONTEGO SAFETY SOLUTIONS LTD,312.84,MANAGEMENT TEAM,MATERIALS,5902293020,1000077673
05.03.2018,ENVIRONMENT DIRECTORATE,EURO TRAINING SERVICES LTD,325,MANAGEMENT TEAM,TRAINING,5902292615,1000072728
05.03.2018,ENVIRONMENT DIRECTORATE,PWLC PROJECTS,"6,850.00","ROAD SAFETY EDUCATION,TRAINING&PUBLICITY",PROFESSIONAL FEES,5902292269,1000079351
05.03.2018,ENVIRONMENT DIRECTORATE,OVERTON UK LIMITED,"3,670.00",STREETS (NORTH EAST),OTHER VEHICLE RUNNING COSTS,5902292961,1000045349
05.03.2018,ENVIRONMENT DIRECTORATE,SOUTHWARK NEWSPAPER LTD,348,TRANSPORT PROJECTS,MARKETING & PUBLICITY SERVICES,5902292969,1556957
05.03.2018,F & C S EXCLUDING CORPORATE BUDGETS,DSI BILLING SERVICES LTD,"1,554.63",ADMINISTRATIVE SUPPORT,POSTAGES,5902293067,1000058640
05.03.2018,F & C S EXCLUDING CORPORATE BUDGETS,CHRISTOPHER FITCH ASSOCIATES LTD,375,ADMINISTRATIVE SUPPORT,TRAINING,5902293022,1000080836
05.03.2018,F & C S EXCLUDING CORPORATE BUDGETS,CIPFA,930,CIPFA TRAINEES,TRAINING,5902292996,1000000196
05.03.2018,F & C S EXCLUDING CORPORATE BUDGETS,CIPFA,"1,090.00",CIPFA TRAINEES,TRAINING,5902292997,1000000196
05.03.2018,F & C S EXCLUDING CORPORATE BUDGETS,CIPFA,"1,585.00",CIPFA TRAINEES,TRAINING,5902293000,1000000196
05.03.2018,F & C S EXCLUDING CORPORATE BUDGETS,CIPFA,"1,940.00",CIPFA TRAINEES,TRAINING,5902293003,1000000196
05.03.2018,F & C S EXCLUDING CORPORATE BUDGETS,HM COURTS & TRIBUNALS SERVICE,"4,650.00",COUNCIL TAX,LEGAL FEES & COURT COSTS,2102789224,1000075260
05.03.2018,F & C S EXCLUDING CORPORATE BUDGETS,HM COURTS & TRIBUNALS SERVICE,"5,298.00",COUNCIL TAX,LEGAL FEES & COURT COSTS,2102789220,1000075260
05.03.2018,F & C S EXCLUDING CORPORATE BUDGETS,BDO LLP,431.81,INTERNAL AUDIT CONTRACTS,PAYMENTS FOR FINANCIAL SERVICES,5902292559,1000057898
05.03.2018,F & C S EXCLUDING CORPORATE BUDGETS,BDO LLP,"21,618.44",INTERNAL AUDIT CONTRACTS,PAYMENTS FOR FINANCIAL SERVICES,5902292559,1000057898
05.03.2018,F & C S EXCLUDING CORPORATE BUDGETS,HM COURTS & TRIBUNALS SERVICE,297,NNDR,LEGAL FEES & COURT COSTS,2102789231,1000075260
05.03.2018,F & C S EXCLUDING CORPORATE BUDGETS,HM COURTS & TRIBUNALS SERVICE,309,NNDR,LEGAL FEES & COURT COSTS,2102789219,1000075260
05.03.2018,HOUSING GENERAL FUND,SAP (UK) LTD,"4,250.00",CAPITAL PS (STRAT SERV),ICT ACQUISITION,5902293066,1000002550
05.03.2018,HOUSING GENERAL FUND,SAP (UK) LTD,"45,737.50",CAPITAL PS (STRAT SERV),ICT ACQUISITION,5902293023,1000002550
05.03.2018,HOUSING HRA,ETC VENUES LTD,900,CAPITAL PS (REGEN),LAND & BUILDINGS ACQUISITION FEES,5902293005,1000045226
05.03.2018,HOUSING HRA,ETC VENUES LTD,"1,000.00",CAPITAL PS (REGEN),LAND & BUILDINGS ACQUISITION FEES,5902293008,1000045226
05.03.2018,HOUSING HRA,ETC VENUES LTD,"1,100.00",CAPITAL PS (REGEN),LAND & BUILDINGS ACQUISITION FEES,5902293007,1000045226
05.03.2018,HOUSING HRA,ETC VENUES LTD,"2,000.00",CAPITAL PS (REGEN),LAND & BUILDINGS ACQUISITION FEES,5902293006,1000045226
05.03.2018,HOUSING HRA,HOWARD KENNEDY FSI LLP,"4,016.91",CAPITAL PS (REGEN),LAND & BUILDINGS ACQUISITION FEES,5902293074,1000073952
05.03.2018,HOUSING HRA,SMITH & BYFORD LTD,"289,381.13",SMITH AND BYFORD,MANUAL CREDITORS,5902292667,11212119
05.03.2018,HOUSING STRATEGY AND OPTIONS,HM COURTS & TRIBUNALS SERVICE,255,HOMELESS & HOUSING OPTIONS MGT,LEGAL FEES & COURT COSTS,2102789189,1000075260
05.03.2018,HOUSING STRATEGY AND OPTIONS,HM COURTS & TRIBUNALS SERVICE,355,HOMELESS & HOUSING OPTIONS MGT,LEGAL FEES & COURT COSTS,2102789159,1000075260
05.03.2018,HOUSING STRATEGY AND OPTIONS,HM COURTS & TRIBUNALS SERVICE,355,HOMELESS & HOUSING OPTIONS MGT,LEGAL FEES & COURT COSTS,2102789160,1000075260
05.03.2018,HOUSING STRATEGY AND OPTIONS,HM COURTS & TRIBUNALS SERVICE,355,HOMELESS & HOUSING OPTIONS MGT,LEGAL FEES & COURT COSTS,2102789161,1000075260
05.03.2018,HOUSING STRATEGY AND OPTIONS,HM COURTS & TRIBUNALS SERVICE,355,HOMELESS & HOUSING OPTIONS MGT,LEGAL FEES & COURT COSTS,2102789162,1000075260
05.03.2018,HOUSING STRATEGY AND OPTIONS,TFL TELESALES / OYSTER FULFILMENT,410,HOMELESS & HOUSING OPTIONS MGT,PUBLIC TRANSPORT,5902292943,1000059727
05.03.2018,INTERNAL SERVICES,HM COURTS & TRIBUNALS SERVICE,255,BROWNING ESTATE,LEGAL FEES & COURT COSTS,2102789181,1000075260
05.03.2018,INTERNAL SERVICES,HM COURTS & TRIBUNALS SERVICE,355,BROWNING ESTATE,LEGAL FEES & COURT COSTS,2102789182,1000075260
05.03.2018,INTERNAL SERVICES,HM COURTS & TRIBUNALS SERVICE,355,BROWNING ESTATE,LEGAL FEES & COURT COSTS,2102789222,1000075260
05.03.2018,INTERNAL SERVICES,HM COURTS & TRIBUNALS SERVICE,545,LEGAL HOUSING LITIGATN,LEGAL FEES & COURT COSTS,2102789191,1000075260
05.03.2018,LEISURE DIRECTORATE,NEWLINE (ESSEX) LTD,527.2,CREMATORIUM,OTHER CLEANING,5902292974,1000047169
05.03.2018,LEISURE DIRECTORATE,HONOR OAK GROUP PRACTICE,"1,794.00",CREMATORIUM,PROFESSIONAL FEES,5902293016,1000047167
05.03.2018,LEISURE DIRECTORATE,HONOR OAK GROUP PRACTICE,"1,920.50",CREMATORIUM,PROFESSIONAL FEES,5902293017,1000047167
05.03.2018,MODERNISATION HGF,NEOPOST FINANCE LTD,"2,230.08",160 TOOLEY ST.,OP LEASE/HIRE CHARGES:PLANT/EQUIP/FURNIT,5902292665,1000064385
05.03.2018,MODERNISATION HGF,BOURNEMOUTH UNIVERSITY,625,"ASC - PROF DEV, QUALIFICATIONS AND CONSU",TRAINING,5902293034,1000035971
05.03.2018,MODERNISATION HGF,EDGE TRAINING LTD,875,ASW - PROFESSIONAL DEVELOPMENT,TRAINING,5902292993,1000057249
05.03.2018,MODERNISATION HGF,SIGNIS LTD,500,CHILDREN'S MULTI-AGENCY SAFEGUARDING TRA,TRAINING,5902293043,1000075765
05.03.2018,MODERNISATION HGF,SIGNIS LTD,500,CHILDREN'S MULTI-AGENCY SAFEGUARDING TRA,TRAINING,5902293045,1000075765
05.03.2018,MODERNISATION HGF,SIGNIS LTD,500,CHILDREN'S MULTI-AGENCY SAFEGUARDING TRA,TRAINING,5902293046,1000075765
05.03.2018,MODERNISATION HGF,SIGNIS LTD,500,CHILDREN'S MULTI-AGENCY SAFEGUARDING TRA,TRAINING,5902293051,1000075765
05.03.2018,MODERNISATION HGF,SIGNIS LTD,500,CHILDREN'S MULTI-AGENCY SAFEGUARDING TRA,TRAINING,5902293053,1000075765
05.03.2018,MODERNISATION HGF,BOURNEMOUTH UNIVERSITY,"1,050.00","CSC - PROF DEV, QUALIFICATIONS AND CONSU",TRAINING,5902293037,1000035971
05.03.2018,MODERNISATION HGF,MORNING LANE ASSOCIATES LTD,"22,700.00",CSW - PROFESSIONAL DEVELOPMENT,TRAINING,5902292981,1000070866
05.03.2018,MODERNISATION HGF,SIGNIS LTD,500,CSW - PROFESSIONAL DEVELOPMENT,TRAINING,5902293057,1000075765
05.03.2018,MODERNISATION HGF,INTERSERVE (FACILITIES MANAGEMENT),"113,020.10",FM SERVICES BY INTERSERVE,SECURITY SERVICES,5902292562,1000070792
05.03.2018,MODERNISATION HGF,NCC GROUP PERFORMANCE TESTING LTD,"1,126.00",WEBSITE TEAM,PROFESSIONAL FEES,5902293069,1000075062
05.03.2018,PLANNING AND TRANSPORT,THE BUILDING CENTRE GROUP LTD,825,PLANNING POLICY TEAM,MARKETING & PUBLICITY SERVICES,5902293073,1000072953
05.03.2018,PUBLIC HEALTH,WHATEVER DESIGN LTD,"1,635.00",PH SPECIALIST TEAMS,MARKETING & PUBLICITY SERVICES,5902293013,1000036500
05.03.2018,PUBLIC HEALTH,WHATEVER DESIGN LTD,"3,300.00",PH SPECIALIST TEAMS,MARKETING & PUBLICITY SERVICES,5902293012,1000036500
05.03.2018,PUBLIC HEALTH,COMMUNITY SOUTHWARK,"13,960.00",PHYSICAL ACTIVITY - ADULTS,EXTERNAL AGENCIES AND BODIES,5902293039,1000018147
05.03.2018,RESIDENT SERVICES,HM COURTS & TRIBUNALS SERVICE,355,BERMONDSEY,LEGAL FEES & COURT COSTS,2102789206,1000075260
05.03.2018,RESIDENT SERVICES,HM COURTS & TRIBUNALS SERVICE,355,BERMONDSEY,LEGAL FEES & COURT COSTS,2102789215,1000075260
05.03.2018,RESIDENT SERVICES,HM COURTS & TRIBUNALS SERVICE,355,OPERATIONS/OFFICES ACCOMMODATION,LEGAL FEES & COURT COSTS,2102789155,1000075260
05.03.2018,RESIDENT SERVICES,HM COURTS & TRIBUNALS SERVICE,355,OPERATIONS/OFFICES ACCOMMODATION,LEGAL FEES & COURT COSTS,2102789170,1000075260
05.03.2018,RESIDENT SERVICES,HM COURTS & TRIBUNALS SERVICE,355,OPERATIONS/OFFICES ACCOMMODATION,LEGAL FEES & COURT COSTS,2102789204,1000075260
05.03.2018,RESIDENT SERVICES,HM COURTS & TRIBUNALS SERVICE,355,OPERATIONS/OFFICES ACCOMMODATION,LEGAL FEES & COURT COSTS,2102789210,1000075260
05.03.2018,RESIDENT SERVICES,HM COURTS & TRIBUNALS SERVICE,355,OPERATIONS/OFFICES ACCOMMODATION,LEGAL FEES & COURT COSTS,2102789225,1000075260
05.03.2018,RESIDENT SERVICES,HARROW GREEN LTD,"1,313.26",OPERATIONS/OFFICES ACCOMMODATION,REMOVAL EXPENSES,5902293014,1000076673
05.03.2018,RESIDENT SERVICES,HARROW GREEN LTD,"10,845.83",OPERATIONS/OFFICES ACCOMMODATION,REMOVAL EXPENSES,5902293014,1000076673
05.03.2018,RESIDENT SERVICES,CONWAY AECOM LTD,"3,726.40",PARKING CONTROL,OTHER CONTRACTORS,5902292989,1000071205
05.03.2018,RESIDENT SERVICES,HM COURTS & TRIBUNALS SERVICE,355,PECKHAM,LEGAL FEES & COURT COSTS,2102789230,1000075260
05.03.2018,RESIDENT SERVICES,RS REAL ESTATE LTD,490,TA PLACEMENTS,EXTERNAL AGENCIES AND BODIES,5902293078,1000072485
05.03.2018,RESIDENT SERVICES,PPROPERTYPLACEBOOK LTD,"3,797.00",TA PLACEMENTS,EXTERNAL AGENCIES AND BODIES,5902293079,1000077817
06.03.2018,ADULT SOCIAL CARE,CHOICE SUPPORT,480,APPOINTEESHIPS,OTHER PAYMENTS FOR CLIENTS,2102788909,1104183
06.03.2018,ADULT SOCIAL CARE,EQUINOX CARE,"1,090.20",APPOINTEESHIPS,OTHER PAYMENTS FOR CLIENTS,2102788916,11325422
06.03.2018,ADULT SOCIAL CARE,AMBLESIDE LODGE,360,APPOINTEESHIPS,OTHER PAYMENTS FOR CLIENTS,2102788943,1000042535
06.03.2018,ADULT SOCIAL CARE,GOLDEN LANE HOUSING LTD,"4,014.36",APPOINTEESHIPS,OTHER PAYMENTS FOR CLIENTS,2102788944,1000046267
06.03.2018,ADULT SOCIAL CARE,HEXAGON HOUSING ASSOCIATION LTD,537.08,APPOINTEESHIPS,OTHER PAYMENTS FOR CLIENTS,2102788919,1000056905
06.03.2018,ADULT SOCIAL CARE,FOUNTAIN CARE LTD,329.4,APPOINTEESHIPS,OTHER PAYMENTS FOR CLIENTS,2102788953,1000066815
06.03.2018,ADULT SOCIAL CARE,RIGHT SUPPORT MANAGEMENT LTD,500,APPOINTEESHIPS,OTHER PAYMENTS FOR CLIENTS,2102788933,1000070289
06.03.2018,ADULT SOCIAL CARE,LONDON CYRENIANS HOUSING LTD,600,APPOINTEESHIPS,OTHER PAYMENTS FOR CLIENTS,2102788920,1000078600
06.03.2018,ADULT SOCIAL CARE,ELIZABETH PETERS CARE HOMES LTD,280,APPOINTEESHIPS,OTHER PAYMENTS FOR CLIENTS,2102788914,1000078858
06.03.2018,ADULT SOCIAL CARE,DANSHELL GROUP,280,APPOINTEESHIPS,OTHER PAYMENTS FOR CLIENTS,2102788913,1000079284
06.03.2018,ADULT SOCIAL CARE,POP INN CAFE,280,APPOINTEESHIPS,OTHER PAYMENTS FOR CLIENTS,2102788931,1000079353
06.03.2018,ADULT SOCIAL CARE,CYGNET HOSPITAL BURY,340,APPOINTEESHIPS,OTHER PAYMENTS FOR CLIENTS,2102788912,1000079492
06.03.2018,ADULT SOCIAL CARE,REDACTED PERSONAL DATA,343.6,APPOINTEESHIPS,OTHER PAYMENTS FOR CLIENTS,REDACTED,REDACTED
06.03.2018,ADULT SOCIAL CARE,REDACTED PERSONAL DATA,600,APPOINTEESHIPS,OTHER PAYMENTS FOR CLIENTS,REDACTED,REDACTED
06.03.2018,ADULT SOCIAL CARE,REDACTED PERSONAL DATA,264.8,APPOINTEESHIPS,OTHER PAYMENTS FOR CLIENTS,REDACTED,REDACTED
06.03.2018,ADULT SOCIAL CARE,REDACTED PERSONAL DATA,320,APPOINTEESHIPS,OTHER PAYMENTS FOR CLIENTS,REDACTED,REDACTED
06.03.2018,ADULT SOCIAL CARE,REDACTED PERSONAL DATA,260,APPOINTEESHIPS,OTHER PAYMENTS FOR CLIENTS,REDACTED,REDACTED
06.03.2018,ADULT SOCIAL CARE,REDACTED PERSONAL DATA,558.32,APPOINTEESHIPS,OTHER PAYMENTS FOR CLIENTS,REDACTED,REDACTED
06.03.2018,ADULT SOCIAL CARE,REDACTED PERSONAL DATA,460,APPOINTEESHIPS,OTHER PAYMENTS FOR CLIENTS,REDACTED,REDACTED
06.03.2018,ADULT SOCIAL CARE,NESTOR PRIMECARE SERVICES LTD,"4,127.76",EXTRA CARE CONTRACT,HOMECARE - SPOT,5902293178,11098703
06.03.2018,ADULT SOCIAL CARE,BEDE CAFE PROJECT,260,LD LTS 18-64,DAYCARE,2102789115,1553877
06.03.2018,ADULT SOCIAL CARE,BEDE CAFE PROJECT,260,LD LTS 18-64,DAYCARE,2102789118,1553877
06.03.2018,ADULT SOCIAL CARE,BEDE CAFE PROJECT,260,LD LTS 18-64,DAYCARE,2102789122,1553877
06.03.2018,ADULT SOCIAL CARE,BEDE CAFE PROJECT,260,LD LTS 18-64,DAYCARE,2102789127,1553877
06.03.2018,ADULT SOCIAL CARE,BEDE CAFE PROJECT,332,LD LTS 18-64,DAYCARE,2102789135,1553877
06.03.2018,ADULT SOCIAL CARE,BEDE CAFE PROJECT,520,LD LTS 18-64,DAYCARE,2102789108,1553877
06.03.2018,ADULT SOCIAL CARE,BEDE CAFE PROJECT,520,LD LTS 18-64,DAYCARE,2102789133,1553877
06.03.2018,ADULT SOCIAL CARE,BEDE CAFE PROJECT,520,LD LTS 18-64,DAYCARE,2102789137,1553877
06.03.2018,ADULT SOCIAL CARE,BEDE CAFE PROJECT,520,LD LTS 18-64,DAYCARE,2102789138,1553877
06.03.2018,ADULT SOCIAL CARE,BEDE CAFE PROJECT,600,LD LTS 18-64,DAYCARE,2102789125,1553877
06.03.2018,ADULT SOCIAL CARE,BEDE CAFE PROJECT,632,LD LTS 18-64,DAYCARE,2102789132,1553877
06.03.2018,ADULT SOCIAL CARE,BEDE CAFE PROJECT,712,LD LTS 18-64,DAYCARE,2102789107,1553877
06.03.2018,ADULT SOCIAL CARE,BEDE CAFE PROJECT,780,LD LTS 18-64,DAYCARE,2102789128,1553877
06.03.2018,ADULT SOCIAL CARE,BEDE CAFE PROJECT,780,LD LTS 18-64,DAYCARE,2102789129,1553877
06.03.2018,ADULT SOCIAL CARE,BEDE CAFE PROJECT,"1,000.00",LD LTS 18-64,DAYCARE,2102789117,1553877
06.03.2018,ADULT SOCIAL CARE,BEDE CAFE PROJECT,"1,020.00",LD LTS 18-64,DAYCARE,2102789126,1553877
06.03.2018,ADULT SOCIAL CARE,BEDE CAFE PROJECT,"1,020.00",LD LTS 18-64,DAYCARE,2102789139,1553877
06.03.2018,ADULT SOCIAL CARE,BEDE CAFE PROJECT,"1,040.00",LD LTS 18-64,DAYCARE,2102789109,1553877
06.03.2018,ADULT SOCIAL CARE,BEDE CAFE PROJECT,"1,040.00",LD LTS 18-64,DAYCARE,2102789111,1553877
06.03.2018,ADULT SOCIAL CARE,BEDE CAFE PROJECT,"1,040.00",LD LTS 18-64,DAYCARE,2102789130,1553877
06.03.2018,ADULT SOCIAL CARE,BEDE CAFE PROJECT,"1,040.00",LD LTS 18-64,DAYCARE,2102789131,1553877
06.03.2018,ADULT SOCIAL CARE,BEDE CAFE PROJECT,"1,140.00",LD LTS 18-64,DAYCARE,2102789134,1553877
06.03.2018,ADULT SOCIAL CARE,BEDE CAFE PROJECT,"1,200.00",LD LTS 18-64,DAYCARE,2102789119,1553877
06.03.2018,ADULT SOCIAL CARE,BEDE CAFE PROJECT,"1,264.00",LD LTS 18-64,DAYCARE,2102789114,1553877
06.03.2018,ADULT SOCIAL CARE,BEDE CAFE PROJECT,"1,442.48",LD LTS 18-64,DAYCARE,2102789136,1553877
06.03.2018,ADULT SOCIAL CARE,BEDE CAFE PROJECT,"1,752.00",LD LTS 18-64,DAYCARE,2102789121,1553877
06.03.2018,ADULT SOCIAL CARE,BEDE CAFE PROJECT,"2,920.00",LD LTS 18-64,DAYCARE,2102789110,1553877
06.03.2018,ADULT SOCIAL CARE,BEDE CAFE PROJECT,"2,920.00",LD LTS 18-64,DAYCARE,2102789112,1553877
06.03.2018,ADULT SOCIAL CARE,SURREY DOCKS FARM PROVIDENT SOCIETY,720,LD LTS 18-64,DAYCARE,2102789151,1000000958
06.03.2018,ADULT SOCIAL CARE,LONDON CARE LTD,809.93,LD LTS 18-64,HOMECARE - C&V,2102789141,1000003398
06.03.2018,ADULT SOCIAL CARE,CROWN HOUSING LTD,"1,085.00",MH CARE&SUPPORT TEAM,ADDITIONAL PAYMENTS TO AGENCIES/CARERS,5902293211,1000075070
06.03.2018,ADULT SOCIAL CARE,ALBANY LODGE,"-4,191.36",OP CARE PACKAGES,NURSING PLACEMENTS FEES,2102646485,1000060280
06.03.2018,ADULT SOCIAL CARE,ALBANY LODGE,"2,095.68",OP CARE PACKAGES,NURSING PLACEMENTS FEES,2102646481,1000060280
06.03.2018,ADULT SOCIAL CARE,ALBANY LODGE,"2,095.68",OP CARE PACKAGES,NURSING PLACEMENTS FEES,2102646483,1000060280
06.03.2018,ADULT SOCIAL CARE,LONDON CARE LTD,269.08,PHY LTS 18-64,HOMECARE - C&V,2102789140,1000003398
06.03.2018,ADULT SOCIAL CARE,LONDON CARE LTD,294.31,PHY LTS 18-64,HOMECARE - C&V,2102789147,1000003398
06.03.2018,ADULT SOCIAL CARE,LONDON CARE LTD,689.44,PHY LTS 18-64,HOMECARE - C&V,2102789146,1000003398
06.03.2018,ADULT SOCIAL CARE,LONDON CARE LTD,550.1,PHY LTS 65+,HOMECARE - C&V,2102789143,1000003398
06.03.2018,ADULT SOCIAL CARE,LONDON CARE LTD,958.25,PHY LTS 65+,HOMECARE - C&V,2102789144,1000003398
06.03.2018,ADULT SOCIAL CARE,WYCAR LEYS,"-31,171.20",PWLD RESIDENTIAL PLACEMENTS CC,RESIDENTIAL CARE,2102645030,1000035986
06.03.2018,ADULT SOCIAL CARE,WYCAR LEYS,"10,390.40",PWLD RESIDENTIAL PLACEMENTS CC,RESIDENTIAL CARE,2102645024,1000035986
06.03.2018,ADULT SOCIAL CARE,WYCAR LEYS,"10,390.40",PWLD RESIDENTIAL PLACEMENTS CC,RESIDENTIAL CARE,2102645026,1000035986
06.03.2018,ADULT SOCIAL CARE,WYCAR LEYS,"10,390.40",PWLD RESIDENTIAL PLACEMENTS CC,RESIDENTIAL CARE,2102645028,1000035986
06.03.2018,ADULT SOCIAL CARE,BEDE CAFE PROJECT,"1,168.00",SOCIAL ISOLATION,DAYCARE,2102789124,1553877
06.03.2018,ADULT SOCIAL CARE,SURREY DOCKS FARM PROVIDENT SOCIETY,500,SOCIAL ISOLATION,DAYCARE,2102789152,1000000958
06.03.2018,ADULT SOCIAL CARE,HS WALSH & SONS LTD,467.5,SOUTHWARK RESOURCE CENTRE,EQUIPMENT PURCHASE & REPAIR,5902293199,1000072561
06.03.2018,CENTRAL FUNCTIONS,LAMBERT SMITH HAMPTON GROUP LTD,"11,250.00",COMMERCIAL PROPERTIES,PROFESSIONAL FEES,5902293164,1000060045
06.03.2018,CHIEF EXECUTIVE,CARTER JONAS LLP,"4,257.00",CAPITAL PS (REGEN),CONSTRUCTION FEES,5902293144,1000073124
06.03.2018,CHIEF EXECUTIVE'S OFFICE,RP2 LTD,"1,655.00",BUSINESS SUPPORT,MARKETING & PUBLICITY SERVICES,5902293267,1000063096
06.03.2018,CHILDREN AND ADULT,PETER BRETT ASSOCIATES,"2,018.80",CAPITAL PS (EDUCATION),CONSTRUCTION FEES,5902293206,1000029091
06.03.2018,CHILDREN AND ADULT,FONTAIN LTD,608,CAPITAL PS (EDUCATION),CONSTRUCTION FEES  - EXTERNAL,5902293268,1000058307
06.03.2018,CHILDREN'S SERVICES,NORTHUMBERLAND COUNTY COUNCIL,"43,000.00",ADOPTION PLACEMENTS & INTER AGENCY,EXTERNAL AGENCIES AND BODIES,5902293262,1000030424
06.03.2018,CHILDREN'S SERVICES,CROHAM SERVICES FOR CHILDREN,"3,296.63",AGENCY FOSTERING,EXTERNAL AGENCIES AND BODIES,2102789029,1556859
06.03.2018,CHILDREN'S SERVICES,CROHAM SERVICES FOR CHILDREN,"3,296.63",AGENCY FOSTERING,EXTERNAL AGENCIES AND BODIES,2102789041,1556859
06.03.2018,CHILDREN'S SERVICES,INTEGRATED SERVICES PROGRAMME,"4,675.44",AGENCY FOSTERING,EXTERNAL AGENCIES AND BODIES,2102789030,1642068
06.03.2018,CHILDREN'S SERVICES,INTEGRATED SERVICES PROGRAMME,"4,675.44",AGENCY FOSTERING,EXTERNAL AGENCIES AND BODIES,2102789049,1642068
06.03.2018,CHILDREN'S SERVICES,INTEGRATED SERVICES PROGRAMME,"4,675.44",AGENCY FOSTERING,EXTERNAL AGENCIES AND BODIES,2102789100,1642068
06.03.2018,CHILDREN'S SERVICES,INTEGRATED SERVICES PROGRAMME,"4,675.44",AGENCY FOSTERING,EXTERNAL AGENCIES AND BODIES,2102789106,1642068
06.03.2018,CHILDREN'S SERVICES,INTEGRATED SERVICES PROGRAMME,"4,819.92",AGENCY FOSTERING,EXTERNAL AGENCIES AND BODIES,2102789022,1642068
06.03.2018,CHILDREN'S SERVICES,INTEGRATED SERVICES PROGRAMME,"4,819.92",AGENCY FOSTERING,EXTERNAL AGENCIES AND BODIES,2102789025,1642068
06.03.2018,CHILDREN'S SERVICES,INTEGRATED SERVICES PROGRAMME,"4,819.92",AGENCY FOSTERING,EXTERNAL AGENCIES AND BODIES,2102789101,1642068
06.03.2018,CHILDREN'S SERVICES,ETHELBERT SPECIALIST HOMES,"3,322.16",AGENCY FOSTERING,EXTERNAL AGENCIES AND BODIES,2102789072,1796129
06.03.2018,CHILDREN'S SERVICES,ETHELBERT SPECIALIST HOMES,"3,322.16",AGENCY FOSTERING,EXTERNAL AGENCIES AND BODIES,2102789099,1796129
06.03.2018,CHILDREN'S SERVICES,ETHELBERT SPECIALIST HOMES,"3,322.16",AGENCY FOSTERING,EXTERNAL AGENCIES AND BODIES,2102789102,1796129
06.03.2018,CHILDREN'S SERVICES,ETHELBERT SPECIALIST HOMES,"3,506.68",AGENCY FOSTERING,EXTERNAL AGENCIES AND BODIES,2102789054,1796129
06.03.2018,CHILDREN'S SERVICES,ETHELBERT SPECIALIST HOMES,"3,506.68",AGENCY FOSTERING,EXTERNAL AGENCIES AND BODIES,2102789098,1796129
06.03.2018,CHILDREN'S SERVICES,SUPPORTED FOSTERING SERVICES,"2,796.00",AGENCY FOSTERING,EXTERNAL AGENCIES AND BODIES,2102789023,1927554
06.03.2018,CHILDREN'S SERVICES,SUPPORTED FOSTERING SERVICES,"3,186.00",AGENCY FOSTERING,EXTERNAL AGENCIES AND BODIES,2102789103,1927554
06.03.2018,CHILDREN'S SERVICES,FIVE RIVERS CHILD CARE LTD,"5,896.00",AGENCY FOSTERING,EXTERNAL AGENCIES AND BODIES,2102789083,1000018792
06.03.2018,CHILDREN'S SERVICES,THE XCEL 2000 PARTNERSHIP LTD,"3,032.00",AGENCY FOSTERING,EXTERNAL AGENCIES AND BODIES,2102789062,1000024427
06.03.2018,CHILDREN'S SERVICES,TIME FOR CHILDREN LTD,"2,800.00",AGENCY FOSTERING,EXTERNAL AGENCIES AND BODIES,2102789044,1000024439
06.03.2018,CHILDREN'S SERVICES,SANKOFA CARE LTD,"3,245.48",AGENCY FOSTERING,EXTERNAL AGENCIES AND BODIES,2102789019,1000030717
06.03.2018,CHILDREN'S SERVICES,SANKOFA CARE LTD,"3,245.48",AGENCY FOSTERING,EXTERNAL AGENCIES AND BODIES,2102789073,1000030717
06.03.2018,CHILDREN'S SERVICES,SANKOFA CARE LTD,"3,549.56",AGENCY FOSTERING,EXTERNAL AGENCIES AND BODIES,2102789045,1000030717
06.03.2018,CHILDREN'S SERVICES,SANKOFA CARE LTD,"4,099.48",AGENCY FOSTERING,EXTERNAL AGENCIES AND BODIES,2102789026,1000030717
06.03.2018,CHILDREN'S SERVICES,SYNERGY FOSTERING LTD,"3,316.00",AGENCY FOSTERING,EXTERNAL AGENCIES AND BODIES,2102789048,1000031559
06.03.2018,CHILDREN'S SERVICES,KENT HOMEFINDING & FOSTERING LTD,"8,240.40",AGENCY FOSTERING,EXTERNAL AGENCIES AND BODIES,2102789061,1000033978
06.03.2018,CHILDREN'S SERVICES,MOMENTS FOSTERING LTD,"4,060.00",AGENCY FOSTERING,EXTERNAL AGENCIES AND BODIES,2102789039,1000037317
06.03.2018,CHILDREN'S SERVICES,MOMENTS FOSTERING LTD,"4,999.96",AGENCY FOSTERING,EXTERNAL AGENCIES AND BODIES,2102789021,1000037317
06.03.2018,CHILDREN'S SERVICES,BY THE BRIDGE LTD,"3,731.12",AGENCY FOSTERING,EXTERNAL AGENCIES AND BODIES,2102789051,1000043961
06.03.2018,CHILDREN'S SERVICES,BY THE BRIDGE LTD,"3,810.28",AGENCY FOSTERING,EXTERNAL AGENCIES AND BODIES,2102789087,1000043961
06.03.2018,CHILDREN'S SERVICES,BY THE BRIDGE LTD,"3,926.40",AGENCY FOSTERING,EXTERNAL AGENCIES AND BODIES,2102789094,1000043961
06.03.2018,CHILDREN'S SERVICES,BY THE BRIDGE LTD,"4,010.84",AGENCY FOSTERING,EXTERNAL AGENCIES AND BODIES,2102789034,1000043961
06.03.2018,CHILDREN'S SERVICES,BY THE BRIDGE LTD,"4,010.84",AGENCY FOSTERING,EXTERNAL AGENCIES AND BODIES,2102789075,1000043961
06.03.2018,CHILDREN'S SERVICES,BY THE BRIDGE LTD,"4,069.00",AGENCY FOSTERING,EXTERNAL AGENCIES AND BODIES,2102789024,1000043961
06.03.2018,CHILDREN'S SERVICES,BY THE BRIDGE LTD,"4,127.76",AGENCY FOSTERING,EXTERNAL AGENCIES AND BODIES,2102789052,1000043961
06.03.2018,CHILDREN'S SERVICES,BY THE BRIDGE LTD,"4,127.76",AGENCY FOSTERING,EXTERNAL AGENCIES AND BODIES,2102789069,1000043961
06.03.2018,CHILDREN'S SERVICES,BY THE BRIDGE LTD,"4,137.48",AGENCY FOSTERING,EXTERNAL AGENCIES AND BODIES,2102789076,1000043961
06.03.2018,CHILDREN'S SERVICES,BY THE BRIDGE LTD,"4,221.92",AGENCY FOSTERING,EXTERNAL AGENCIES AND BODIES,2102789058,1000043961
06.03.2018,CHILDREN'S SERVICES,BY THE BRIDGE LTD,"4,221.92",AGENCY FOSTERING,EXTERNAL AGENCIES AND BODIES,2102789097,1000043961
06.03.2018,CHILDREN'S SERVICES,BY THE BRIDGE LTD,"4,340.44",AGENCY FOSTERING,EXTERNAL AGENCIES AND BODIES,2102789057,1000043961
06.03.2018,CHILDREN'S SERVICES,BY THE BRIDGE LTD,"4,340.44",AGENCY FOSTERING,EXTERNAL AGENCIES AND BODIES,2102789092,1000043961
06.03.2018,CHILDREN'S SERVICES,BY THE BRIDGE LTD,"4,429.00",AGENCY FOSTERING,EXTERNAL AGENCIES AND BODIES,2102789081,1000043961
06.03.2018,CHILDREN'S SERVICES,BY THE BRIDGE LTD,"4,429.00",AGENCY FOSTERING,EXTERNAL AGENCIES AND BODIES,2102789086,1000043961
06.03.2018,CHILDREN'S SERVICES,BY THE BRIDGE LTD,"5,200.00",AGENCY FOSTERING,EXTERNAL AGENCIES AND BODIES,2102789066,1000043961
06.03.2018,CHILDREN'S SERVICES,BY THE BRIDGE LTD,"5,628.00",AGENCY FOSTERING,EXTERNAL AGENCIES AND BODIES,2102789104,1000043961
06.03.2018,CHILDREN'S SERVICES,BY THE BRIDGE LTD,"5,843.08",AGENCY FOSTERING,EXTERNAL AGENCIES AND BODIES,2102789080,1000043961
06.03.2018,CHILDREN'S SERVICES,BY THE BRIDGE LTD,"6,117.93",AGENCY FOSTERING,EXTERNAL AGENCIES AND BODIES,2102789088,1000043961
06.03.2018,CHILDREN'S SERVICES,BY THE BRIDGE LTD,"6,117.93",AGENCY FOSTERING,EXTERNAL AGENCIES AND BODIES,2102789090,1000043961
06.03.2018,CHILDREN'S SERVICES,CHILDREN OF COLOUR,"3,136.00",AGENCY FOSTERING,EXTERNAL AGENCIES AND BODIES,2102789056,1000044955
06.03.2018,CHILDREN'S SERVICES,CHILDREN OF COLOUR,"3,136.00",AGENCY FOSTERING,EXTERNAL AGENCIES AND BODIES,2102789064,1000044955
06.03.2018,CHILDREN'S SERVICES,CHILDREN OF COLOUR,"3,214.40",AGENCY FOSTERING,EXTERNAL AGENCIES AND BODIES,2102789059,1000044955
06.03.2018,CHILDREN'S SERVICES,CHILDREN OF COLOUR,"3,840.00",AGENCY FOSTERING,EXTERNAL AGENCIES AND BODIES,2102789078,1000044955
06.03.2018,CHILDREN'S SERVICES,NEXT STEP FOSTERING SERVICES LTD,"3,928.40",AGENCY FOSTERING,EXTERNAL AGENCIES AND BODIES,2102789035,1000044973
06.03.2018,CHILDREN'S SERVICES,ST CHRISTOPHER FELLOWSHIP,"3,179.96",AGENCY FOSTERING,EXTERNAL AGENCIES AND BODIES,2102789079,1000045269
06.03.2018,CHILDREN'S SERVICES,ST CHRISTOPHER FELLOWSHIP,"4,200.00",AGENCY FOSTERING,EXTERNAL AGENCIES AND BODIES,2102789084,1000045269
06.03.2018,CHILDREN'S SERVICES,CAPSTONE FOSTER CARE,"1,359.48",AGENCY FOSTERING,EXTERNAL AGENCIES AND BODIES,2102789015,1000050353
06.03.2018,CHILDREN'S SERVICES,DIVERSE CARE (UK) LTD,"4,055.52",AGENCY FOSTERING,EXTERNAL AGENCIES AND BODIES,2102789046,1000055636
06.03.2018,CHILDREN'S SERVICES,DIVERSE CARE (UK) LTD,"5,712.00",AGENCY FOSTERING,EXTERNAL AGENCIES AND BODIES,2102789032,1000055636
06.03.2018,CHILDREN'S SERVICES,COMPASS FOSTERING LONDON LTD,"2,483.24",AGENCY FOSTERING,EXTERNAL AGENCIES AND BODIES,2102789065,1000057908
06.03.2018,CHILDREN'S SERVICES,COMPASS FOSTERING LONDON LTD,"2,599.48",AGENCY FOSTERING,EXTERNAL AGENCIES AND BODIES,2102789091,1000057908
06.03.2018,CHILDREN'S SERVICES,COMPASS FOSTERING LONDON LTD,"2,780.12",AGENCY FOSTERING,EXTERNAL AGENCIES AND BODIES,2102789037,1000057908
06.03.2018,CHILDREN'S SERVICES,COMPASS FOSTERING LONDON LTD,"3,472.68",AGENCY FOSTERING,EXTERNAL AGENCIES AND BODIES,2102789105,1000057908
06.03.2018,CHILDREN'S SERVICES,CHILDREN OF ALL NATIONS LTD,"3,710.84",AGENCY FOSTERING,EXTERNAL AGENCIES AND BODIES,2102789082,1000060151
06.03.2018,CHILDREN'S SERVICES,CHILDREN OF ALL NATIONS LTD,"3,710.84",AGENCY FOSTERING,EXTERNAL AGENCIES AND BODIES,2102789085,1000060151
06.03.2018,CHILDREN'S SERVICES,CHILDREN OF ALL NATIONS LTD,"4,123.40",AGENCY FOSTERING,EXTERNAL AGENCIES AND BODIES,2102789063,1000060151
06.03.2018,CHILDREN'S SERVICES,RYANCARE FOSTERING,"3,199.00",AGENCY FOSTERING,EXTERNAL AGENCIES AND BODIES,2102789027,1000062376
06.03.2018,CHILDREN'S SERVICES,BARNARDOS SERVICES LTD,"3,214.68",AGENCY FOSTERING,EXTERNAL AGENCIES AND BODIES,2102789017,1000063730
06.03.2018,CHILDREN'S SERVICES,ANCHOR FOSTERCARE,"2,952.32",AGENCY FOSTERING,EXTERNAL AGENCIES AND BODIES,2102789031,1000065675
06.03.2018,CHILDREN'S SERVICES,ANCHOR FOSTERCARE,"2,952.32",AGENCY FOSTERING,EXTERNAL AGENCIES AND BODIES,2102789055,1000065675
06.03.2018,CHILDREN'S SERVICES,ANCHOR FOSTERCARE,"3,431.96",AGENCY FOSTERING,EXTERNAL AGENCIES AND BODIES,2102789096,1000065675
06.03.2018,CHILDREN'S SERVICES,FOSTERCARE UK LTD,"2,888.00",AGENCY FOSTERING,EXTERNAL AGENCIES AND BODIES,2102789077,1000073002
06.03.2018,CHILDREN'S SERVICES,COMPASS FOSTERING SOUTH LTD,"2,609.96",AGENCY FOSTERING,EXTERNAL AGENCIES AND BODIES,2102789074,1000073772
06.03.2018,CHILDREN'S SERVICES,COMPASS FOSTERING SOUTH LTD,"2,780.12",AGENCY FOSTERING,EXTERNAL AGENCIES AND BODIES,2102789040,1000073772
06.03.2018,CHILDREN'S SERVICES,COMPASS FOSTERING SOUTH LTD,"2,987.96",AGENCY FOSTERING,EXTERNAL AGENCIES AND BODIES,2102789020,1000073772
06.03.2018,CHILDREN'S SERVICES,WELCOME FOSTER CARE LTD,"2,550.03",AGENCY FOSTERING,EXTERNAL AGENCIES AND BODIES,2102789089,1000074586
06.03.2018,CHILDREN'S SERVICES,MOSAIC FOSTER CARE LTD,"5,999.84",AGENCY FOSTERING,EXTERNAL AGENCIES AND BODIES,2102789095,1000076259
06.03.2018,CHILDREN'S SERVICES,MOSAIC FOSTER CARE LTD,"6,300.00",AGENCY FOSTERING,EXTERNAL AGENCIES AND BODIES,2102789018,1000076259
06.03.2018,CHILDREN'S SERVICES,RAINBOW FOSTERING SERVICES LTD,"3,050.88",AGENCY FOSTERING,EXTERNAL AGENCIES AND BODIES,2102789043,1000076620
06.03.2018,CHILDREN'S SERVICES,YOUNG PEOPLE AT HEART LTD,"2,800.00",AGENCY FOSTERING,EXTERNAL AGENCIES AND BODIES,2102789028,1000076694
06.03.2018,CHILDREN'S SERVICES,DIAGRAMA FOUNDATION CHILDREN SERVICES,"3,464.00",AGENCY FOSTERING,EXTERNAL AGENCIES AND BODIES,2102789067,1000078697
06.03.2018,CHILDREN'S SERVICES,ORANGE GROVE FOSTERCARE LTD,"3,248.00",AGENCY FOSTERING,EXTERNAL AGENCIES AND BODIES,2102789038,1000078716
06.03.2018,CHILDREN'S SERVICES,ORANGE GROVE FOSTERCARE LTD,"3,248.00",AGENCY FOSTERING,EXTERNAL AGENCIES AND BODIES,2102789042,1000078716
06.03.2018,CHILDREN'S SERVICES,PARENT AND CHILD FOSTERING ASSESSMENTS,"2,057.14",AGENCY FOSTERING,EXTERNAL AGENCIES AND BODIES,2102789071,1000078962
06.03.2018,CHILDREN'S SERVICES,PARENT AND CHILD FOSTERING ASSESSMENTS,"4,800.00",AGENCY FOSTERING,EXTERNAL AGENCIES AND BODIES,2102789093,1000078962
06.03.2018,CHILDREN'S SERVICES,SELECT FOSTERCARE SERVICES LTD,"3,300.08",AGENCY FOSTERING,EXTERNAL AGENCIES AND BODIES,2102789047,1000079277
06.03.2018,CHILDREN'S SERVICES,CONNECT FOSTERING SERVICES LTD,"3,020.00",AGENCY FOSTERING,EXTERNAL AGENCIES AND BODIES,2102789036,1000079969
06.03.2018,CHILDREN'S SERVICES,CONNECT FOSTERING SERVICES LTD,"3,180.00",AGENCY FOSTERING,EXTERNAL AGENCIES AND BODIES,2102789033,1000079969
06.03.2018,CHILDREN'S SERVICES,MONKEY PUZZLE DAY NURSERY STREATHAM,"2,748.45",AGENCY FOSTERING,EXTERNAL AGENCIES AND BODIES,5902293244,1000080140
06.03.2018,CHILDREN'S SERVICES,SHARED CARE SERVICES LTD,"5,273.52",AGENCY FOSTERING,EXTERNAL AGENCIES AND BODIES,2102789050,1000080308
06.03.2018,CHILDREN'S SERVICES,LIGHTHOUSE FOSTERING LTD,"5,400.00",AGENCY FOSTERING,EXTERNAL AGENCIES AND BODIES,2102789068,1000080372
06.03.2018,CHILDREN'S SERVICES,ALL4U FOSTERING LTD,"5,819.52",AGENCY FOSTERING,EXTERNAL AGENCIES AND BODIES,2102789060,1000080663
06.03.2018,CHILDREN'S SERVICES,REVIVAL,880,CENTRAL SUPPORT,MEDICAL / HEALTH & SAFETY SERVICES,5902293305,1000027424
06.03.2018,CHILDREN'S SERVICES,REVIVAL,660,CENTRAL SUPPORT,OTHER PAYMENTS FOR CLIENTS,5902293310,1000027424
06.03.2018,CHILDREN'S SERVICES,LNENGELVIN CONSULTANCY LTD,"1,218.00",CLA TEAM SAFEGUARDING,PROFESSIONAL FEES,5902293314,1000078868
06.03.2018,CHILDREN'S SERVICES,LONDON WILDLIFE TRUST,"7,375.00",COMMUNITY LEARNING 15/16,GRANTS,5902293163,1832374
06.03.2018,CHILDREN'S SERVICES,REDACTED PERSONAL DATA,-360,DISABILITY & HIV,OTHER PAYMENTS FOR CLIENTS,REDACTED,REDACTED
06.03.2018,CHILDREN'S SERVICES,ST MICHAELS FELLOWSHIP,"13,053.60",FAMILY ASSESSMENTS,RESIDENTIAL CARE,5902293308,1000004439
06.03.2018,CHILDREN'S SERVICES,REDACTED PERSONAL DATA,"1,462.24",FRIENDS & FAMILY FOSTERING,PAYMENTS TO CARERS,REDACTED,REDACTED
06.03.2018,CHILDREN'S SERVICES,REDACTED PERSONAL DATA,861.64,HOME 2 SCHOOL TRANSPORT,OTHER PAYMENTS FOR CLIENTS,REDACTED,REDACTED
06.03.2018,CHILDREN'S SERVICES,COBOURG PRIMARY SCHOOL,"11,611.00",MATERNITY COVER,SCHOOLS CAPITATION,2102789271,5001000021
06.03.2018,CHILDREN'S SERVICES,DULWICH VILLAGE CE INFANTS SCHOOL,"10,509.00",MATERNITY COVER,SCHOOLS CAPITATION,2102789268,5001000027
06.03.2018,CHILDREN'S SERVICES,DULWICH VILLAGE CE INFANTS SCHOOL,"12,731.00",MATERNITY COVER,SCHOOLS CAPITATION,2102789269,5001000027
06.03.2018,CHILDREN'S SERVICES,DULWICH VILLAGE CE INFANTS SCHOOL,"15,642.00",MATERNITY COVER,SCHOOLS CAPITATION,2102789267,5001000027
06.03.2018,CHILDREN'S SERVICES,PHOENIX PRIMARY SCHOOL,"19,221.00",MATERNITY COVER,SCHOOLS CAPITATION,2102789272,5001000032
06.03.2018,CHILDREN'S SERVICES,ST JAMES CE SCHOOL,"7,680.00",MATERNITY COVER,SCHOOLS CAPITATION,2102789270,5001000070
06.03.2018,CHILDREN'S SERVICES,ST JOSEPHS RC PRIMARY SCHOOL,"2,080.00",MATERNITY COVER,SCHOOLS CAPITATION,2102789263,5001000077
06.03.2018,CHILDREN'S SERVICES,OLIVER GOLDSMITH PRIMARY SCHOOL,"100,000.00",OLIVER GOLDSMITH JM,EARLY YEARS - 3 AND 4 YEAR OLDS,2102789266,5001000051
06.03.2018,CHILDREN'S SERVICES,SANKOFA CARE LTD,"16,800.00",RESIDENTIAL,RESIDENTIAL CARE,2102788979,1000030717
06.03.2018,CHILDREN'S SERVICES,CREATING CARE CHOICES LTD,"2,360.00",RESIDENTIAL,RESIDENTIAL CARE,5902293312,1000076738
06.03.2018,CHILDREN'S SERVICES,ALLIANCE CARE & EDUCATION LTD,"18,859.99",RESIDENTIAL,RESIDENTIAL CARE,2102788980,1000079956
06.03.2018,CHILDREN'S SERVICES,RISBOL LTD,"1,700.00",RESOURCE PANEL,SECTION 17 PAYMENTS TO AGENCIES/CARERS,5902293303,1000069475
06.03.2018,CHILDREN'S SERVICES,GOLDSTONE ESTATES LTD,"2,352.00",RESOURCE PANEL,SECTION 17 PAYMENTS TO AGENCIES/CARERS,5902293311,1000076548
06.03.2018,CHILDREN'S SERVICES,CARE O LINE,412.5,S & FAM SUPP - PRAC GRP A SET 14-16,OTHER PAYMENTS FOR CLIENTS,5902293309,11241743
06.03.2018,CHILDREN'S SERVICES,CONTACT PROFESSIONALS,266,S & FAM SUPP - PRAC GRP F SET 29-31,OTHER PAYMENTS FOR CLIENTS,5902293306,1000057263
06.03.2018,CHILDREN'S SERVICES,LOOK AHEAD CARE AND SUPPORT LTD,"1,816.64",S24 CLA,EXTERNAL AGENCIES AND BODIES,2102788998,1000047299
06.03.2018,CHILDREN'S SERVICES,LOOK AHEAD CARE AND SUPPORT LTD,"1,816.64",S24 CLA,EXTERNAL AGENCIES AND BODIES,2102789008,1000047299
06.03.2018,CHILDREN'S SERVICES,LOOK AHEAD CARE AND SUPPORT LTD,"1,816.64",S24 CLA,EXTERNAL AGENCIES AND BODIES,2102789009,1000047299
06.03.2018,CHILDREN'S SERVICES,LOOK AHEAD CARE AND SUPPORT LTD,"2,890.44",S24 CLA,EXTERNAL AGENCIES AND BODIES,2102789001,1000047299
06.03.2018,CHILDREN'S SERVICES,LOOK AHEAD CARE AND SUPPORT LTD,"3,380.76",S24 CLA,EXTERNAL AGENCIES AND BODIES,2102789002,1000047299
06.03.2018,CHILDREN'S SERVICES,GALAXY LETTINGS LTD,980,S24 CLA,EXTERNAL AGENCIES AND BODIES,2102788999,1000055897
06.03.2018,CHILDREN'S SERVICES,NETPEX LTD CORPORATE SERVICES,"3,580.08",S24 CLA,EXTERNAL AGENCIES AND BODIES,2102789010,1000076073
06.03.2018,CHILDREN'S SERVICES,NETPEX LTD CORPORATE SERVICES,"4,300.24",S24 CLA,EXTERNAL AGENCIES AND BODIES,2102789000,1000076073
06.03.2018,CHILDREN'S SERVICES,NETPEX LTD CORPORATE SERVICES,"5,100.20",S24 CLA,EXTERNAL AGENCIES AND BODIES,2102789003,1000076073
06.03.2018,CHILDREN'S SERVICES,NETWORK HOMES,"6,196.20",S24 CLA,EXTERNAL AGENCIES AND BODIES,5902293313,1000077770
06.03.2018,CHILDREN'S SERVICES,LIBERTY CARE HOMES LTD,"2,108.72",S24 CLA,EXTERNAL AGENCIES AND BODIES,2102789013,1000078210
06.03.2018,CHILDREN'S SERVICES,COMMUNITY BUILDING MANAGEMENT,"4,406.34",S24 CLA,EXTERNAL AGENCIES AND BODIES,2102789004,1000078932
06.03.2018,CHILDREN'S SERVICES,CHARLOTTE  SHARMAN PRIMARY SCHOOL,"5,181.81",SCHOOLS DIRECT SALARY FUNDING,SCHOOLS CAPITATION,2102789275,5001000016
06.03.2018,CHILDREN'S SERVICES,ST JAMES CE SCHOOL,"10,363.62",SCHOOLS DIRECT SALARY FUNDING,SCHOOLS CAPITATION,2102789274,5001000070
06.03.2018,CHILDREN'S SERVICES,LOOK AHEAD CARE AND SUPPORT LTD,"1,751.76",SEMI INDEPENDENT,EXTERNAL AGENCIES AND BODIES,2102788985,1000047299
06.03.2018,CHILDREN'S SERVICES,ABOVE BEYOND CARE,"3,979.07",SEMI INDEPENDENT,EXTERNAL AGENCIES AND BODIES,2102788996,1000063478
06.03.2018,CHILDREN'S SERVICES,HOLIBROOK HOUSE LTD,"4,400.00",SEMI INDEPENDENT,EXTERNAL AGENCIES AND BODIES,2102788982,1000067873
06.03.2018,CHILDREN'S SERVICES,HOLIBROOK HOUSE LTD,"7,140.00",SEMI INDEPENDENT,EXTERNAL AGENCIES AND BODIES,2102788984,1000067873
06.03.2018,CHILDREN'S SERVICES,FRESH START SUPPORT LTD,"12,800.00",SEMI INDEPENDENT,EXTERNAL AGENCIES AND BODIES,2102788981,1000070537
06.03.2018,CHILDREN'S SERVICES,NETPEX LTD CORPORATE SERVICES,"3,000.20",SEMI INDEPENDENT,EXTERNAL AGENCIES AND BODIES,2102788990,1000076073
06.03.2018,CHILDREN'S SERVICES,NETPEX LTD CORPORATE SERVICES,"3,321.65",SEMI INDEPENDENT,EXTERNAL AGENCIES AND BODIES,2102788983,1000076073
06.03.2018,CHILDREN'S SERVICES,NETPEX LTD CORPORATE SERVICES,"3,500.00",SEMI INDEPENDENT,EXTERNAL AGENCIES AND BODIES,2102788992,1000076073
06.03.2018,CHILDREN'S SERVICES,NETPEX LTD CORPORATE SERVICES,"4,040.12",SEMI INDEPENDENT,EXTERNAL AGENCIES AND BODIES,2102788989,1000076073
06.03.2018,CHILDREN'S SERVICES,NETPEX LTD CORPORATE SERVICES,"4,200.00",SEMI INDEPENDENT,EXTERNAL AGENCIES AND BODIES,2102788991,1000076073
06.03.2018,CHILDREN'S SERVICES,COMMUNITY BUILDING MANAGEMENT,"11,338.52",SEMI INDEPENDENT,EXTERNAL AGENCIES AND BODIES,2102788993,1000078932
06.03.2018,CHILDREN'S SERVICES,ABOVE BEYOND CARE,256.41,SEMI INDEPENDENT,OTHER PAYMENTS FOR CLIENTS,2102788997,1000063478
06.03.2018,CHILDREN'S SERVICES,SILVER BIRCH CARE LTD,462.85,SEMI INDEPENDENT,OTHER PAYMENTS FOR CLIENTS,2102789012,1000076525
06.03.2018,CHILDREN'S SERVICES,ST JOHNS WALWORTH CE SCHOOL,"30,000.00",ST JOHNS WALWORTH J,EARLY YEARS - 3 AND 4 YEAR OLDS,2102789273,5001000072
06.03.2018,CHILDREN'S SERVICES,ASCENT FOSTERING AGENCY LTD,"4,939.76",STAYING PUT,EXTERNAL AGENCIES AND BODIES,2102789007,1000074714
06.03.2018,CHILDREN'S SERVICES,CHARTWELLS,420,SUMMERHOUSE - EX416 - 5015232,CATERING MATERIALS & SUPPLIES,5902293235,1000010625
06.03.2018,CHILDREN'S SERVICES,HARLINE LTD,261.5,SUMMERHOUSE - EX416 - 5015232,COMPUTER MAINTENANCE,5902293227,1000019611
06.03.2018,CHILDREN'S SERVICES,HARLINE LTD,357.5,SUMMERHOUSE - EX416 - 5015232,COMPUTER MAINTENANCE,5902293229,1000019611
06.03.2018,CHILDREN'S SERVICES,SINEAD JOYCE,"1,260.00",SUMMERHOUSE - EX416 - 5015232,CONSULTANTS SERVICES,5902293224,1000056695
06.03.2018,CHILDREN'S SERVICES,PSYCHO DYNAMICS LIMITED,"1,960.00",SUMMERHOUSE - EX416 - 5015232,CONSULTANTS SERVICES,5902293225,1000051708
06.03.2018,CHILDREN'S SERVICES,KENT COUNTY COUNCIL - LASER,958.98,SUMMERHOUSE - EX416 - 5015232,GAS,5902293257,1000012926
06.03.2018,CHILDREN'S SERVICES,SALTCO LTD T/A KELLY EXECUTIVE,"2,040.00",SUMMERHOUSE - EX416 - 5015232,HIRED VEHICLES,5902293237,1000000548
06.03.2018,CHILDREN'S SERVICES,SALTCO LTD T/A KELLY EXECUTIVE,"2,040.00",SUMMERHOUSE - EX416 - 5015232,HIRED VEHICLES,5902293238,1000000548
06.03.2018,CHILDREN'S SERVICES,SALTCO LTD T/A KELLY EXECUTIVE,"2,280.00",SUMMERHOUSE - EX416 - 5015232,HIRED VEHICLES,5902293243,1000000548
06.03.2018,CHILDREN'S SERVICES,PITNEY BOWES PURCHASE POWER,461.95,THOMAS CALTON CENTRE,POSTAGES,5902293115,1000000025
06.03.2018,CHILDREN'S SERVICES,DULWICH WOOD CHILDRENS CENTRE,"3,000.00",TRADE UNIONS,SCHOOLS CAPITATION,2102789264,5001000099
06.03.2018,CHILDREN'S SERVICES,KINGSDALE FOUNDATION SCHOOL,"3,299.70",TRADE UNIONS,SCHOOLS CAPITATION,2102789265,1000065405
06.03.2018,CHILDREN'S SERVICES,LOOK AHEAD CARE AND SUPPORT LTD,"1,816.64",UASC SECTION 24,EXTERNAL AGENCIES AND BODIES,2102789006,1000047299
06.03.2018,COMMUNITIES,REDACTED PERSONAL DATA,"7,126.00",NO RECOURSE TO PUBLIC FUNDS,ACCOMMODATION CHARGES,REDACTED,REDACTED
06.03.2018,COMMUNITIES,A & M PROPERTY AND CONSTRUCTION LTD,"8,064.00",NO RECOURSE TO PUBLIC FUNDS,ACCOMMODATION CHARGES,5902293122,1000014564
06.03.2018,COMMUNITIES,LIVING ACCOMODATION LTD,"7,358.00",NO RECOURSE TO PUBLIC FUNDS,ACCOMMODATION CHARGES,5902293101,1000063985
06.03.2018,COMMUNITIES,S A PROPERTY MANAGEMENT LTD,"3,505.00",NO RECOURSE TO PUBLIC FUNDS,ACCOMMODATION CHARGES,5902293097,1000075764
06.03.2018,COMMUNITIES,NATIONWIDE ACCOMMODATION,"12,264.00",NO RECOURSE TO PUBLIC FUNDS,ACCOMMODATION CHARGES,5902293167,1000076112
06.03.2018,COMMUNITIES,PPROPERTYPLACEBOOK LTD,"31,094.00",NO RECOURSE TO PUBLIC FUNDS,ACCOMMODATION CHARGES,5902293095,1000077817
06.03.2018,ELECTORAL SVCES,SOUTHWARK NEWSPAPER LTD,372,ELECTORAL REGISTRATION,MISCELLANEOUS EXPENSES,5902293301,1556957
06.03.2018,ENVIRONMENT AND LEISURE,PLAYGROUND SERVICES LTD,"1,500.00",CAPITAL PS (LEISURE),CONST'N MAIN CONTRACT - NON CERTIFICATED,2102789258,3000001426
06.03.2018,ENVIRONMENT AND LEISURE,STRUCTURAL MAINTENANCE SOLUTIONS LTD,"41,765.87",CAPITAL PS (LEISURE),CONSTRUCTION FEES  - EXTERNAL,5902293280,1000080513
06.03.2018,ENVIRONMENT AND SOCIAL REGENERATION,CALLOW MASTER LOCKSMITHS,280.08,STORES/LOGISTICS,CREDITORS -GR/IR CLEARING ACCOUNT,5902293170,11179552
06.03.2018,ENVIRONMENT AND SOCIAL REGENERATION,CALLOW MASTER LOCKSMITHS,321.95,STORES/LOGISTICS,CREDITORS -GR/IR CLEARING ACCOUNT,5902293170,11179552
06.03.2018,ENVIRONMENT AND SOCIAL REGENERATION,CALLOW MASTER LOCKSMITHS,500,STORES/LOGISTICS,CREDITORS -GR/IR CLEARING ACCOUNT,5902293173,11179552
06.03.2018,ENVIRONMENT AND SOCIAL REGENERATION,CALLOW MASTER LOCKSMITHS,708.29,STORES/LOGISTICS,CREDITORS -GR/IR CLEARING ACCOUNT,5902293176,11179552
06.03.2018,ENVIRONMENT AND SOCIAL REGENERATION,CALLOW MASTER LOCKSMITHS,886.92,STORES/LOGISTICS,CREDITORS -GR/IR CLEARING ACCOUNT,5902293171,11179552
06.03.2018,ENVIRONMENT AND SOCIAL REGENERATION,CALLOW MASTER LOCKSMITHS,886.92,STORES/LOGISTICS,CREDITORS -GR/IR CLEARING ACCOUNT,5902293176,11179552
06.03.2018,ENVIRONMENT DIRECTORATE,R J MOTORS LIMITED,266.81,COMMERCIAL VEH CTRL A/C,VEHICLE REPAIRS & MAINTENANCE,5902293145,1000047106
06.03.2018,ENVIRONMENT DIRECTORATE,R J MOTORS LIMITED,267.34,COMMERCIAL VEH CTRL A/C,VEHICLE REPAIRS & MAINTENANCE,5902293150,1000047106
06.03.2018,ENVIRONMENT DIRECTORATE,JAAMA LTD,"6,997.50",FLEET SERVICES MANAGEMENT,COMPUTER MAINTENANCE,5902293304,1000080704
06.03.2018,ENVIRONMENT DIRECTORATE,SPALDINGS (UK) LTD,328.45,GROUNDS MAINTENANCE - GENERAL,MATERIALS,5902293239,1907384
06.03.2018,ENVIRONMENT DIRECTORATE,IMPERIAL POLYTHENE PRODUCTS LTD,"2,101.00",MANAGEMENT TEAM,MATERIALS,5902293233,1000061299
06.03.2018,ENVIRONMENT DIRECTORATE,CASTLE WATER LTD,397.27,MANAGEMENT TEAM,WATER,5902293133,1000078867
06.03.2018,ENVIRONMENT DIRECTORATE,F R JONES & SON LTD,"4,085.51",NON HOUSING GROUNDS,EQUIPMENT PURCHASE & REPAIR,5902293203,1000037178
06.03.2018,ENVIRONMENT DIRECTORATE,F R JONES & SON LTD,"10,000.00",NON HOUSING GROUNDS,EQUIPMENT PURCHASE & REPAIR,5902293203,1000037178
06.03.2018,ENVIRONMENT DIRECTORATE,ELLIOT ENVIRONMENTAL LTD,400,STREET CLEANING-GENERAL,OTHER CONTRACTORS,5902293236,1000047392
06.03.2018,ENVIRONMENT DIRECTORATE,OPUS INTERNATIONAL CONSULTANTS (UK),"6,240.00",TRANSPORT PROJECTS,CONSULTANTS SERVICES,5902293213,1000080000
06.03.2018,F & C S EXCLUDING CORPORATE BUDGETS,AUDITEL RENTAL & SERVICE LTD,"2,605.00",CONSTITUTIONAL TEAM,OP LEASE/HIRE CHARGES:PLANT/EQUIP/FURNIT,5902293124,1000026622
06.03.2018,HOUSING GENERAL FUND,C & C BUILDERS LTD,890,CAPITAL PS (HOUSING GF),CAPITAL GRANTS,5902293231,1000079100
06.03.2018,HOUSING GENERAL FUND,C & C BUILDERS LTD,"4,420.00",CAPITAL PS (HOUSING GF),CAPITAL GRANTS,5902293231,1000079100
06.03.2018,HOUSING GENERAL FUND,C & C BUILDERS LTD,"11,280.00",CAPITAL PS (HOUSING GF),CAPITAL GRANTS,5902293231,1000079100
06.03.2018,HOUSING HRA,POINT 2 SURVEYORS LTD,"5,038.85",CAPITAL PS (HRA),CONSTRUCTION FEES  - EXTERNAL,5902293120,1000076513
06.03.2018,HOUSING HRA,ENGIE REGENERATION (APOLLO) LTD,"16,200.78",CAPITAL PS (HRA),CONSTRUCTION MAIN CONTRACT -CERTIFICATED,2102789260,4000449
06.03.2018,HOUSING HRA,ENGIE REGENERATION (APOLLO) LTD,"54,212.98",CAPITAL PS (HRA),CONSTRUCTION MAIN CONTRACT -CERTIFICATED,2102789262,4000449
06.03.2018,HOUSING HRA,ENGIE REGENERATION (APOLLO) LTD,"246,770.82",CAPITAL PS (HRA),CONSTRUCTION MAIN CONTRACT -CERTIFICATED,2102789259,4000449
06.03.2018,HOUSING HRA,ENGIE REGENERATION (APOLLO) LTD,"349,706.78",CAPITAL PS (HRA),CONSTRUCTION MAIN CONTRACT -CERTIFICATED,2102789257,4000449
06.03.2018,HOUSING HRA,ENGIE REGENERATION (APOLLO) LTD,"404,929.53",CAPITAL PS (HRA),CONSTRUCTION MAIN CONTRACT -CERTIFICATED,2102789261,4000449
06.03.2018,HOUSING STRATEGY AND OPTIONS,CITY OF LONDON,"1,458.70",HOMELESS & HOUSING OPTIONS MGT,EXTERNAL AGENCIES AND BODIES,5902293148,1000059529
06.03.2018,HOUSING STRATEGY AND OPTIONS,CHARTERED INSTITUTE OF HOUSING,298,HOMELESS & HOUSING OPTIONS MGT,TRAINING,5902293295,1914585
06.03.2018,LEISURE DIRECTORATE,LONDON MOULDMAKERS,"5,000.00",ARTS PROJECT,FREELANCE SPECIALISTS,5902293284,1000080705
06.03.2018,LEISURE DIRECTORATE,ELITE FIRE PROTECTION LTD,"1,408.50",CREMATORIUM,BUILDING R&M,5902293096,1000080269
06.03.2018,LEISURE DIRECTORATE,LONDON TOOLS LIMITED,288,DAMILOLA TAYLOR CENTRE,MATERIALS,5902293216,1000003017
06.03.2018,MODERNISATION HGF,LOWE CONSULTANCY SERVICES LTD,"1,400.00",CHILDREN'S MULTI-AGENCY SAFEGUARDING TRA,TRAINING,5902293135,1000055533
06.03.2018,MODERNISATION HGF,KINGS COLLEGE LONDON,"1,500.00","CSC - PROF DEV, QUALIFICATIONS AND CONSU",TRAINING,5902293205,1000021115
06.03.2018,MODERNISATION HGF,SIGNIS LTD,500,CSW - PROFESSIONAL DEVELOPMENT,TRAINING,5902293119,1000075765
06.03.2018,MODERNISATION HGF,TABRIS LTD,"11,225.00",ILM COSTS,TRAINING,5902293132,1000080027
06.03.2018,PROPERTY SERVICES,GERALD EVE LLP,"3,937.50",MISC INDUSTRIAL PROPERTIES,PROFESSIONAL FEES,5902293172,1000077002
06.03.2018,PUBLIC HEALTH,CROYDON HEALTH SERVICES NHS TRUST,"2,046.50",SEXUAL HEALTH - STI,EXTERNAL AGENCIES AND BODIES,5902293219,1000075399
06.03.2018,REGENERATION,PERSONA ASSOCIATES LTD,"2,623.43",PROFESSIONAL SERVICES (GENERAL),PROFESSIONAL FEES,5902293092,1000080150
06.03.2018,RESIDENT SERVICES,CAMPBELL TICKELL LTD,"3,750.00",HOUSING STRATEGY (HRA),CONSULTANTS SERVICES,5902293157,1000052505
06.03.2018,RESIDENT SERVICES,CAMPBELL TICKELL LTD,"4,500.00",HOUSING STRATEGY (HRA),CONSULTANTS SERVICES,5902293157,1000052505
06.03.2018,RESIDENT SERVICES,LONDON TOOLS LIMITED,260,TA HOSTELS,MATERIALS,5902293269,1000003017
06.03.2018,SOUTHWARK BUILDING SERVICES,LONDON TOOLS LIMITED,370,ROOFERS,MATERIALS,5902293217,1000003017
07.03.2018,ADULT SOCIAL CARE,HYDE HOUSING ASSOCIATION LTD,877.96,EXTRA CARE CONTRACT,RENTS,5902293498,1000013980
07.03.2018,ADULT SOCIAL CARE,HYDE HOUSING ASSOCIATION LTD,877.96,EXTRA CARE CONTRACT,RENTS,5902293501,1000013980
07.03.2018,ADULT SOCIAL CARE,THE CAMDEN SOCIETY (SOCIAL CARE),340.08,LD LTS 18-64,DAYCARE,2102789706,1000036369
07.03.2018,ADULT SOCIAL CARE,THE CAMDEN SOCIETY (SOCIAL CARE),674.16,LD LTS 18-64,DAYCARE,2102789708,1000036369
07.03.2018,ADULT SOCIAL CARE,THE CAMDEN SOCIETY (SOCIAL CARE),859.72,LD LTS 18-64,DAYCARE,2102789716,1000036369
07.03.2018,ADULT SOCIAL CARE,THE CAMDEN SOCIETY (SOCIAL CARE),897.6,LD LTS 18-64,DAYCARE,2102789705,1000036369
07.03.2018,ADULT SOCIAL CARE,THE CAMDEN SOCIETY (SOCIAL CARE),903.8,LD LTS 18-64,DAYCARE,2102789710,1000036369
07.03.2018,ADULT SOCIAL CARE,THE CAMDEN SOCIETY (SOCIAL CARE),936,LD LTS 18-64,DAYCARE,2102789703,1000036369
07.03.2018,ADULT SOCIAL CARE,THE CAMDEN SOCIETY (SOCIAL CARE),"1,536.48",LD LTS 18-64,DAYCARE,2102789713,1000036369
07.03.2018,ADULT SOCIAL CARE,THE CAMDEN SOCIETY (SOCIAL CARE),"1,824.40",LD LTS 18-64,DAYCARE,2102789711,1000036369
07.03.2018,ADULT SOCIAL CARE,THE CAMDEN SOCIETY (SOCIAL CARE),"2,044.00",LD LTS 18-64,DAYCARE,2102789707,1000036369
07.03.2018,ADULT SOCIAL CARE,THE CAMDEN SOCIETY (SOCIAL CARE),"2,075.96",LD LTS 18-64,DAYCARE,2102789719,1000036369
07.03.2018,ADULT SOCIAL CARE,THE CAMDEN SOCIETY (SOCIAL CARE),"2,160.00",LD LTS 18-64,DAYCARE,2102789709,1000036369
07.03.2018,ADULT SOCIAL CARE,THE CAMDEN SOCIETY (SOCIAL CARE),"2,262.84",LD LTS 18-64,DAYCARE,2102789712,1000036369
07.03.2018,ADULT SOCIAL CARE,THE CAMDEN SOCIETY (SOCIAL CARE),"2,372.52",LD LTS 18-64,DAYCARE,2102789714,1000036369
07.03.2018,ADULT SOCIAL CARE,THE CAMDEN SOCIETY (SOCIAL CARE),"2,992.20",LD LTS 18-64,DAYCARE,2102789715,1000036369
07.03.2018,ADULT SOCIAL CARE,THE CAMDEN SOCIETY (SOCIAL CARE),"3,722.20",LD LTS 18-64,DAYCARE,2102789704,1000036369
07.03.2018,ADULT SOCIAL CARE,DARETHEALTHCARE UK LTD,496.44,LD LTS 18-64,HOMECARE - SPOT,2102789759,1000059149
07.03.2018,ADULT SOCIAL CARE,CHOICE SUPPORT,293.92,LD LTS 18-64,SUPPORTED LIVING,2102789764,1104183
07.03.2018,ADULT SOCIAL CARE,CHOICE SUPPORT,"6,935.52",LD LTS 65+,SUPPORTED LIVING,2102789724,1104183
07.03.2018,ADULT SOCIAL CARE,LONDON CARE LTD,302.6,MH LTS 18-64,HOMECARE - C&V,2102789727,1000003398
07.03.2018,ADULT SOCIAL CARE,LONDON CARE LTD,403.44,MH LTS 18-64,HOMECARE - C&V,2102789745,1000003398
07.03.2018,ADULT SOCIAL CARE,LONDON CARE LTD,537.92,MH LTS 18-64,HOMECARE - C&V,2102789731,1000003398
07.03.2018,ADULT SOCIAL CARE,LONDON CARE LTD,706.16,MH LTS 18-64,HOMECARE - C&V,2102789732,1000003398
07.03.2018,ADULT SOCIAL CARE,LONDON CARE LTD,807.16,MH LTS 18-64,HOMECARE - C&V,2102789729,1000003398
07.03.2018,ADULT SOCIAL CARE,DARETHEALTHCARE UK LTD,"1,151.74",MH LTS 18-64,HOMECARE - SPOT,2102789761,1000059149
07.03.2018,ADULT SOCIAL CARE,WESTMINSTER HOMECARE LTD,363.48,MH LTS 18-64,HOMECARE - SPOT,2102789792,1000075287
07.03.2018,ADULT SOCIAL CARE,WESTMINSTER HOMECARE LTD,461.34,MH LTS 18-64,HOMECARE - SPOT,2102789795,1000075287
07.03.2018,ADULT SOCIAL CARE,FREEDOM RECOVERY CENTRE,"2,400.00",MH LTS 18-64,PLACEMENTS - REHAB,2102789814,1000046185
07.03.2018,ADULT SOCIAL CARE,LONDON CARE LTD,268.96,MH LTS 65+,HOMECARE - C&V,2102789735,1000003398
07.03.2018,ADULT SOCIAL CARE,LONDON CARE LTD,493.54,MH LTS 65+,HOMECARE - C&V,2102789737,1000003398
07.03.2018,ADULT SOCIAL CARE,LONDON CARE LTD,672.4,MH LTS 65+,HOMECARE - C&V,2102789726,1000003398
07.03.2018,ADULT SOCIAL CARE,LONDON CARE LTD,"1,143.08",MH LTS 65+,HOMECARE - C&V,2102789739,1000003398
07.03.2018,ADULT SOCIAL CARE,WESTMINSTER HOMECARE LTD,391.44,MH LTS 65+,HOMECARE - SPOT,2102789767,1000075287
07.03.2018,ADULT SOCIAL CARE,WESTMINSTER HOMECARE LTD,531.24,MH LTS 65+,HOMECARE - SPOT,2102789802,1000075287
07.03.2018,ADULT SOCIAL CARE,COWLEY ST INVESTMENTS,"3,687.50",MH PREMISES COSTS,RENTS,2102789857,3000143
07.03.2018,ADULT SOCIAL CARE,COWLEY ST INVESTMENTS,"21,375.00",MH PREMISES COSTS,RENTS,2102789848,3000143
07.03.2018,ADULT SOCIAL CARE,PHOENIX HEALTHCARE & RECRUITMENT,339.36,PHY LTS 18-64,DAYCARE,2102789819,1000065636
07.03.2018,ADULT SOCIAL CARE,WESTMINSTER HOMECARE LTD,671.04,PHY LTS 18-64,HOMECARE - C&V,2102789787,1000075287
07.03.2018,ADULT SOCIAL CARE,CONTACT PROFESSIONALS,931,PHY LTS 18-64,HOMECARE - SPOT,2102789816,1000057263
07.03.2018,ADULT SOCIAL CARE,DARETHEALTHCARE UK LTD,361.98,PHY LTS 18-64,HOMECARE - SPOT,2102789758,1000059149
07.03.2018,ADULT SOCIAL CARE,DARETHEALTHCARE UK LTD,"1,213.52",PHY LTS 18-64,HOMECARE - SPOT,2102789757,1000059149
07.03.2018,ADULT SOCIAL CARE,WESTMINSTER HOMECARE LTD,307.56,PHY LTS 18-64,HOMECARE - SPOT,2102789775,1000075287
07.03.2018,ADULT SOCIAL CARE,WESTMINSTER HOMECARE LTD,461.34,PHY LTS 18-64,HOMECARE - SPOT,2102789774,1000075287
07.03.2018,ADULT SOCIAL CARE,WESTMINSTER HOMECARE LTD,489.3,PHY LTS 18-64,HOMECARE - SPOT,2102789779,1000075287
07.03.2018,ADULT SOCIAL CARE,WESTMINSTER HOMECARE LTD,559.2,PHY LTS 18-64,HOMECARE - SPOT,2102789807,1000075287
07.03.2018,ADULT SOCIAL CARE,WESTMINSTER HOMECARE LTD,573.19,PHY LTS 18-64,HOMECARE - SPOT,2102789799,1000075287
07.03.2018,ADULT SOCIAL CARE,WESTMINSTER HOMECARE LTD,671.16,PHY LTS 18-64,HOMECARE - SPOT,2102789785,1000075287
07.03.2018,ADULT SOCIAL CARE,WESTMINSTER HOMECARE LTD,867.04,PHY LTS 18-64,HOMECARE - SPOT,2102789769,1000075287
07.03.2018,ADULT SOCIAL CARE,WESTMINSTER HOMECARE LTD,"2,562.19",PHY LTS 18-64,HOMECARE - SPOT,2102789782,1000075287
07.03.2018,ADULT SOCIAL CARE,LONDON CARE LTD,260.6,PHY LTS 65+,HOMECARE - C&V,2102789736,1000003398
07.03.2018,ADULT SOCIAL CARE,LONDON CARE LTD,434.1,PHY LTS 65+,HOMECARE - C&V,2102789740,1000003398
07.03.2018,ADULT SOCIAL CARE,DARETHEALTHCARE UK LTD,510.47,PHY LTS 65+,HOMECARE - C&V,2102789762,1000059149
07.03.2018,ADULT SOCIAL CARE,WESTMINSTER HOMECARE LTD,849.42,PHY LTS 65+,HOMECARE - C&V,2102789778,1000075287
07.03.2018,ADULT SOCIAL CARE,WESTMINSTER HOMECARE LTD,"2,160.19",PHY LTS 65+,HOMECARE - C&V,2102789798,1000075287
07.03.2018,ADULT SOCIAL CARE,SWK DISABLEMENT ASSN,"1,964.16",PHY LTS 65+,HOMECARE - SPOT,2102789717,1000011698
07.03.2018,ADULT SOCIAL CARE,DARETHEALTHCARE UK LTD,261.96,PHY LTS 65+,HOMECARE - SPOT,2102789750,1000059149
07.03.2018,ADULT SOCIAL CARE,DARETHEALTHCARE UK LTD,537.76,PHY LTS 65+,HOMECARE - SPOT,2102789752,1000059149
07.03.2018,ADULT SOCIAL CARE,DARETHEALTHCARE UK LTD,"1,510.54",PHY LTS 65+,HOMECARE - SPOT,2102789755,1000059149
07.03.2018,ADULT SOCIAL CARE,WESTMINSTER HOMECARE LTD,276.16,PHY LTS 65+,HOMECARE - SPOT,2102789797,1000075287
07.03.2018,ADULT SOCIAL CARE,WESTMINSTER HOMECARE LTD,283.23,PHY LTS 65+,HOMECARE - SPOT,2102789788,1000075287
07.03.2018,ADULT SOCIAL CARE,WESTMINSTER HOMECARE LTD,286.67,PHY LTS 65+,HOMECARE - SPOT,2102789781,1000075287
07.03.2018,ADULT SOCIAL CARE,WESTMINSTER HOMECARE LTD,293.72,PHY LTS 65+,HOMECARE - SPOT,2102789765,1000075287
07.03.2018,ADULT SOCIAL CARE,WESTMINSTER HOMECARE LTD,293.72,PHY LTS 65+,HOMECARE - SPOT,2102789783,1000075287
07.03.2018,ADULT SOCIAL CARE,WESTMINSTER HOMECARE LTD,349.6,PHY LTS 65+,HOMECARE - SPOT,2102789766,1000075287
07.03.2018,ADULT SOCIAL CARE,WESTMINSTER HOMECARE LTD,517.4,PHY LTS 65+,HOMECARE - SPOT,2102789772,1000075287
07.03.2018,ADULT SOCIAL CARE,WESTMINSTER HOMECARE LTD,559.2,PHY LTS 65+,HOMECARE - SPOT,2102789805,1000075287
07.03.2018,ADULT SOCIAL CARE,WESTMINSTER HOMECARE LTD,587.16,PHY LTS 65+,HOMECARE - SPOT,2102789777,1000075287
07.03.2018,ADULT SOCIAL CARE,WESTMINSTER HOMECARE LTD,587.16,PHY LTS 65+,HOMECARE - SPOT,2102789806,1000075287
07.03.2018,ADULT SOCIAL CARE,WESTMINSTER HOMECARE LTD,671.16,PHY LTS 65+,HOMECARE - SPOT,2102789786,1000075287
07.03.2018,ADULT SOCIAL CARE,WESTMINSTER HOMECARE LTD,880.88,PHY LTS 65+,HOMECARE - SPOT,2102789784,1000075287
07.03.2018,ADULT SOCIAL CARE,WESTMINSTER HOMECARE LTD,901.81,PHY LTS 65+,HOMECARE - SPOT,2102789801,1000075287
07.03.2018,ADULT SOCIAL CARE,WESTMINSTER HOMECARE LTD,"1,090.69",PHY LTS 65+,HOMECARE - SPOT,2102789780,1000075287
07.03.2018,ADULT SOCIAL CARE,WESTMINSTER HOMECARE LTD,"1,174.32",PHY LTS 65+,HOMECARE - SPOT,2102789791,1000075287
07.03.2018,ADULT SOCIAL CARE,WESTMINSTER HOMECARE LTD,"1,230.52",PHY LTS 65+,HOMECARE - SPOT,2102789768,1000075287
07.03.2018,ADULT SOCIAL CARE,WESTMINSTER HOMECARE LTD,"1,873.60",PHY LTS 65+,HOMECARE - SPOT,2102789773,1000075287
07.03.2018,ADULT SOCIAL CARE,WESTMINSTER HOMECARE LTD,"1,999.56",PHY LTS 65+,HOMECARE - SPOT,2102789808,1000075287
07.03.2018,ADULT SOCIAL CARE,WESTMINSTER HOMECARE LTD,"2,153.20",PHY LTS 65+,HOMECARE - SPOT,2102789771,1000075287
07.03.2018,ADULT SOCIAL CARE,WESTMINSTER HOMECARE LTD,"2,369.90",PHY LTS 65+,HOMECARE - SPOT,2102789800,1000075287
07.03.2018,ADULT SOCIAL CARE,GREENWRITE HEALTHCARE LTD,344.75,PHY LTS 65+,HOMECARE - SPOT,2102789725,1000080718
07.03.2018,ADULT SOCIAL CARE,GREENWRITE HEALTHCARE LTD,"1,447.98",PHY LTS 65+,HOMECARE - SPOT,2102789722,1000080718
07.03.2018,ADULT SOCIAL CARE,SHARED CARE SERVICES LTD,320,SPECIALIST CARE,SECTION 17 PAYMENTS TO AGENCIES/CARERS,5902293513,1000080308
07.03.2018,ADULT SOCIAL CARE,KAIROS COMMUNITY TRUST,"1,626.46",SUB LTS 18-64,DAYCARE,2102789812,1000025479
07.03.2018,ADULT SOCIAL CARE,FREEDOM RECOVERY CENTRE,"1,040.00",SUB LTS 18-64,DAYCARE,2102789809,1000046185
07.03.2018,ADULT SOCIAL CARE,STREETSCENE ADDICTION RECOVERY,"1,080.00",SUB LTS 18-64,PLACEMENTS - REHAB,2102789763,11221787
07.03.2018,ADULT SOCIAL CARE,FREEDOM RECOVERY CENTRE,430,SUB LTS 18-64,PLACEMENTS - REHAB,2102789811,1000046185
07.03.2018,ADULT SOCIAL CARE,ARGOS,450.48,SUPPORTED LIVING COSTS,OTHER R&M,5902292600,1000049527
07.03.2018,ASSET MANAGEMENT,STEPHEN EVANS,340,DISREPAIR,LEGAL FEES & COURT COSTS,2102790003,1000043318
07.03.2018,ASSET MANAGEMENT,STEPHEN EVANS,595,DISREPAIR,LEGAL FEES & COURT COSTS,2102790001,1000043318
07.03.2018,ASSET MANAGEMENT,STEPHEN EVANS,680,DISREPAIR,LEGAL FEES & COURT COSTS,2102790002,1000043318
07.03.2018,ASSET MANAGEMENT,A & E ELKINS LTD,"3,562.50",VISIBLE DIFFERENCE (SOUTH),BUILDING R&M,2102789343,4012501
07.03.2018,ASSET MANAGEMENT,A & E ELKINS LTD,"7,718.75",VISIBLE DIFFERENCE (SOUTH),BUILDING R&M,2102789342,4012501
07.03.2018,CENTRAL FUNCTIONS,STANDAGE & CO LTD,"19,410.00",AYLESBURY,SECURITY SERVICES,2102789340,4002817
07.03.2018,CENTRAL FUNCTIONS,STANDAGE & CO LTD,"27,098.00",AYLESBURY,SECURITY SERVICES,2102789339,4002817
07.03.2018,CENTRAL FUNCTIONS,OCO LIMITED,"2,794.37",AYLESBURY SECURITY,OTHER R&M,5902293512,1006066
07.03.2018,CENTRAL FUNCTIONS,WYATT CARRUTHERS JEBB LTD,"1,283.80",COMMERCIAL PROPERTIES,BUILDING R&M,5902293421,1000060483
07.03.2018,CENTRAL FUNCTIONS,STANBURY BUILDING SERVICES LTD,350,COMMERCIAL PROPERTIES,BUILDING R&M,5902293355,1000078207
07.03.2018,CENTRAL FUNCTIONS,PAYE STONEWORK & RESTORATION LTD,"47,885.73",COMMERCIAL PROPERTIES,BUILDING R&M,2102789334,3000001445
07.03.2018,CENTRAL FUNCTIONS,STANBURY BUILDING SERVICES LTD,450,COMMERCIAL PROPERTIES,BUILDING R&M,2102789927,3000001967
07.03.2018,CENTRAL FUNCTIONS,STANBURY BUILDING SERVICES LTD,595,COMMERCIAL PROPERTIES,BUILDING R&M,2102789925,3000001967
07.03.2018,CENTRAL FUNCTIONS,STANBURY BUILDING SERVICES LTD,645,COMMERCIAL PROPERTIES,BUILDING R&M,2102789926,3000001967
07.03.2018,CENTRAL FUNCTIONS,STANBURY BUILDING SERVICES LTD,"1,800.00",COMMERCIAL PROPERTIES,BUILDING R&M,2102789928,3000001967
07.03.2018,CENTRAL FUNCTIONS,ANDREW SKELLY,712.5,COMMERCIAL PROPERTIES,LEGAL FEES & COURT COSTS,2102789941,1000069248
07.03.2018,CENTRAL FUNCTIONS,LONDON REGIONAL TRANSPORT,"4,250.00",COMMERCIAL PROPERTIES,RENTS,2102789863,3000393
07.03.2018,CENTRAL FUNCTIONS,NORTHGATE PUBLIC SERVICES (UK) LTD,"9,000.00",HOME OWNERSHIP,TRAINING,5902293405,1000037405
07.03.2018,CHIEF EXECUTIVE,ROSPA ENTERPRISES LTD,483,CAPITAL PS (REGEN),CONSTRUCTION FEES  - EXTERNAL,5902293366,11096914
07.03.2018,CHIEF EXECUTIVE'S OFFICE,J C CONSULTANT SERVICES LTD,"8,000.00",CHIEF EXEC'S OFFICE,GRANTS,5902293363,1000042476
07.03.2018,CHIEF EXECUTIVE'S OFFICE,SAVILLS (UK) LTD,"5,254.00",CHIEF EXEC'S OFFICE,RENTS,2102789870,1000023005
07.03.2018,CHILDREN AND ADULT,INTERSERVE (FACILITIES MANAGEMENT),"67,187.50",CAPITAL PS (SOC SERV),CONSTRUCTION MAIN CONTRACT -CERTIFICATED,2102789333,3000000166
07.03.2018,CHILDREN AND ADULT,INTERSERVE (FACILITIES MANAGEMENT),"83,263.49",CAPITAL PS (SOC SERV),CONSTRUCTION MAIN CONTRACT -CERTIFICATED,2102789333,3000000166
07.03.2018,CHILDREN'S SERVICES,FLEET TUTORS,"-5,193.00",ALTERNATIVE PROVISION,EXTERNAL AGENCIES AND BODIES,5902293338,1000044820
07.03.2018,CHILDREN'S SERVICES,WINCHMORE TUTORS LTD,340,ALTERNATIVE PROVISION,EXTERNAL AGENCIES AND BODIES,5902293375,1000075298
07.03.2018,CHILDREN'S SERVICES,WINCHMORE TUTORS LTD,460,ALTERNATIVE PROVISION,EXTERNAL AGENCIES AND BODIES,5902293378,1000075298
07.03.2018,CHILDREN'S SERVICES,WINCHMORE TUTORS LTD,"1,780.00",ALTERNATIVE PROVISION,EXTERNAL AGENCIES AND BODIES,5902293380,1000075298
07.03.2018,CHILDREN'S SERVICES,WINCHMORE TUTORS LTD,"5,820.00",ALTERNATIVE PROVISION,EXTERNAL AGENCIES AND BODIES,5902293379,1000075298
07.03.2018,CHILDREN'S SERVICES,DECUS LTD,"6,600.00",ASSISSTANT DIRECTOR (CHILDREN),PROFESSIONAL FEES,5902293505,1000080190
07.03.2018,CHILDREN'S SERVICES,REDACTED PERSONAL DATA,252.99,CARE GRPS  1 TO 3,OTHER PAYMENTS FOR CLIENTS,REDACTED,REDACTED
07.03.2018,CHILDREN'S SERVICES,REDACTED PERSONAL DATA,"-21,892.32",DISABILITY & HIV,PAYMENTS TO CARERS,REDACTED,REDACTED
07.03.2018,CHILDREN'S SERVICES,REDACTED PERSONAL DATA,"21,692.32",DISABILITY & HIV,PAYMENTS TO CARERS,REDACTED,REDACTED
07.03.2018,CHILDREN'S SERVICES,DAYBREAK FAMILY GROUP CONFERENCES,"6,825.00",FAMILY GROUP CONFERENCES,EXTERNAL AGENCIES AND BODIES,5902293537,1000072832
07.03.2018,CHILDREN'S SERVICES,INTERPRETING DIRECT CO (UK) LTD,"6,298.00",FINANCE,INTERPRETING SERVICES,5902293527,1000070133
07.03.2018,CHILDREN'S SERVICES,REDACTED PERSONAL DATA,300,FURTHER EDUCATION SUPPORT,CLIENT TRANSPORT,REDACTED,REDACTED
07.03.2018,CHILDREN'S SERVICES,REDACTED PERSONAL DATA,500,FURTHER EDUCATION SUPPORT,OTHER PAYMENTS FOR CLIENTS,REDACTED,REDACTED
07.03.2018,CHILDREN'S SERVICES,CRUCKTON HALL SCHOOL,544.36,HOME 2 SCHOOL TRANSPORT,OTHER PAYMENTS FOR CLIENTS,5902293387,1000060937
07.03.2018,CHILDREN'S SERVICES,EQUAL EDUCATION LTD,450,LAC EDUCATION,EXTERNAL AGENCIES AND BODIES,5902293383,1000077423
07.03.2018,CHILDREN'S SERVICES,REDACTED PERSONAL DATA,325,LEGAL,LEGAL FEES & COURT COSTS,REDACTED,REDACTED
07.03.2018,CHILDREN'S SERVICES,RICHARD CLOUGH,300,LEGAL,LEGAL FEES & COURT COSTS,2102789993,1000051147
07.03.2018,CHILDREN'S SERVICES,RICHARD CLOUGH,375,LEGAL,LEGAL FEES & COURT COSTS,2102789992,1000051147
07.03.2018,CHILDREN'S SERVICES,RICHARD BEDDOE,"2,425.00",LEGAL,LEGAL FEES & COURT COSTS,2102789990,1000051148
07.03.2018,CHILDREN'S SERVICES,DEBORAH SEITLER,450,LEGAL,LEGAL FEES & COURT COSTS,2102789958,1000059125
07.03.2018,CHILDREN'S SERVICES,RANJIT SINGH,635,LEGAL,LEGAL FEES & COURT COSTS,2102789989,1000063542
07.03.2018,CHILDREN'S SERVICES,PAULA DIAZ,325,LEGAL,LEGAL FEES & COURT COSTS,2102789988,1000063943
07.03.2018,CHILDREN'S SERVICES,PAULA DIAZ,475,LEGAL,LEGAL FEES & COURT COSTS,2102789986,1000063943
07.03.2018,CHILDREN'S SERVICES,MARTINA VAN DER LEIJ,400,LEGAL,LEGAL FEES & COURT COSTS,2102789978,1000068753
07.03.2018,CHILDREN'S SERVICES,FRANCIS WILKINSON,350,LEGAL,LEGAL FEES & COURT COSTS,2102789964,1000068760
07.03.2018,CHILDREN'S SERVICES,DEBORAH BRYAN,375,LEGAL,LEGAL FEES & COURT COSTS,2102789956,1000072679
07.03.2018,CHILDREN'S SERVICES,DR SARA HUNTON,600,LEGAL,LEGAL FEES & COURT COSTS,2102789998,1000073021
07.03.2018,CHILDREN'S SERVICES,DR SARA HUNTON,600,LEGAL,LEGAL FEES & COURT COSTS,2102789999,1000073021
07.03.2018,CHILDREN'S SERVICES,DR SARA HUNTON,700,LEGAL,LEGAL FEES & COURT COSTS,2102790000,1000073021
07.03.2018,CHILDREN'S SERVICES,DR SARA HUNTON,"1,450.00",LEGAL,LEGAL FEES & COURT COSTS,2102789997,1000073021
07.03.2018,CHILDREN'S SERVICES,RICHARD HARRIS,475,LEGAL,LEGAL FEES & COURT COSTS,2102789994,1000075786
07.03.2018,CHILDREN'S SERVICES,CLIVE REDLEY,"1,875.00",LEGAL,LEGAL FEES & COURT COSTS,2102789953,1000078306
07.03.2018,CHILDREN'S SERVICES,MATTHEW WARMOTH,918.75,LEGAL,LEGAL FEES & COURT COSTS,2102789981,1000079136
07.03.2018,CHILDREN'S SERVICES,ALASTAIR MARTEY,275,LEGAL,LEGAL FEES & COURT COSTS,2102789931,1000080858
07.03.2018,CHILDREN'S SERVICES,ALASTAIR MARTEY,395.83,LEGAL,LEGAL FEES & COURT COSTS,2102789934,1000080858
07.03.2018,CHILDREN'S SERVICES,ALASTAIR MARTEY,600,LEGAL,LEGAL FEES & COURT COSTS,2102789929,1000080858
07.03.2018,CHILDREN'S SERVICES,ALASTAIR MARTEY,600,LEGAL,LEGAL FEES & COURT COSTS,2102789930,1000080858
07.03.2018,CHILDREN'S SERVICES,ALASTAIR MARTEY,600,LEGAL,LEGAL FEES & COURT COSTS,2102789932,1000080858
07.03.2018,CHILDREN'S SERVICES,ALASTAIR MARTEY,"1,250.00",LEGAL,LEGAL FEES & COURT COSTS,2102789933,1000080858
07.03.2018,CHILDREN'S SERVICES,CANADA WATER CULTURE SPACE,322.47,POST ADOPTION ADVISE & SUPPORT,HIRE OF ROOMS/HALLS,5902293441,1000075539
07.03.2018,CHILDREN'S SERVICES,FLEET TUTORS,"14,526.26",PUPIL PREMIUM CURRENT YEAR,EXTERNAL AGENCIES AND BODIES,5902293418,1000044820
07.03.2018,CHILDREN'S SERVICES,FLEET TUTORS,"22,553.00",PUPIL PREMIUM CURRENT YEAR,EXTERNAL AGENCIES AND BODIES,5902293420,1000044820
07.03.2018,CHILDREN'S SERVICES,KENT COUNTY COUNCIL - LASER,864.04,SOUTH BERMONDSEY CHILDRENS & PARENTS CNT,INTERPRETING SERVICES,5902293555,1000012926
07.03.2018,CHILDREN'S SERVICES,REDACTED PERSONAL DATA,371.45,SPECIAL GUARDIANSHIP,PAYMENTS TO CARERS,REDACTED,REDACTED
07.03.2018,CHILDREN'S SERVICES,REDACTED PERSONAL DATA,300,SPECIAL GUARDIANSHIP,PAYMENTS TO CARERS,REDACTED,REDACTED
07.03.2018,CHILDREN'S SERVICES,REDACTED PERSONAL DATA,303.94,SPECIAL GUARDIANSHIP,PAYMENTS TO CARERS,REDACTED,REDACTED
07.03.2018,CHILDREN'S SERVICES,REDACTED PERSONAL DATA,450,SPECIAL GUARDIANSHIP,PAYMENTS TO CARERS,REDACTED,REDACTED
07.03.2018,CHILDREN'S SERVICES,REDACTED PERSONAL DATA,450,SPECIAL GUARDIANSHIP,PAYMENTS TO CARERS,REDACTED,REDACTED
07.03.2018,CHILDREN'S SERVICES,REDACTED PERSONAL DATA,450,SPECIAL GUARDIANSHIP,PAYMENTS TO CARERS,REDACTED,REDACTED
07.03.2018,CHILDREN'S SERVICES,REDACTED PERSONAL DATA,260.55,SPECIAL GUARDIANSHIP,PAYMENTS TO CARERS,REDACTED,REDACTED
07.03.2018,CHILDREN'S SERVICES,REDACTED PERSONAL DATA,254.33,UASC SECTION 24,OTHER PAYMENTS FOR CLIENTS,REDACTED,REDACTED
07.03.2018,COMMUNITIES,CITYGLEN LTD,"1,240.00",NRPF PHYSICAL DISABILITIES,NATIONAL ASSISTANCE,2102789723,1000026239
07.03.2018,COMMUNITIES,CANON UK LTD,716.07,TENANTS FUND,OP LEASE/HIRE CHARGES:PLANT/EQUIP/FURNIT,5902293502,1000015046
07.03.2018,COMMUNITIES,CANON UK LTD,716.07,TENANTS FUND,OP LEASE/HIRE CHARGES:PLANT/EQUIP/FURNIT,5902293507,1000015046
07.03.2018,COMMUNITIES,CANON UK LTD,807.56,TENANTS FUND,OP LEASE/HIRE CHARGES:PLANT/EQUIP/FURNIT,5902293510,1000015046
07.03.2018,CUSTOMER EXPERIENCE,SHELTER TRAINING LTD,"31,500.00",HOUSING NEEDS,OFFICE EXPENSES,5902293404,1000033177
07.03.2018,CUSTOMER EXPERIENCE HGF,CASTLE WATER LTD,640,CORONER'S,WATER,5902293519,1000078867
07.03.2018,CUSTOMER EXPERIENCE HGF,WANDLE HOUSING ASSOCIATION,"25,631.25",CUSTOMER SUPPORT,RENTS,2102789864,1039321
07.03.2018,CUSTOMER EXPERIENCE HGF,REDACTED PERSONAL DATA,"7,600.00",NIGHTLY TA (NSC),EXTERNAL AGENCIES AND BODIES,REDACTED,REDACTED
07.03.2018,CUSTOMER EXPERIENCE HGF,A & M PROPERTY AND CONSTRUCTION LTD,"22,071.00",NIGHTLY TA (NSC),EXTERNAL AGENCIES AND BODIES,5902293391,1000014564
07.03.2018,CUSTOMER EXPERIENCE HGF,HOMELY HOUSING LETS LTD,"3,290.00",NIGHTLY TA (NSC),EXTERNAL AGENCIES AND BODIES,5902293479,1000050013
07.03.2018,CUSTOMER EXPERIENCE HGF,SHUTTLEWORTH (UK) LTD,"43,155.00",NIGHTLY TA (NSC),EXTERNAL AGENCIES AND BODIES,5902293382,1000056468
07.03.2018,CUSTOMER EXPERIENCE HGF,EDEN ESTATES LONDON LTD,"29,890.00",NIGHTLY TA (NSC),EXTERNAL AGENCIES AND BODIES,5902293550,1000061217
07.03.2018,CUSTOMER EXPERIENCE HGF,ADJAKUBURA TAIWO & OLWASOLA AKINADE,612.86,PRIVATE SECTOR LEASING,EXTERNAL AGENCIES AND BODIES,2102789872,1000080811
07.03.2018,CUSTOMER EXPERIENCE HGF,ADJAKUBURA TAIWO & OLWASOLA AKINADE,"3,000.00",PRIVATE SECTOR LEASING,EXTERNAL AGENCIES AND BODIES,2102789873,1000080811
07.03.2018,CUSTOMER EXPERIENCE HGF,OAK HOUSING LTD,"2,298.80",PSL PLACEMENTS,EXTERNAL AGENCIES AND BODIES,5902293543,1000079310
07.03.2018,CUSTOMER EXPERIENCE HGF,BUILDING MONITORING SERVICES LTD,418.21,REGISTRARS,BUILDING R&M,5902293486,1000063798
07.03.2018,ELECTORAL SVCES,ABOUT THIS VAN,"4,166.67",BOROUGH COUNCIL ELECTIONS,MISCELLANEOUS EXPENSES,5902293529,1000039842
07.03.2018,ELECTORAL SVCES,RED R DESIGN,825,ELECTORAL REGISTRATION,MARKETING & PUBLICITY SERVICES,5902293324,1000035984
07.03.2018,ENVIRONMENT AND SOCIAL REGENERATION,EDWARDES BROS (DULWICH) LTD,577.8,STORES/LOGISTICS,CREDITORS -GR/IR CLEARING ACCOUNT,5902293368,1004945
07.03.2018,ENVIRONMENT AND SOCIAL REGENERATION,EDWARDES BROS (DULWICH) LTD,706.2,STORES/LOGISTICS,CREDITORS -GR/IR CLEARING ACCOUNT,5902293367,1004945
07.03.2018,ENVIRONMENT AND SOCIAL REGENERATION,TOUCAN TOOL CO LTD,"1,755.25",STORES/LOGISTICS,CREDITORS -GR/IR CLEARING ACCOUNT,5902293335,1395125
07.03.2018,ENVIRONMENT AND SOCIAL REGENERATION,CROSSFOLD ELECTRICAL WHOLESALERS,779.4,STORES/LOGISTICS,CREDITORS -GR/IR CLEARING ACCOUNT,5902293337,1918395
07.03.2018,ENVIRONMENT AND SOCIAL REGENERATION,PPG ARCHITECTURAL COATINGS,280.5,STORES/LOGISTICS,CREDITORS -GR/IR CLEARING ACCOUNT,5902293417,11063178
07.03.2018,ENVIRONMENT AND SOCIAL REGENERATION,PPG ARCHITECTURAL COATINGS,280.5,STORES/LOGISTICS,CREDITORS -GR/IR CLEARING ACCOUNT,5902293417,11063178
07.03.2018,ENVIRONMENT AND SOCIAL REGENERATION,EYRE & ELLISTON LTD,"1,232.00",STORES/LOGISTICS,CREDITORS -GR/IR CLEARING ACCOUNT,5902293340,1000056664
07.03.2018,ENVIRONMENT DIRECTORATE,CLOSE BROTHERS VEHICLE HIRE LTD,288,COMMERCIAL VEH CTRL A/C,HIRED VEHICLES,5902293332,1000074394
07.03.2018,ENVIRONMENT DIRECTORATE,CLOSE BROTHERS VEHICLE HIRE LTD,288,COMMERCIAL VEH CTRL A/C,HIRED VEHICLES,5902293395,1000074394
07.03.2018,ENVIRONMENT DIRECTORATE,CLOSE BROTHERS VEHICLE HIRE LTD,335,COMMERCIAL VEH CTRL A/C,HIRED VEHICLES,5902293330,1000074394
07.03.2018,ENVIRONMENT DIRECTORATE,SCOT GROUP LIMITED,740.4,FLEET INSURANCE WORKS,TRANSPORT INSURANCE COSTS,5902293435,1709512
07.03.2018,ENVIRONMENT DIRECTORATE,GARY GRANT,600,LICENSING,LEGAL FEES & COURT COSTS,2102789967,1000056929
07.03.2018,ENVIRONMENT DIRECTORATE,GARY GRANT,"1,250.00",LICENSING,LEGAL FEES & COURT COSTS,2102789965,1000056929
07.03.2018,ENVIRONMENT DIRECTORATE,GARY GRANT,"1,320.00",LICENSING,LEGAL FEES & COURT COSTS,2102789966,1000056929
07.03.2018,ENVIRONMENT DIRECTORATE,OFFICE DEPOT UK LTD,-546.75,MANAGEMENT TEAM,STATIONERY,5902293575,1109426
07.03.2018,ENVIRONMENT DIRECTORATE,OFFICE DEPOT UK LTD,"1,189.73",MANAGEMENT TEAM,STATIONERY,5902293572,1109426
07.03.2018,ENVIRONMENT DIRECTORATE,APCOA PARKING (UK) LTD,"84,269.13",PARKING OVERHEADS,OTHER CONTRACTORS,5902293272,1718645
07.03.2018,ENVIRONMENT DIRECTORATE,NPOWER LTD,305.98,STREET TRADING A/C,ELECTRICITY,5902293515,1000078994
07.03.2018,ENVIRONMENT DIRECTORATE,NPOWER LTD,380.31,STREET TRADING A/C,ELECTRICITY,5902293528,1000078994
07.03.2018,ENVIRONMENT DIRECTORATE,NPOWER LTD,405.03,STREET TRADING A/C,ELECTRICITY,5902293520,1000078994
07.03.2018,ENVIRONMENT DIRECTORATE,HENDERSON UK PROPERTY PAIF,"1,750.00",STREET TRADING A/C,RENTS,2102789860,1000080250
07.03.2018,F & C S EXCLUDING CORPORATE BUDGETS,SOCIAL WELFARE TRAINING,380,ADMINISTRATIVE SUPPORT,TRAINING,5902293494,1000070375
07.03.2018,F & C S EXCLUDING CORPORATE BUDGETS,NATIONAL UNION OF TEACHERS,400,CORPORATE SERVICES,LEGAL FEES & COURT COSTS,2102789985,1000051447
07.03.2018,HOUSING HRA,C&C BUILDERS LTD,770,CAPITAL PS (HRA),CONST'N MAIN CONTRACT - NON CERTIFICATED,2102789344,3000001986
07.03.2018,HOUSING HRA,C&C BUILDERS LTD,"5,888.15",CAPITAL PS (HRA),CONST'N MAIN CONTRACT - NON CERTIFICATED,2102789346,3000001986
07.03.2018,HOUSING HRA,C&C BUILDERS LTD,"6,815.20",CAPITAL PS (HRA),CONST'N MAIN CONTRACT - NON CERTIFICATED,2102789345,3000001986
07.03.2018,HOUSING HRA,DDS DEMOLITION,"52,915.95",CAPITAL PS (HRA),CONSTRUCTION FEES,5902293409,1000080745
07.03.2018,HOUSING HRA,CALFORD SEADEN LLP,888,CAPITAL PS (HRA),CONSTRUCTION FEES  - EXTERNAL,5902293365,1061592
07.03.2018,HOUSING HRA,CALFORD SEADEN LLP,"1,291.58",CAPITAL PS (HRA),CONSTRUCTION FEES  - EXTERNAL,5902293364,1061592
07.03.2018,HOUSING HRA,CALFORD SEADEN LLP,"6,690.46",CAPITAL PS (HRA),CONSTRUCTION FEES  - EXTERNAL,5902293398,1061592
07.03.2018,HOUSING HRA,CALFORD SEADEN LLP,"7,007.97",CAPITAL PS (HRA),CONSTRUCTION FEES  - EXTERNAL,5902293424,1061592
07.03.2018,HOUSING HRA,CALFORD SEADEN LLP,"38,724.30",CAPITAL PS (HRA),CONSTRUCTION FEES  - EXTERNAL,5902293425,1061592
07.03.2018,HOUSING HRA,VPS (UK) LTD,686.9,CAPITAL PS (HRA),CONSTRUCTION FEES  - EXTERNAL,5902293356,1000040614
07.03.2018,HOUSING HRA,A & E ELKINS LTD,"138,522.10",CAPITAL PS (HRA),CONSTRUCTION MAIN CONTRACT -CERTIFICATED,2102789341,4012501
07.03.2018,HOUSING HRA,SALTASH ENTERPRISES LTD,"19,636.00",CAPITAL PS (HRA),CONSTRUCTION MAIN CONTRACT -CERTIFICATED,2102789337,4013605
07.03.2018,HOUSING HRA,SCCI ALPHATRACK LTD,"28,280.00",CAPITAL PS (HRA),UTILITIES INSTALLATION,5902293393,1000071955
07.03.2018,HOUSING STRATEGY AND OPTIONS,LONDON RENTALS AND SALES LTD,966.12,HOMELESS PROJECTS,GRANTS,5902293568,1000065882
07.03.2018,HOUSING STRATEGY AND OPTIONS,LONDON RENTALS AND SALES LTD,"1,224.47",HOMELESS PROJECTS,GRANTS,5902293561,1000065882
07.03.2018,HOUSING STRATEGY AND OPTIONS,LONDON RENTALS AND SALES LTD,"3,000.00",HOMELESS PROJECTS,GRANTS,5902293564,1000065882
07.03.2018,LEISURE DIRECTORATE,P D CONSTRUCTION LTD,350,ACCOMODATION,PLANNED MAINTENANCE,2102789338,4001883
07.03.2018,LEISURE DIRECTORATE,P D CONSTRUCTION LTD,552,ACCOMODATION,PLANNED MAINTENANCE,2102789335,4001883
07.03.2018,LEISURE DIRECTORATE,THE DULWICH ESTATE,468.75,ACCOMODATION,RENTS,2102789834,3000036
07.03.2018,LEISURE DIRECTORATE,THE DULWICH ESTATE,750,ACCOMODATION,RENTS,2102789839,3000036
07.03.2018,LEISURE DIRECTORATE,THE DULWICH ESTATE,"10,718.75",ACCOMODATION,RENTS,2102789851,3000036
07.03.2018,LEISURE DIRECTORATE,CONSTANTINE LIMITED,467.53,COLLECTIONS MANAGEMENT,OFFICE EXPENSES,5902293546,11202702
07.03.2018,LEISURE DIRECTORATE,CONSTANTINE LIMITED,"3,473.63",COLLECTIONS MANAGEMENT,OFFICE EXPENSES,5902293545,11202702
07.03.2018,LEISURE DIRECTORATE,M H & V M WILMOT,"11,000.00",GROVE VALE LIBRARY,RENTS,2102789866,1000060584
07.03.2018,LEISURE DIRECTORATE,THE DULWICH ESTATE,500,HOMERSTALL ROAD SPORTS GROUND,RENTS,2102789859,3000036
07.03.2018,LEISURE DIRECTORATE,THE DULWICH ESTATE,"1,210.00",HOMERSTALL ROAD SPORTS GROUND,RENTS,2102789835,3000036
07.03.2018,LEISURE DIRECTORATE,THE DULWICH ESTATE,"2,975.00",HOMERSTALL ROAD SPORTS GROUND,RENTS,2102789844,3000036
07.03.2018,LEISURE DIRECTORATE,THE DULWICH ESTATE,"5,339.50",HOMERSTALL ROAD SPORTS GROUND,RENTS,2102789865,3000036
07.03.2018,LEISURE DIRECTORATE,SUNKEN TRAMPOLINES LTD,810.81,SOUTHWARK AREA TEAM,OTHER R&M,5902293457,1000080574
07.03.2018,MODERNISATION HGF,NETWORK RAIL INFRASTRUCTURE LTD,"3,225.00",160 TOOLEY ST.,RENTS,2102789861,1000061958
07.03.2018,MODERNISATION HGF,M J MAPP LTD,"32,750.00",47B EAST DULWICH ROAD,RENTS,2102789869,1000056816
07.03.2018,MODERNISATION HGF,M J MAPP LTD,"2,117.25",47B EAST DULWICH ROAD,SERVICE CHARGES,2102789830,1000056816
07.03.2018,MODERNISATION HGF,THEATRE PECKHAM,800,CSW - PROFESSIONAL DEVELOPMENT,TRAINING,5902293389,1071668
07.03.2018,MODERNISATION HGF,CHATTLEWELL LTD,"173,375.00",QUEENS RD 1 (BLOCK F),RENTS,2102789862,1000073937
07.03.2018,MODERNISATION HGF,READSPEAKER LTD,"1,300.00",WEBSITE TEAM,PROFESSIONAL FEES,5902293372,1000057205
07.03.2018,MODERNISATION HGF,WEB-LABS LTD,"4,000.00",WEBSITE TEAM,SOFTWARE,5902293377,1000039819
07.03.2018,PLANNING AND TRANSPORT,ANDREW DAVIES,500,BUM & SUPPORT COSTS,LEGAL FEES & COURT COSTS,2102789938,1000079503
07.03.2018,PLANNING AND TRANSPORT,BNP PARIBAS REAL ESTATE ADVISORY & PROPERTY MANAGEMENT,"22,681.00",PLANNING POLICY TEAM,CONSULTANTS SERVICES,5902293388,1000053153
07.03.2018,PROPERTY SERVICES,BRITISH GAS BUSINESS,"1,353.54",5/5A WESTMINSTER BRIDGE ROAD.,GAS,5902293541,1000054825
07.03.2018,PROPERTY SERVICES,CASTLE WATER LTD,534.59,5/5A WESTMINSTER BRIDGE ROAD.,WATER,5902293443,1000078867
07.03.2018,PROPERTY SERVICES,ALI EKBER BULUT,"1,150.68",CPHA  MANAGED PROPERTIES,RENTS,2102789367,1000080799
07.03.2018,PROPERTY SERVICES,ALI EKBER BULUT,"1,750.00",CPHA  MANAGED PROPERTIES,RENTS,2102789368,1000080799
07.03.2018,PROPERTY SERVICES,ALI EKBER BULUT,"1,750.00",CPHA  MANAGED PROPERTIES,RENTS,2102789369,1000080799
07.03.2018,PROPERTY SERVICES,GOVERNORS OF WILSONS SCHOOL,"12,500.00",CPHA SURPLUS,RENTS,2102789838,3000767
07.03.2018,PROPERTY SERVICES,CASTLE WATER LTD,574.67,KENNINGTON WORKSHOPS,WATER,5902293438,1000078867
07.03.2018,PROPERTY SERVICES,COVERED MARKETS LTD,"65,000.00",SANDGATE ST INDUSTRIAL ESTATE,RENTS,2102789840,3000134
07.03.2018,PROPERTY SERVICES,BYWATERS (LEYTON) LTD,"4,189.52",TOWER WORKSHOPS,REFUSE COLLECTION CONTRACT,5902293511,1822101
07.03.2018,PUBLIC HEALTH,CHELSEA AND WESTMINSTER HOSPITAL,313.14,SEXUAL HEALTH - STI,EXTERNAL AGENCIES AND BODIES,5902293345,1000072053
07.03.2018,PUBLIC HEALTH,KENT COMMUNITY HEALTH NHS TRUST,284.58,SEXUAL HEALTH - STI,EXTERNAL AGENCIES AND BODIES,5902293326,1000073298
07.03.2018,PUBLIC HEALTH,KENT COMMUNITY HEALTH NHS TRUST,426.87,SEXUAL HEALTH - STI,EXTERNAL AGENCIES AND BODIES,5902293329,1000073298
07.03.2018,REGENERATION,MONTAGU EVANS LLP,"14,140.00",MASTER PLAN-H/WAY & TRANS INTERCHANGE,PROFESSIONAL FEES,5902293523,1000073283
07.03.2018,REGENERATION,MELISSA MURPHY,"82,725.00",PROFESSIONAL SERVICES (GENERAL),LEGAL FEES & COURT COSTS,2102789983,1000055067
07.03.2018,REGENERATION,CAROLINE  DALY,"41,600.00",PROFESSIONAL SERVICES (GENERAL),LEGAL FEES & COURT COSTS,2102789952,1000075771
07.03.2018,RESIDENT SERVICES,BEN DU FEU,300,CAMBERWELL,LEGAL FEES & COURT COSTS,2102789946,1000078851
07.03.2018,RESIDENT SERVICES,THE DULWICH ESTATE,975,CAMBERWELL,RENTS,2102789846,3000036
07.03.2018,RESIDENT SERVICES,NETWORK RAIL INFRASTRUCTURE LTD,550,CAMBERWELL,RENTS,2102789867,1000061958
07.03.2018,RESIDENT SERVICES,THE DULWICH ESTATE,337.5,DULWICH,RENTS,2102789836,3000036
07.03.2018,RESIDENT SERVICES,THE DULWICH ESTATE,400,DULWICH,RENTS,2102789855,3000036
07.03.2018,RESIDENT SERVICES,JOHNSON FELLOWS,405,DULWICH,RENTS,2102789845,1000055871
07.03.2018,RESIDENT SERVICES,CENTRAL & CECIL HOUSING TRUST,"51,250.00",NORTHCOTT HOUSE,RENTS,2102789868,1809267
07.03.2018,RESIDENT SERVICES,EDF ENERGY PLC,538.73,OPERATIONS/OFFICES ACCOMMODATION,ELECTRICITY,5902293538,1008746
07.03.2018,RESIDENT SERVICES,HANSEN PALOMARES SOLICITORS,"2,500.00",OPERATIONS/OFFICES ACCOMMODATION,LEGAL FEES & COURT COSTS,2102789971,11053592
07.03.2018,RESIDENT SERVICES,ANTHONY OGUNFEIBO & CO SOLICITORS,"1,500.00",OPERATIONS/OFFICES ACCOMMODATION,LEGAL FEES & COURT COSTS,2102789944,1000057216
07.03.2018,RESIDENT SERVICES,LISA CLARKE,300,OPERATIONS/OFFICES ACCOMMODATION,LEGAL FEES & COURT COSTS,2102789977,1000030215
07.03.2018,RESIDENT SERVICES,JOHN  MCCAFFERTY,350,OPERATIONS/OFFICES ACCOMMODATION,LEGAL FEES & COURT COSTS,2102789972,1000030430
07.03.2018,RESIDENT SERVICES,AYESHA OMAR,350,OPERATIONS/OFFICES ACCOMMODATION,LEGAL FEES & COURT COSTS,2102789945,1000079629
07.03.2018,RESIDENT SERVICES,RELIANCE HIGH-TECH LTD,"1,567.69",OPERATIONS/OFFICES ACCOMMODATION,SECURITY EQUIPMENT F&F,5902293495,1000079374
07.03.2018,RESIDENT SERVICES,BRITISH GAS BUSINESS,289.15,ROTHERHITHE,GAS,5902293548,1000054825
07.03.2018,SOUTHWARK BUILDING SERVICES,TRAVIS PERKINS,350,BOR & BKSIDE DAY TO DAY - PLUMBER,MATERIALS,5902293439,1514319
07.03.2018,SOUTHWARK SCHOOL FOR FUTURE,TERSUS CONSULTANCY LTD,"1,350.00",CAPITAL PS (REGEN),CONSTRUCTION FEES - QUANTITY SURVEYOR,5902293451,1000079949
07.03.2018,SUSTAINABILITY & BUSINESS DEVELOPMENT,JOHN MCNALLY,616.67,OTHER DEPARTMENTAL COSTS,LEGAL FEES & COURT COSTS,2102789973,1000068993
08.03.2018,ADULT SOCIAL CARE,REDACTED PERSONAL DATA,400,APPOINTEESHIPS,OTHER PAYMENTS FOR CLIENTS,REDACTED,REDACTED
08.03.2018,ADULT SOCIAL CARE,SURREY DOCKS FARM PROVIDENT SOCIETY,450,LD LTS 18-64,DAYCARE,2102790057,1000000958
08.03.2018,ADULT SOCIAL CARE,SWK DISABLEMENT ASSN,"2,122.56",LD LTS 18-64,HOMECARE - C&V,2102790041,1000011698
08.03.2018,ADULT SOCIAL CARE,AKARI CARE LTD (BEECHCROFT),"-19,216.79",MEM LTS 65+,NURSING PLACEMENTS FEES,2102790015,1000073834
08.03.2018,ADULT SOCIAL CARE,AKARI CARE LTD (BEECHCROFT),"19,216.79",MEM LTS 65+,NURSING PLACEMENTS FEES,2102790465,1000073834
08.03.2018,ADULT SOCIAL CARE,SWK DISABLEMENT ASSN,364.8,MH LTS 18-64,HOMECARE - SPOT,2102790024,1000011698
08.03.2018,ADULT SOCIAL CARE,SWK DISABLEMENT ASSN,410.4,MH LTS 18-64,HOMECARE - SPOT,2102790031,1000011698
08.03.2018,ADULT SOCIAL CARE,SWK DISABLEMENT ASSN,881.6,MH LTS 18-64,HOMECARE - SPOT,2102790047,1000011698
08.03.2018,ADULT SOCIAL CARE,KENT COUNTY COUNCIL - LASER,"-3,033.21",MH PREMISES COSTS,ELECTRICITY,5902293706,1000012926
08.03.2018,ADULT SOCIAL CARE,KENT COUNTY COUNCIL - LASER,"-2,505.33",MH PREMISES COSTS,ELECTRICITY,5902293701,1000012926
08.03.2018,ADULT SOCIAL CARE,KENT COUNTY COUNCIL - LASER,"-1,425.20",MH PREMISES COSTS,ELECTRICITY,5902293704,1000012926
08.03.2018,ADULT SOCIAL CARE,KENT COUNTY COUNCIL - LASER,-663.18,MH PREMISES COSTS,ELECTRICITY,5902293706,1000012926
08.03.2018,ADULT SOCIAL CARE,KENT COUNTY COUNCIL - LASER,"1,175.50",MH PREMISES COSTS,ELECTRICITY,5902293698,1000012926
08.03.2018,ADULT SOCIAL CARE,SWK DISABLEMENT ASSN,364.8,PHY LTS 18-64,HOMECARE - SPOT,2102790052,1000011698
08.03.2018,ADULT SOCIAL CARE,SWK DISABLEMENT ASSN,410.4,PHY LTS 18-64,HOMECARE - SPOT,2102790044,1000011698
08.03.2018,ADULT SOCIAL CARE,SWK DISABLEMENT ASSN,995.6,PHY LTS 18-64,HOMECARE - SPOT,2102790050,1000011698
08.03.2018,ADULT SOCIAL CARE,SWK DISABLEMENT ASSN,"1,611.20",PHY LTS 18-64,HOMECARE - SPOT,2102790023,1000011698
08.03.2018,ADULT SOCIAL CARE,SWK DISABLEMENT ASSN,342,PHY LTS 65+,HOMECARE - C&V,2102790048,1000011698
08.03.2018,ADULT SOCIAL CARE,SWK DISABLEMENT ASSN,"1,087.72",PHY LTS 65+,HOMECARE - C&V,2102790025,1000011698
08.03.2018,ADULT SOCIAL CARE,SWK DISABLEMENT ASSN,874,PHY LTS 65+,HOMECARE - SPOT,2102790042,1000011698
08.03.2018,ADULT SOCIAL CARE,SWK DISABLEMENT ASSN,896.8,PHY LTS 65+,HOMECARE - SPOT,2102790035,1000011698
08.03.2018,ADULT SOCIAL CARE,SWK DISABLEMENT ASSN,918.72,PHY LTS 65+,HOMECARE - SPOT,2102790037,1000011698
08.03.2018,ADULT SOCIAL CARE,SWK DISABLEMENT ASSN,"1,983.96",PHY LTS 65+,HOMECARE - SPOT,2102790053,1000011698
08.03.2018,ADULT SOCIAL CARE,SWK DISABLEMENT ASSN,"2,527.00",PHY LTS 65+,HOMECARE - SPOT,2102790029,1000011698
08.03.2018,ADULT SOCIAL CARE,JANE RAMSAY,824,SAFEGUARDING TEAM,OTHER CONTRACTORS,5902292924,1000066652
08.03.2018,ADULT SOCIAL CARE,SWK DISABLEMENT ASSN,425.6,SOCIAL ISOLATION,HOMECARE - SPOT,2102790034,1000011698
08.03.2018,ADULT SOCIAL CARE,SWK DISABLEMENT ASSN,"1,552.32",SOCIAL ISOLATION,HOMECARE - SPOT,2102790030,1000011698
08.03.2018,ADULT SOCIAL CARE,MEDACS HOMECARE,461.76,SPECIALIST CARE,SECTION 17 PAYMENTS TO AGENCIES/CARERS,2102790067,11287415
08.03.2018,ADULT SOCIAL CARE,MEDACS HOMECARE,490.62,SPECIALIST CARE,SECTION 17 PAYMENTS TO AGENCIES/CARERS,2102790064,11287415
08.03.2018,ADULT SOCIAL CARE,MEDACS HOMECARE,577.2,SPECIALIST CARE,SECTION 17 PAYMENTS TO AGENCIES/CARERS,2102790069,11287415
08.03.2018,ADULT SOCIAL CARE,MEDACS HOMECARE,620.49,SPECIALIST CARE,SECTION 17 PAYMENTS TO AGENCIES/CARERS,2102790073,11287415
08.03.2018,ADULT SOCIAL CARE,MEDACS HOMECARE,995.67,SPECIALIST CARE,SECTION 17 PAYMENTS TO AGENCIES/CARERS,2102790060,11287415
08.03.2018,ADULT SOCIAL CARE,MEDACS HOMECARE,"3,290.04",SPECIALIST CARE,SECTION 17 PAYMENTS TO AGENCIES/CARERS,2102790058,11287415
08.03.2018,ADULT SOCIAL CARE,MEDACS HOMECARE,288.6,TRANSITION 14 - 18 YEARS,SECTION 17 PAYMENTS TO AGENCIES/CARERS,2102790065,11287415
08.03.2018,ADULT SOCIAL CARE,MEDACS HOMECARE,432.9,TRANSITION 14 - 18 YEARS,SECTION 17 PAYMENTS TO AGENCIES/CARERS,2102790071,11287415
08.03.2018,ADULT SOCIAL CARE,MEDACS HOMECARE,562.77,TRANSITION 14 - 18 YEARS,SECTION 17 PAYMENTS TO AGENCIES/CARERS,2102790072,11287415
08.03.2018,ADULT SOCIAL CARE,MEDACS HOMECARE,606.06,TRANSITION 14 - 18 YEARS,SECTION 17 PAYMENTS TO AGENCIES/CARERS,2102790062,11287415
08.03.2018,ADULT SOCIAL CARE,MEDACS HOMECARE,656.67,TRANSITION 14 - 18 YEARS,SECTION 17 PAYMENTS TO AGENCIES/CARERS,2102790066,11287415
08.03.2018,ADULT SOCIAL CARE,MEDACS HOMECARE,663.78,TRANSITION 14 - 18 YEARS,SECTION 17 PAYMENTS TO AGENCIES/CARERS,2102790070,11287415
08.03.2018,ADULT SOCIAL CARE,MEDACS HOMECARE,707.07,TRANSITION 14 - 18 YEARS,SECTION 17 PAYMENTS TO AGENCIES/CARERS,2102790068,11287415
08.03.2018,ADULT SOCIAL CARE,MEDACS HOMECARE,952.38,TRANSITION 14 - 18 YEARS,SECTION 17 PAYMENTS TO AGENCIES/CARERS,2102790063,11287415
08.03.2018,CENTRAL FUNCTIONS,STANBURY BUILDING SERVICES LTD,325,COMMERCIAL PROPERTIES,BUILDING R&M,2102790005,3000001967
08.03.2018,CENTRAL FUNCTIONS,STANBURY BUILDING SERVICES LTD,350,COMMERCIAL PROPERTIES,BUILDING R&M,2102790011,3000001967
08.03.2018,CENTRAL FUNCTIONS,STANBURY BUILDING SERVICES LTD,495,COMMERCIAL PROPERTIES,BUILDING R&M,2102790004,3000001967
08.03.2018,CENTRAL FUNCTIONS,VEOLIA ES (UK)LTD,"163,742.58",HEATING ACCOUNT,GAS,5902293715,1824835
08.03.2018,CHIEF EXECUTIVE,RSA GEOTECHNICS LTD,"5,229.75",CAPITAL PS (REGEN),CONSTRUCTION FEES  - EXTERNAL,5902293661,1000049259
08.03.2018,CHIEF EXECUTIVE'S OFFICE,J C CONSULTANT SERVICES LTD,"8,500.00",CHIEF EXEC'S OFFICE,GRANTS,5902293714,1000042476
08.03.2018,CHIEF EXECUTIVE'S OFFICE,PECAN LTD,"2,067.00",YOUTH FUND EMPLOYMENT,GRANTS,2102790074,11263114
08.03.2018,CHILDREN AND ADULT,MLM CONSULTING ENGINEERS LTD,305.5,CAPITAL PS (EDUCATION),CONSTRUCTION,5902292660,1000059806
08.03.2018,CHILDREN'S SERVICES,JEANETTE SCOTT,"1,009.50",ADOPTION REFORM GRANT (PART B),PROFESSIONAL FEES,5902293031,1000078357
08.03.2018,CHILDREN'S SERVICES,ACCESSIBLE TRAINING LTD,280,CHILDRENS CENTRE,OTHER SUBSISTENCE & CONFERENCE EXPENSES,5902293063,1000000705
08.03.2018,CHILDREN'S SERVICES,STEPPING STONES,"12,250.00",COMMUNITY LEARNING 15/16,GRANTS,5902293703,1000051807
08.03.2018,CHILDREN'S SERVICES,HUNTERS THE FUNITURE COMPANY,"1,748.48",CONTACT,MISCELLANEOUS EXPENSES,5902293606,1000065904
08.03.2018,CHILDREN'S SERVICES,CORAM ACADEMY LTD,"3,850.00",DISABILITY & HIV,EXTERNAL AGENCIES AND BODIES,5902293635,1000076627
08.03.2018,CHILDREN'S SERVICES,JAMMA UMOJA (RESIDENTIAL SERVICES),600,FAMILY ASSESSMENTS,RESIDENTIAL CARE,5902293076,1000080325
08.03.2018,CHILDREN'S SERVICES,SHROPSHIRE COUNTY COUNCIL,707.5,PUPIL PREMIUM CURRENT YEAR,EXTERNAL AGENCIES AND BODIES,5902293630,1341513
08.03.2018,CHILDREN'S SERVICES,KENT COUNTY COUNCIL - LASER,365.4,SOUTH BERMONDSEY CHILDRENS & PARENTS CNT,INTERPRETING SERVICES,5902293595,1000012926
08.03.2018,CHILDREN'S SERVICES,KENT COUNTY COUNCIL - LASER,"1,023.52",SOUTH BERMONDSEY CHILDRENS & PARENTS CNT,INTERPRETING SERVICES,5902293631,1000012926
08.03.2018,CHILDREN'S SERVICES,KENT COUNTY COUNCIL - LASER,"1,085.59",SOUTH BERMONDSEY CHILDRENS & PARENTS CNT,INTERPRETING SERVICES,5902293624,1000012926
08.03.2018,CHILDREN'S SERVICES,KENT COUNTY COUNCIL - LASER,"1,139.68",SOUTH BERMONDSEY CHILDRENS & PARENTS CNT,INTERPRETING SERVICES,5902293620,1000012926
08.03.2018,CHILDREN'S SERVICES,BEDE CAFE PROJECT,"5,900.44",SPECIAL GUARDIANSHIP,PAYMENTS TO CARERS,2102790075,1553877
08.03.2018,CHILDREN'S SERVICES,A & M PROPERTY AND CONSTRUCTION LTD,"1,260.00",TEMPORARY ACCOMMODATION,EXTERNAL AGENCIES AND BODIES,5902293684,1000014564
08.03.2018,CHILDREN'S SERVICES,SOUTH OF THE RIVER INVESTMENTS LTD,"3,376.80",TEMPORARY ACCOMMODATION,EXTERNAL AGENCIES AND BODIES,5902293594,1000073638
08.03.2018,CHILDREN'S SERVICES,VEOLIA ES (UK)LTD,407.69,THOMAS CALTON CENTRE,REFUSE COLLECTION CONTRACT,5902293577,1824835
08.03.2018,COMMISSIONING & CENTRAL,BRIDGER BELL COMMERCIAL LLP,"9,851.50",COMMISSIONING TEAM,RENTS,2102790016,1000064051
08.03.2018,COMMUNITIES,GALAXY LETTINGS LTD,"9,401.00",NO RECOURSE TO PUBLIC FUNDS,ACCOMMODATION CHARGES,5902293707,1000055897
08.03.2018,COMMUNITIES,J & M OASIS LTD,"5,070.60",NO RECOURSE TO PUBLIC FUNDS,ACCOMMODATION CHARGES,5902293716,1000072169
08.03.2018,COMMUNITIES,J & M OASIS LTD,"10,286.40",NO RECOURSE TO PUBLIC FUNDS,ACCOMMODATION CHARGES,5902293716,1000072169
08.03.2018,COMMUNITIES,RS REAL ESTATE LTD,"7,182.00",NO RECOURSE TO PUBLIC FUNDS,ACCOMMODATION CHARGES,5902293695,1000072485
08.03.2018,COMMUNITIES,JUST ENOUGH UK,320,PREVENT,PROFESSIONAL FEES,5902293579,1000079867
08.03.2018,COMMUNITIES,JUST ENOUGH UK,320,PREVENT,PROFESSIONAL FEES,5902293579,1000079867
08.03.2018,COMMUNITIES,JUST ENOUGH UK,320,PREVENT,PROFESSIONAL FEES,5902293579,1000079867
08.03.2018,COMMUNITIES,JUST ENOUGH UK,320,PREVENT,PROFESSIONAL FEES,5902293579,1000079867
08.03.2018,COMMUNITIES,JUST ENOUGH UK,320,PREVENT,PROFESSIONAL FEES,5902293579,1000079867
08.03.2018,COMMUNITIES,OPEN COMMUNITIES LTD,955.5,RESIDENT INVOLVEMENT TEAM,PLANNED MAINTENANCE,5902293583,1000065800
08.03.2018,COMMUNITIES,OPEN COMMUNITIES LTD,"2,205.00",RESIDENT INVOLVEMENT TEAM,PLANNED MAINTENANCE,5902293586,1000065800
08.03.2018,COMMUNITIES,EDF ENERGY PLC,255.39,TRA HALLS (REPAIRS),ELECTRICITY,5902293850,1008746
08.03.2018,COMMUNITIES,BROOK,"150,000.00",YOUNG PEOPLES SERVICE,EXTERNAL AGENCIES AND BODIES,5902293612,1000076901
08.03.2018,CUSTOMER EXPERIENCE HGF,ADVANCED LEGAL SOLUTIONS LTD,362.66,CORONER'S,COMMS & COMPUTING CONTRACT CHARGES,5902293667,1649243
08.03.2018,CUSTOMER EXPERIENCE HGF,SOUTH OF THE RIVER INVESTMENTS LTD,"121,660.46",NIGHTLY TA (NSC),EXTERNAL AGENCIES AND BODIES,5902293717,1000073638
08.03.2018,CUSTOMER EXPERIENCE HGF,DENHAN INTERNATIONAL LTD,"29,379.90",NIGHTLY TA (NSC),EXTERNAL AGENCIES AND BODIES,5902293598,1000075567
08.03.2018,CUSTOMER EXPERIENCE HGF,SITTRA LTD,"11,236.00",NIGHTLY TA (NSC),EXTERNAL AGENCIES AND BODIES,5902293616,1000080857
08.03.2018,CUSTOMER EXPERIENCE HGF,PESH FLOWERS,506.5,REGISTRARS,OFFICE EXPENSES,5902293634,1441954
08.03.2018,ENVIRONMENT AND LEISURE,PRE-CONSTRUCT ARCHAEOLOGY LTD,"2,803.50",CAPITAL PS (LEISURE),CONSTRUCTION FEES  - EXTERNAL,5902293580,1000000232
08.03.2018,ENVIRONMENT DIRECTORATE,PERFORMANCE CHEMICALS LTD,977.2,ESTATE CLEANING-GENERAL,MATERIALS,5902293690,1000037129
08.03.2018,ENVIRONMENT DIRECTORATE,IMPERIAL POLYTHENE PRODUCTS LTD,"1,240.80",MANAGEMENT TEAM,MATERIALS,5902293693,1000061299
08.03.2018,ENVIRONMENT DIRECTORATE,MASTERNAUT LTD,"1,480.50",MANAGEMENT TEAM,OTHER VEHICLE RUNNING COSTS,5902293627,1000043981
08.03.2018,ENVIRONMENT DIRECTORATE,DULWICH COLLEGE,980,"ROAD SAFETY EDUCATION,TRAINING&PUBLICITY",TRAINING,2102790119,11308929
08.03.2018,F & C S EXCLUDING CORPORATE BUDGETS,NORTHGATE PUBLIC SERVICES (UK) LTD,"9,166.67",ADMINISTRATIVE SUPPORT,PRINTING,5902293686,1000037405
08.03.2018,F & C S EXCLUDING CORPORATE BUDGETS,ELIOR UK PLC,408.8,ADMINISTRATIVE SUPPORT,REFRESHMENTS FOR MEETINGS,5902293662,1000073644
08.03.2018,F & C S EXCLUDING CORPORATE BUDGETS,CAPITA BUSINESS SERVICES LTD,"21,497.52",CAPITA,OTHER CONTRACTORS,5902293696,1000049446
08.03.2018,F & C S EXCLUDING CORPORATE BUDGETS,PURE SOLUTIONS LTD,"6,642.69",CONSTITUTIONAL TEAM,OP LEASE/HIRE CHARGES:PLANT/EQUIP/FURNIT,5902293125,1000043817
08.03.2018,F & C S EXCLUDING CORPORATE BUDGETS,ROI OPERATIONS MANAGEMENT LTD,"2,597.00",LEGAL SVCES MANAGEMENT,PROFESSIONAL FEES,5902293692,1000054084
08.03.2018,F & C S EXCLUDING CORPORATE BUDGETS,EDF ENERGY PLC,-255.39,PAYMENTS CONTROL,OFFICE EXPENSES,2102790483,1008746
08.03.2018,HOUSING HRA,PARS LTD,"4,276.00",CAPITAL PS (HRA),CONST'N MAIN CONTRACT - NON CERTIFICATED,2102790009,3000001275
08.03.2018,HOUSING HRA,C&C BUILDERS LTD,"6,985.00",CAPITAL PS (HRA),CONST'N MAIN CONTRACT - NON CERTIFICATED,2102790008,3000001986
08.03.2018,HOUSING HRA,CALFORD SEADEN LLP,296,CAPITAL PS (HRA),CONSTRUCTION FEES  - EXTERNAL,5902292731,1061592
08.03.2018,HOUSING HRA,OCO LIMITED,"573,937.38",PAYMENTS CONTROL ACCOUNT - OCO,MANUAL CREDITORS,5902293619,1006066
08.03.2018,HOUSING HRA,SPOKEMEAD MAINTENANCE LTD,"186,013.17",PAYMENTS CONTROL ACCOUNT - SPOKEMEAD,MANUAL CREDITORS,5902292417,1000059211
08.03.2018,HOUSING HRA,KENT COUNTY COUNCIL - LASER,"16,944.06",RESIDENT SERVICES BUSINESS SUPPORT,ELECTRICITY,6101822094,DIRECT DEBIT PAYMENT
08.03.2018,HOUSING HRA,KENT COUNTY COUNCIL - LASER,"67,989.69",RESIDENT SERVICES BUSINESS SUPPORT,ELECTRICITY,6101822095,DIRECT DEBIT PAYMENT
08.03.2018,HOUSING STRATEGY AND OPTIONS,BELSHAW & CURTIN SOLICITORS,"2,075.81",HOMELESS & HOUSING OPTIONS MGT,LEGAL FEES & COURT COSTS,5902293593,1767379
08.03.2018,LEISURE DIRECTORATE,IDVERDE LTD,348.3,BURGESS AREA TEAM,GROUNDS MAINTENANCE,5902292955,1000079198
08.03.2018,LEISURE DIRECTORATE,KENT COUNTY COUNCIL - LASER,"3,574.71",CANADA WATER LIBRARY,ELECTRICITY,5902293697,1000012926
08.03.2018,LEISURE DIRECTORATE,QUADRON SERVICES LIMITED,358.3,DULWICH AREA TEAM,GROUNDS MAINTENANCE,5902293613,1000066528
08.03.2018,LEISURE DIRECTORATE,R HERRIDGE & PARTNERS,425,DULWICH AREA TEAM,OTHER R&M,2102790012,3000000680
08.03.2018,LEISURE DIRECTORATE,R HERRIDGE & PARTNERS,560,DULWICH AREA TEAM,OTHER R&M,2102790013,3000000680
08.03.2018,LEISURE DIRECTORATE,KENT COUNTY COUNCIL - LASER,"1,269.98",JOHN HARVARD LIBRARY,ELECTRICITY,5902293657,1000012926
08.03.2018,LEISURE DIRECTORATE,P D CONSTRUCTION LTD,"1,770.00",SOUTHWARK AREA TEAM,OTHER R&M,2102790010,4001883
08.03.2018,LEISURE DIRECTORATE,INCENTIVE QAS LTD,"1,330.17",TEMPORARY NEWINGTON,PREMISES CLEANING,5902293591,1000074675
08.03.2018,MODERNISATION HGF,HAYS RECRUITING EXPERTS WORLDWIDE,"10,500.00",IT MANAGEMENT,RECRUITMENT ADVERTISING,5902293614,11319307
08.03.2018,MODERNISATION HGF,COMENSURA LTD,"3,312.65",MONTHLY ADMIN FEE,AGENCY STAFF,5902293642,1000051261
08.03.2018,MODERNISATION HGF,CAPITA SECURE INFORMATION,"-11,700.00",TECHNOLOGY,COMMS & COMPUTING CONTRACT CHARGES,5902293674,1000070739
08.03.2018,MODERNISATION HGF,CAPITA SECURE INFORMATION,"5,850.00",TECHNOLOGY,COMMS & COMPUTING CONTRACT CHARGES,5902293671,1000070739
08.03.2018,MODERNISATION HGF,CAPITA SECURE INFORMATION,"11,700.00",TECHNOLOGY,COMMS & COMPUTING CONTRACT CHARGES,5902293671,1000070739
08.03.2018,MODERNISATION HGF,DAISY COMMUNICATIONS LTD,"10,762.78",TECHNOLOGY,DATA COMMUNICATIONS,5902293645,1000075666
08.03.2018,MODERNISATION HGF,COMENSURA LTD,"449,308.11",WEEKLY PAYMENTS,AGENCY STAFF,5902293642,1000051261
08.03.2018,PROPERTY SERVICES,E.ON,"1,130.73",LBS SOJOURNER TRUTH COMMUNITY CENTRE,ELECTRICITY,5902293629,1000043614
08.03.2018,PUBLIC HEALTH,COMMUNITY SOUTHWARK,"3,850.00",PHYSICAL ACTIVITY - ADULTS,EXTERNAL AGENCIES AND BODIES,5902293054,1000018147
08.03.2018,PUBLIC HEALTH,COMMUNITY SOUTHWARK,"11,380.02",PHYSICAL ACTIVITY - ADULTS,EXTERNAL AGENCIES AND BODIES,5902293054,1000018147
08.03.2018,RESIDENT SERVICES,BRITISH GAS TRADING LTD,268.15,OPERATIONS/OFFICES ACCOMMODATION,ELECTRICITY,5902293611,1000055977
08.03.2018,RESIDENT SERVICES,CLARKE BARNES SOLICITORS LLP,"1,000.00",OPERATIONS/OFFICES ACCOMMODATION,LEGAL FEES & COURT COSTS,5902293585,1000078090
08.03.2018,RESIDENT SERVICES,CLARKE BARNES SOLICITORS LLP,"2,375.00",OPERATIONS/OFFICES ACCOMMODATION,LEGAL FEES & COURT COSTS,5902293589,1000078090
09.03.2018,ADULT SOCIAL CARE,CHARLIE CHAPLIN ADVENTURE PLAYGROUND,268.22,LD LTS 18-64,DAYCARE,2102790302,1000058003
09.03.2018,ADULT SOCIAL CARE,KENT HARRIER PROPERTY MANAGEMENT,"1,466.00",LD LTS 18-64,EXTERNAL AGENCIES AND BODIES,2102790307,1000078130
09.03.2018,ADULT SOCIAL CARE,KENT HARRIER PROPERTY MANAGEMENT,"1,530.00",LD LTS 18-64,EXTERNAL AGENCIES AND BODIES,2102790304,1000078130
09.03.2018,ADULT SOCIAL CARE,CONTACT PROFESSIONALS,465,LD LTS 18-64,HOMECARE - SPOT,2102790300,1000057263
09.03.2018,ADULT SOCIAL CARE,PROFAD CARE AGENCY,"2,316.72",LD LTS 18-64,HOMECARE - SPOT,2102790179,1000079032
09.03.2018,ADULT SOCIAL CARE,RESOURCES FOR AUTISM,"1,165.50",LD LTS 18-64,SUPPORTED LIVING,2102790303,1000062540
09.03.2018,ADULT SOCIAL CARE,REDACTED PERSONAL DATA,"1,125.12",LD LTS 18-64,SUPPORTED LIVING,REDACTED,REDACTED
09.03.2018,ADULT SOCIAL CARE,PROFAD CARE AGENCY,427.49,MEM LTS 65+,HOMECARE - SPOT,2102790183,1000079032
09.03.2018,ADULT SOCIAL CARE,PROFAD CARE AGENCY,634.34,MEM LTS 65+,HOMECARE - SPOT,2102790141,1000079032
09.03.2018,ADULT SOCIAL CARE,PROFAD CARE AGENCY,"2,261.56",MEM LTS 65+,HOMECARE - SPOT,2102790202,1000079032
09.03.2018,ADULT SOCIAL CARE,MIHOMECARE LTD,272.32,MH LTS 18-64,HOMECARE - C&V,2102790216,1000042594
09.03.2018,ADULT SOCIAL CARE,MIHOMECARE LTD,544.64,MH LTS 18-64,HOMECARE - C&V,2102790209,1000042594
09.03.2018,ADULT SOCIAL CARE,YOUTH GRACES (UK) LTD,251.76,MH LTS 18-64,HOMECARE - SPOT,2102790268,1000072524
09.03.2018,ADULT SOCIAL CARE,PROFAD CARE AGENCY,386.12,MH LTS 18-64,HOMECARE - SPOT,2102790204,1000079032
09.03.2018,ADULT SOCIAL CARE,HOPE WORLDWIDE,"1,740.00",MH LTS 18-64,PLACEMENTS - REHAB,2102790314,1000047835
09.03.2018,ADULT SOCIAL CARE,MIHOMECARE LTD,510.6,MH LTS 65+,HOMECARE - C&V,2102790210,1000042594
09.03.2018,ADULT SOCIAL CARE,MIHOMECARE LTD,851,MH LTS 65+,HOMECARE - C&V,2102790220,1000042594
09.03.2018,ADULT SOCIAL CARE,MIHOMECARE LTD,"1,327.56",MH LTS 65+,HOMECARE - C&V,2102790213,1000042594
09.03.2018,ADULT SOCIAL CARE,KENT COUNTY COUNCIL - LASER,"-1,273.16",MH PREMISES COSTS,ELECTRICITY,5902293811,1000012926
09.03.2018,ADULT SOCIAL CARE,KENT COUNTY COUNCIL - LASER,792.32,MH PREMISES COSTS,ELECTRICITY,5902293808,1000012926
09.03.2018,ADULT SOCIAL CARE,KENT COUNTY COUNCIL - LASER,"1,123.99",MH PREMISES COSTS,ELECTRICITY,5902293806,1000012926
09.03.2018,ADULT SOCIAL CARE,KENT COUNTY COUNCIL - LASER,"1,248.84",MH PREMISES COSTS,ELECTRICITY,5902293804,1000012926
09.03.2018,ADULT SOCIAL CARE,ALLGOOD PLC,474,ORIENT STREET,OFFICE EXPENSES,5902293720,1000052587
09.03.2018,ADULT SOCIAL CARE,PHOENIX HEALTHCARE & RECRUITMENT,339.36,PHY LTS 18-64,DAYCARE,2102790301,1000065636
09.03.2018,ADULT SOCIAL CARE,PHOENIX HEALTHCARE & RECRUITMENT,391.36,PHY LTS 18-64,DAYCARE,2102790298,1000065636
09.03.2018,ADULT SOCIAL CARE,MIHOMECARE LTD,476.56,PHY LTS 18-64,HOMECARE - C&V,2102790212,1000042594
09.03.2018,ADULT SOCIAL CARE,MIHOMECARE LTD,476.56,PHY LTS 18-64,HOMECARE - C&V,2102790214,1000042594
09.03.2018,ADULT SOCIAL CARE,MIHOMECARE LTD,544.64,PHY LTS 18-64,HOMECARE - C&V,2102790225,1000042594
09.03.2018,ADULT SOCIAL CARE,MIHOMECARE LTD,587.19,PHY LTS 18-64,HOMECARE - C&V,2102790215,1000042594
09.03.2018,ADULT SOCIAL CARE,YOUTH GRACES (UK) LTD,320.62,PHY LTS 18-64,HOMECARE - C&V,2102790286,1000072524
09.03.2018,ADULT SOCIAL CARE,YOUTH GRACES (UK) LTD,413.68,PHY LTS 18-64,HOMECARE - C&V,2102790252,1000072524
09.03.2018,ADULT SOCIAL CARE,PROFAD CARE AGENCY,"2,247.77",PHY LTS 18-64,HOMECARE - C&V,2102790148,1000079032
09.03.2018,ADULT SOCIAL CARE,YOUTH GRACES (UK) LTD,455.12,PHY LTS 18-64,HOMECARE - SPOT,2102790229,1000072524
09.03.2018,ADULT SOCIAL CARE,PROFAD CARE AGENCY,441.28,PHY LTS 18-64,HOMECARE - SPOT,2102790177,1000079032
09.03.2018,ADULT SOCIAL CARE,PROFAD CARE AGENCY,634.34,PHY LTS 18-64,HOMECARE - SPOT,2102790196,1000079032
09.03.2018,ADULT SOCIAL CARE,PROFAD CARE AGENCY,772.24,PHY LTS 18-64,HOMECARE - SPOT,2102790167,1000079032
09.03.2018,ADULT SOCIAL CARE,PROFAD CARE AGENCY,786.03,PHY LTS 18-64,HOMECARE - SPOT,2102790186,1000079032
09.03.2018,ADULT SOCIAL CARE,PROFAD CARE AGENCY,"2,316.72",PHY LTS 18-64,HOMECARE - SPOT,2102790152,1000079032
09.03.2018,ADULT SOCIAL CARE,PROFAD CARE AGENCY,"3,088.96",PHY LTS 18-64,HOMECARE - SPOT,2102790205,1000079032
09.03.2018,ADULT SOCIAL CARE,MIHOMECARE LTD,885.04,PHY LTS 65+,HOMECARE - C&V,2102790208,1000042594
09.03.2018,ADULT SOCIAL CARE,PROFAD CARE AGENCY,"1,261.79",PHY LTS 65+,HOMECARE - C&V,2102790193,1000079032
09.03.2018,ADULT SOCIAL CARE,PROFAD CARE AGENCY,"1,337.63",PHY LTS 65+,HOMECARE - C&V,2102790160,1000079032
09.03.2018,ADULT SOCIAL CARE,PROFAD CARE AGENCY,"2,123.66",PHY LTS 65+,HOMECARE - C&V,2102790175,1000079032
09.03.2018,ADULT SOCIAL CARE,METRO HOMECARE LTD,358.54,PHY LTS 65+,HOMECARE - SPOT,2102790306,1000070695
09.03.2018,ADULT SOCIAL CARE,YOUTH GRACES (UK) LTD,282.66,PHY LTS 65+,HOMECARE - SPOT,2102790227,1000072524
09.03.2018,ADULT SOCIAL CARE,YOUTH GRACES (UK) LTD,399.91,PHY LTS 65+,HOMECARE - SPOT,2102790257,1000072524
09.03.2018,ADULT SOCIAL CARE,YOUTH GRACES (UK) LTD,427.55,PHY LTS 65+,HOMECARE - SPOT,2102790250,1000072524
09.03.2018,ADULT SOCIAL CARE,YOUTH GRACES (UK) LTD,434.56,PHY LTS 65+,HOMECARE - SPOT,2102790276,1000072524
09.03.2018,ADULT SOCIAL CARE,YOUTH GRACES (UK) LTD,462.13,PHY LTS 65+,HOMECARE - SPOT,2102790243,1000072524
09.03.2018,ADULT SOCIAL CARE,YOUTH GRACES (UK) LTD,503.41,PHY LTS 65+,HOMECARE - SPOT,2102790273,1000072524
09.03.2018,ADULT SOCIAL CARE,YOUTH GRACES (UK) LTD,675.78,PHY LTS 65+,HOMECARE - SPOT,2102790287,1000072524
09.03.2018,ADULT SOCIAL CARE,PROFAD CARE AGENCY,282.7,PHY LTS 65+,HOMECARE - SPOT,2102790198,1000079032
09.03.2018,ADULT SOCIAL CARE,PROFAD CARE AGENCY,289.59,PHY LTS 65+,HOMECARE - SPOT,2102790191,1000079032
09.03.2018,ADULT SOCIAL CARE,PROFAD CARE AGENCY,320.62,PHY LTS 65+,HOMECARE - SPOT,2102790168,1000079032
09.03.2018,ADULT SOCIAL CARE,PROFAD CARE AGENCY,330.96,PHY LTS 65+,HOMECARE - SPOT,2102790192,1000079032
09.03.2018,ADULT SOCIAL CARE,PROFAD CARE AGENCY,386.12,PHY LTS 65+,HOMECARE - SPOT,2102790200,1000079032
09.03.2018,ADULT SOCIAL CARE,PROFAD CARE AGENCY,386.12,PHY LTS 65+,HOMECARE - SPOT,2102790206,1000079032
09.03.2018,ADULT SOCIAL CARE,PROFAD CARE AGENCY,441.28,PHY LTS 65+,HOMECARE - SPOT,2102790203,1000079032
09.03.2018,ADULT SOCIAL CARE,PROFAD CARE AGENCY,482.65,PHY LTS 65+,HOMECARE - SPOT,2102790171,1000079032
09.03.2018,ADULT SOCIAL CARE,PROFAD CARE AGENCY,482.65,PHY LTS 65+,HOMECARE - SPOT,2102790176,1000079032
09.03.2018,ADULT SOCIAL CARE,PROFAD CARE AGENCY,510.23,PHY LTS 65+,HOMECARE - SPOT,2102790151,1000079032
09.03.2018,ADULT SOCIAL CARE,PROFAD CARE AGENCY,565.39,PHY LTS 65+,HOMECARE - SPOT,2102790147,1000079032
09.03.2018,ADULT SOCIAL CARE,PROFAD CARE AGENCY,579.18,PHY LTS 65+,HOMECARE - SPOT,2102790157,1000079032
09.03.2018,ADULT SOCIAL CARE,PROFAD CARE AGENCY,592.97,PHY LTS 65+,HOMECARE - SPOT,2102790166,1000079032
09.03.2018,ADULT SOCIAL CARE,PROFAD CARE AGENCY,606.76,PHY LTS 65+,HOMECARE - SPOT,2102790162,1000079032
09.03.2018,ADULT SOCIAL CARE,PROFAD CARE AGENCY,634.34,PHY LTS 65+,HOMECARE - SPOT,2102790181,1000079032
09.03.2018,ADULT SOCIAL CARE,PROFAD CARE AGENCY,648.13,PHY LTS 65+,HOMECARE - SPOT,2102790164,1000079032
09.03.2018,ADULT SOCIAL CARE,PROFAD CARE AGENCY,689.5,PHY LTS 65+,HOMECARE - SPOT,2102790201,1000079032
09.03.2018,ADULT SOCIAL CARE,PROFAD CARE AGENCY,813.61,PHY LTS 65+,HOMECARE - SPOT,2102790158,1000079032
09.03.2018,ADULT SOCIAL CARE,PROFAD CARE AGENCY,841.19,PHY LTS 65+,HOMECARE - SPOT,2102790184,1000079032
09.03.2018,ADULT SOCIAL CARE,PROFAD CARE AGENCY,854.98,PHY LTS 65+,HOMECARE - SPOT,2102790194,1000079032
09.03.2018,ADULT SOCIAL CARE,PROFAD CARE AGENCY,868.77,PHY LTS 65+,HOMECARE - SPOT,2102790163,1000079032
09.03.2018,ADULT SOCIAL CARE,PROFAD CARE AGENCY,910.14,PHY LTS 65+,HOMECARE - SPOT,2102790142,1000079032
09.03.2018,ADULT SOCIAL CARE,PROFAD CARE AGENCY,910.14,PHY LTS 65+,HOMECARE - SPOT,2102790153,1000079032
09.03.2018,ADULT SOCIAL CARE,PROFAD CARE AGENCY,937.72,PHY LTS 65+,HOMECARE - SPOT,2102790199,1000079032
09.03.2018,ADULT SOCIAL CARE,PROFAD CARE AGENCY,961.51,PHY LTS 65+,HOMECARE - SPOT,2102790197,1000079032
09.03.2018,ADULT SOCIAL CARE,PROFAD CARE AGENCY,979.09,PHY LTS 65+,HOMECARE - SPOT,2102790169,1000079032
09.03.2018,ADULT SOCIAL CARE,PROFAD CARE AGENCY,"1,303.16",PHY LTS 65+,HOMECARE - SPOT,2102790178,1000079032
09.03.2018,ADULT SOCIAL CARE,PROFAD CARE AGENCY,"1,599.64",PHY LTS 65+,HOMECARE - SPOT,2102790159,1000079032
09.03.2018,ADULT SOCIAL CARE,PROFAD CARE AGENCY,"1,737.54",PHY LTS 65+,HOMECARE - SPOT,2102790195,1000079032
09.03.2018,ADULT SOCIAL CARE,PROFAD CARE AGENCY,"1,930.60",PHY LTS 65+,HOMECARE - SPOT,2102790174,1000079032
09.03.2018,ADULT SOCIAL CARE,PROFAD CARE AGENCY,"3,157.91",PHY LTS 65+,HOMECARE - SPOT,2102790170,1000079032
09.03.2018,ADULT SOCIAL CARE,PROFAD CARE AGENCY,"3,475.08",PHY LTS 65+,HOMECARE - SPOT,2102790172,1000079032
09.03.2018,ADULT SOCIAL CARE,PROFAD CARE AGENCY,758.45,SEN LTS 65+,HOMECARE - SPOT,2102790182,1000079032
09.03.2018,ADULT SOCIAL CARE,PROFAD CARE AGENCY,496.44,SOCIAL ISOLATION,HOMECARE - SPOT,2102790165,1000079032
09.03.2018,ADULT SOCIAL CARE,KIDS,339,SPECIALIST CARE,SECTION 17 PAYMENTS TO AGENCIES/CARERS,2102790334,1000030036
09.03.2018,ADULT SOCIAL CARE,KIDS,472,SPECIALIST CARE,SECTION 17 PAYMENTS TO AGENCIES/CARERS,2102790344,1000030036
09.03.2018,ADULT SOCIAL CARE,INTERSERVE HEALTHCARE,678.89,SPECIALIST CARE,SECTION 17 PAYMENTS TO AGENCIES/CARERS,2102790343,1000049612
09.03.2018,ADULT SOCIAL CARE,RESOURCES FOR AUTISM,291.38,SPECIALIST CARE,SECTION 17 PAYMENTS TO AGENCIES/CARERS,5902293737,1000062540
09.03.2018,ADULT SOCIAL CARE,METRO HOMECARE LTD,418.5,SPECIALIST CARE,SECTION 17 PAYMENTS TO AGENCIES/CARERS,2102790332,1000070695
09.03.2018,ADULT SOCIAL CARE,METRO HOMECARE LTD,418.5,SPECIALIST CARE,SECTION 17 PAYMENTS TO AGENCIES/CARERS,2102790342,1000070695
09.03.2018,ADULT SOCIAL CARE,METRO HOMECARE LTD,530.1,SPECIALIST CARE,SECTION 17 PAYMENTS TO AGENCIES/CARERS,2102790333,1000070695
09.03.2018,ADULT SOCIAL CARE,METRO HOMECARE LTD,725.4,SPECIALIST CARE,SECTION 17 PAYMENTS TO AGENCIES/CARERS,2102790335,1000070695
09.03.2018,ADULT SOCIAL CARE,METRO HOMECARE LTD,"1,116.00",SPECIALIST CARE,SECTION 17 PAYMENTS TO AGENCIES/CARERS,2102790339,1000070695
09.03.2018,ADULT SOCIAL CARE,FREEDOM RECOVERY CENTRE,"1,517.60",SUB LTS 18-64,PLACEMENTS - REHAB,2102790312,1000046185
09.03.2018,ADULT SOCIAL CARE,FREEDOM RECOVERY CENTRE,"2,856.40",SUB LTS 18-64,PLACEMENTS - REHAB,2102790315,1000046185
09.03.2018,ADULT SOCIAL CARE,METRO HOMECARE LTD,809.1,TRANSITION 14 - 18 YEARS,SECTION 17 PAYMENTS TO AGENCIES/CARERS,2102790341,1000070695
09.03.2018,ADULT SOCIAL CARE,HCP STAFFING SERVICES LTD,352.95,TRANSITION 14 - 18 YEARS,SECTION 17 PAYMENTS TO AGENCIES/CARERS,2102790336,1000078329
09.03.2018,ASSET MANAGEMENT,HIGHER ELEVATION LTD,"5,279.25",ADAPTATIONS,BUILDING R&M,5902293862,1000067328
09.03.2018,ASSET MANAGEMENT,C & C BUILDERS LTD,685,ADAPTATIONS,BUILDING R&M,5902292844,1000079100
09.03.2018,ASSET MANAGEMENT,C & C BUILDERS LTD,"1,765.00",ADAPTATIONS,BUILDING R&M,5902293112,1000079100
09.03.2018,ASSET MANAGEMENT,SCS TECHNOLOGIES LTD,"1,522.82",ENG CONTRACTS (NORTH),TV AERIALS R&M,5902293798,1000069919
09.03.2018,ASSET MANAGEMENT,BRIDGEWATER ROOFING CONTRACTORS LTD,-400,VISIBLE DIFFERENCE (NORTH),BUILDING R&M,5902294092,3000001482
09.03.2018,ASSET MANAGEMENT,BRIDGEWATER ROOFING CONTRACTORS LTD,400,VISIBLE DIFFERENCE (NORTH),BUILDING R&M,5902294087,3000001482
09.03.2018,CENTRAL FUNCTIONS,VPS (UK) LTD,"16,390.08",AYLESBURY,SECURITY SERVICES,5902293766,1000040614
09.03.2018,CENTRAL FUNCTIONS,FRANKHAM CONSULTANCY GROUP LTD,780,GARAGE REPAIRS,BUILDING R&M,5902293488,1000043952
09.03.2018,CHIEF EXECUTIVE,CONWAY AECOM LTD,"30,190.24",CAPITAL PS (REGEN),CONSTR'N SUB CONTRACT - NON CERTIFICATED,5902292685,1000071205
09.03.2018,CHIEF EXECUTIVE'S OFFICE,THE BLUE BERMONDSEY BID CO LTD,"4,225.00",BUSINESS SUPPORT,GRANTS,5902292732,1000074877
09.03.2018,CHILDREN'S SERVICES,REDACTED PERSONAL DATA,264.59,ADMIN TEAM SAFEGUARDING,EXTERNAL AGENCIES AND BODIES,REDACTED,REDACTED
09.03.2018,CHILDREN'S SERVICES,CROHAM SERVICES FOR CHILDREN,"3,649.85",AGENCY FOSTERING,EXTERNAL AGENCIES AND BODIES,2102790390,1556859
09.03.2018,CHILDREN'S SERVICES,CROHAM SERVICES FOR CHILDREN,"3,649.85",AGENCY FOSTERING,EXTERNAL AGENCIES AND BODIES,2102790393,1556859
09.03.2018,CHILDREN'S SERVICES,SUPPORTED FOSTERING SERVICES,"4,090.71",AGENCY FOSTERING,EXTERNAL AGENCIES AND BODIES,2102790363,1927554
09.03.2018,CHILDREN'S SERVICES,BANYA FAMILY PLACEMENT AGENCY LTD,"3,258.36",AGENCY FOSTERING,EXTERNAL AGENCIES AND BODIES,2102790385,11328315
09.03.2018,CHILDREN'S SERVICES,TACT,"2,713.20",AGENCY FOSTERING,EXTERNAL AGENCIES AND BODIES,2102790387,1000012941
09.03.2018,CHILDREN'S SERVICES,TACT,"2,856.00",AGENCY FOSTERING,EXTERNAL AGENCIES AND BODIES,2102790380,1000012941
09.03.2018,CHILDREN'S SERVICES,TACT,"2,856.00",AGENCY FOSTERING,EXTERNAL AGENCIES AND BODIES,2102790382,1000012941
09.03.2018,CHILDREN'S SERVICES,TACT,"3,026.80",AGENCY FOSTERING,EXTERNAL AGENCIES AND BODIES,2102790364,1000012941
09.03.2018,CHILDREN'S SERVICES,TACT,"3,026.80",AGENCY FOSTERING,EXTERNAL AGENCIES AND BODIES,2102790384,1000012941
09.03.2018,CHILDREN'S SERVICES,TACT,"4,551.24",AGENCY FOSTERING,EXTERNAL AGENCIES AND BODIES,2102790374,1000012941
09.03.2018,CHILDREN'S SERVICES,CHRYSALIS CARE,"5,311.88",AGENCY FOSTERING,EXTERNAL AGENCIES AND BODIES,2102790381,1000028987
09.03.2018,CHILDREN'S SERVICES,GREATER LONDON FOSTERING,"2,879.80",AGENCY FOSTERING,EXTERNAL AGENCIES AND BODIES,2102790351,1000029184
09.03.2018,CHILDREN'S SERVICES,GREATER LONDON FOSTERING,"2,908.64",AGENCY FOSTERING,EXTERNAL AGENCIES AND BODIES,2102790378,1000029184
09.03.2018,CHILDREN'S SERVICES,GREATER LONDON FOSTERING,"2,968.00",AGENCY FOSTERING,EXTERNAL AGENCIES AND BODIES,2102790345,1000029184
09.03.2018,CHILDREN'S SERVICES,GREATER LONDON FOSTERING,"2,968.00",AGENCY FOSTERING,EXTERNAL AGENCIES AND BODIES,2102790366,1000029184
09.03.2018,CHILDREN'S SERVICES,GREATER LONDON FOSTERING,"2,968.00",AGENCY FOSTERING,EXTERNAL AGENCIES AND BODIES,2102790367,1000029184
09.03.2018,CHILDREN'S SERVICES,GREATER LONDON FOSTERING,"2,968.00",AGENCY FOSTERING,EXTERNAL AGENCIES AND BODIES,2102790371,1000029184
09.03.2018,CHILDREN'S SERVICES,GREATER LONDON FOSTERING,"3,995.88",AGENCY FOSTERING,EXTERNAL AGENCIES AND BODIES,2102790358,1000029184
09.03.2018,CHILDREN'S SERVICES,NATIONAL FOSTERING AGENCY,334.29,AGENCY FOSTERING,EXTERNAL AGENCIES AND BODIES,2102790392,1000038868
09.03.2018,CHILDREN'S SERVICES,NATIONAL FOSTERING AGENCY,"3,179.96",AGENCY FOSTERING,EXTERNAL AGENCIES AND BODIES,2102790373,1000038868
09.03.2018,CHILDREN'S SERVICES,NATIONAL FOSTERING AGENCY,"3,979.92",AGENCY FOSTERING,EXTERNAL AGENCIES AND BODIES,2102790354,1000038868
09.03.2018,CHILDREN'S SERVICES,NATIONAL FOSTERING AGENCY,"3,979.92",AGENCY FOSTERING,EXTERNAL AGENCIES AND BODIES,2102790357,1000038868
09.03.2018,CHILDREN'S SERVICES,NATIONAL FOSTERING AGENCY,"3,979.92",AGENCY FOSTERING,EXTERNAL AGENCIES AND BODIES,2102790369,1000038868
09.03.2018,CHILDREN'S SERVICES,NATIONAL FOSTERING AGENCY,"3,979.92",AGENCY FOSTERING,EXTERNAL AGENCIES AND BODIES,2102790370,1000038868
09.03.2018,CHILDREN'S SERVICES,NATIONAL FOSTERING AGENCY,"3,979.92",AGENCY FOSTERING,EXTERNAL AGENCIES AND BODIES,2102790375,1000038868
09.03.2018,CHILDREN'S SERVICES,NATIONAL FOSTERING AGENCY,"3,979.92",AGENCY FOSTERING,EXTERNAL AGENCIES AND BODIES,2102790377,1000038868
09.03.2018,CHILDREN'S SERVICES,NATIONAL FOSTERING AGENCY,"3,979.92",AGENCY FOSTERING,EXTERNAL AGENCIES AND BODIES,2102790388,1000038868
09.03.2018,CHILDREN'S SERVICES,NATIONAL FOSTERING AGENCY,"3,979.92",AGENCY FOSTERING,EXTERNAL AGENCIES AND BODIES,2102790389,1000038868
09.03.2018,CHILDREN'S SERVICES,NATIONAL FOSTERING AGENCY,"3,979.92",AGENCY FOSTERING,EXTERNAL AGENCIES AND BODIES,2102790400,1000038868
09.03.2018,CHILDREN'S SERVICES,NATIONAL FOSTERING AGENCY,"4,116.00",AGENCY FOSTERING,EXTERNAL AGENCIES AND BODIES,2102790353,1000038868
09.03.2018,CHILDREN'S SERVICES,NATIONAL FOSTERING AGENCY,"4,179.84",AGENCY FOSTERING,EXTERNAL AGENCIES AND BODIES,2102790346,1000038868
09.03.2018,CHILDREN'S SERVICES,NATIONAL FOSTERING AGENCY,"4,707.92",AGENCY FOSTERING,EXTERNAL AGENCIES AND BODIES,2102790396,1000038868
09.03.2018,CHILDREN'S SERVICES,CAPSTONE FOSTER CARE,"-1,472.77",AGENCY FOSTERING,EXTERNAL AGENCIES AND BODIES,2102790362,1000050353
09.03.2018,CHILDREN'S SERVICES,CAPSTONE FOSTER CARE,"3,172.12",AGENCY FOSTERING,EXTERNAL AGENCIES AND BODIES,2102790391,1000050353
09.03.2018,CHILDREN'S SERVICES,FOLLOWING WHISPERS FAMILY SERVICE LTD,"5,894.00",AGENCY FOSTERING,EXTERNAL AGENCIES AND BODIES,2102790386,1000065611
09.03.2018,CHILDREN'S SERVICES,FOLLOWING WHISPERS FAMILY SERVICE LTD,"6,200.04",AGENCY FOSTERING,EXTERNAL AGENCIES AND BODIES,2102790394,1000065611
09.03.2018,CHILDREN'S SERVICES,SWIIS FOSTER CARE LTD,697.97,AGENCY FOSTERING,EXTERNAL AGENCIES AND BODIES,2102790348,1000069633
09.03.2018,CHILDREN'S SERVICES,SWIIS FOSTER CARE LTD,697.97,AGENCY FOSTERING,EXTERNAL AGENCIES AND BODIES,2102790359,1000069633
09.03.2018,CHILDREN'S SERVICES,FITZGERALD FOSTERING & CONSULTANCY,"3,120.00",AGENCY FOSTERING,EXTERNAL AGENCIES AND BODIES,2102790365,1000075307
09.03.2018,CHILDREN'S SERVICES,HORIZON FOSTERING SERVICES LTD,"2,605.68",AGENCY FOSTERING,EXTERNAL AGENCIES AND BODIES,2102790379,1000075679
09.03.2018,CHILDREN'S SERVICES,HORIZON FOSTERING SERVICES LTD,"2,793.00",AGENCY FOSTERING,EXTERNAL AGENCIES AND BODIES,2102790349,1000075679
09.03.2018,CHILDREN'S SERVICES,HORIZON FOSTERING SERVICES LTD,"2,793.00",AGENCY FOSTERING,EXTERNAL AGENCIES AND BODIES,2102790397,1000075679
09.03.2018,CHILDREN'S SERVICES,HORIZON FOSTERING SERVICES LTD,"2,940.00",AGENCY FOSTERING,EXTERNAL AGENCIES AND BODIES,2102790355,1000075679
09.03.2018,CHILDREN'S SERVICES,HORIZON FOSTERING SERVICES LTD,"2,940.00",AGENCY FOSTERING,EXTERNAL AGENCIES AND BODIES,2102790383,1000075679
09.03.2018,CHILDREN'S SERVICES,HORIZON FOSTERING SERVICES LTD,"3,039.96",AGENCY FOSTERING,EXTERNAL AGENCIES AND BODIES,2102790360,1000075679
09.03.2018,CHILDREN'S SERVICES,HELP ME GROW FOSTERING SERVICES LTD,"2,591.96",AGENCY FOSTERING,EXTERNAL AGENCIES AND BODIES,2102790356,1000079302
09.03.2018,CHILDREN'S SERVICES,HELP ME GROW FOSTERING SERVICES LTD,"2,591.96",AGENCY FOSTERING,EXTERNAL AGENCIES AND BODIES,2102790361,1000079302
09.03.2018,CHILDREN'S SERVICES,HELP ME GROW FOSTERING SERVICES LTD,"2,879.80",AGENCY FOSTERING,EXTERNAL AGENCIES AND BODIES,2102790347,1000079302
09.03.2018,CHILDREN'S SERVICES,HELP ME GROW FOSTERING SERVICES LTD,"2,879.80",AGENCY FOSTERING,EXTERNAL AGENCIES AND BODIES,2102790352,1000079302
09.03.2018,CHILDREN'S SERVICES,HELP ME GROW FOSTERING SERVICES LTD,"2,879.80",AGENCY FOSTERING,EXTERNAL AGENCIES AND BODIES,2102790368,1000079302
09.03.2018,CHILDREN'S SERVICES,HELP ME GROW FOSTERING SERVICES LTD,"2,879.80",AGENCY FOSTERING,EXTERNAL AGENCIES AND BODIES,2102790398,1000079302
09.03.2018,CHILDREN'S SERVICES,HELP ME GROW FOSTERING SERVICES LTD,"2,879.80",AGENCY FOSTERING,EXTERNAL AGENCIES AND BODIES,2102790399,1000079302
09.03.2018,CHILDREN'S SERVICES,HELP ME GROW FOSTERING SERVICES LTD,"5,199.88",AGENCY FOSTERING,EXTERNAL AGENCIES AND BODIES,2102790376,1000079302
09.03.2018,CHILDREN'S SERVICES,SHINING STARS FOSTERING AGENCY LTD,"2,999.92",AGENCY FOSTERING,EXTERNAL AGENCIES AND BODIES,2102790395,1000079431
09.03.2018,CHILDREN'S SERVICES,SHINING STARS FOSTERING AGENCY LTD,"3,199.84",AGENCY FOSTERING,EXTERNAL AGENCIES AND BODIES,2102790401,1000079431
09.03.2018,CHILDREN'S SERVICES,LIKA FAMILY FOSTERING,"3,400.04",AGENCY FOSTERING,EXTERNAL AGENCIES AND BODIES,2102790350,1000080099
09.03.2018,CHILDREN'S SERVICES,FAMILY FIRST FOSTERING LTD,"6,200.00",AGENCY FOSTERING,EXTERNAL AGENCIES AND BODIES,2102790372,1000080631
09.03.2018,CHILDREN'S SERVICES,DECUS LTD,"6,600.00",ASSISSTANT DIRECTOR (CHILDREN),PROFESSIONAL FEES,5902293727,1000080190
09.03.2018,CHILDREN'S SERVICES,WALWORTH GARDEN FARM,"4,000.00",COMMUNITY LEARNING 15/16,GRANTS,5902293896,1000042204
09.03.2018,CHILDREN'S SERVICES,WALWORTH GARDEN FARM,"5,000.00",COMMUNITY LEARNING 15/16,GRANTS,5902293898,1000042204
09.03.2018,CHILDREN'S SERVICES,INSTITUTE OF LEARNING UNLIMITED,"2,250.00",COMMUNITY LEARNING 15/16,GRANTS,5902293773,1000068095
09.03.2018,CHILDREN'S SERVICES,STRIVE TRAINING (LONDON) LTD,"1,500.00",COMMUNITY LEARNING 15/16,GRANTS,5902293823,1000075272
09.03.2018,CHILDREN'S SERVICES,KENT COUNTY SUPPLIES,"1,557.74",DIRECT DELIVERY,MATERIALS,5902293734,1000000291
09.03.2018,CHILDREN'S SERVICES,INTERPRETING DIRECT CO (UK) LTD,"3,475.44",FINANCE,INTERPRETING SERVICES,5902293870,1000070133
09.03.2018,CHILDREN'S SERVICES,HEALTHCARE & TRANSPORT SERVICES,"49,497.75",HOME 2 SCHOOL TRANSPORT,CAB FARES,5902293831,1000042743
09.03.2018,CHILDREN'S SERVICES,REDACTED PERSONAL DATA,"1,890.00",HOME 2 SCHOOL TRANSPORT,OTHER PAYMENTS FOR CLIENTS,REDACTED,REDACTED
09.03.2018,CHILDREN'S SERVICES,REDACTED PERSONAL DATA,456,HOME 2 SCHOOL TRANSPORT,OTHER PAYMENTS FOR CLIENTS,REDACTED,REDACTED
09.03.2018,CHILDREN'S SERVICES,REDACTED PERSONAL DATA,700,LEAVING CARE GRANT,OTHER PAYMENTS FOR CLIENTS,REDACTED,REDACTED
09.03.2018,CHILDREN'S SERVICES,SORAIA BARBOSA,"2,142.00",NURSERY ED GRANT 3 Y Y.0.,GRANTS,2102788262,1000080643
09.03.2018,CHILDREN'S SERVICES,THE KEY SUPPORT SERVICES LTD,"14,553.79",PRIMARY ACHIEVEMENT,CONSULTANTS SERVICES,5902293208,1000058105
09.03.2018,CHILDREN'S SERVICES,THE KEY SUPPORT SERVICES LTD,"15,068.00",PRIMARY ACHIEVEMENT,CONSULTANTS SERVICES,5902293052,1000058105
09.03.2018,CHILDREN'S SERVICES,MEADOWS CARE LTD,"1,020.00",RESIDENTIAL,OTHER PAYMENTS FOR CLIENTS,5902293881,1000077238
09.03.2018,CHILDREN'S SERVICES,THE DRIVE CARE HOMES LTD,"3,921.03",RESIDENTIAL,RESIDENTIAL CARE,2102790325,1000003889
09.03.2018,CHILDREN'S SERVICES,THE DRIVE CARE HOMES LTD,"11,901.12",RESIDENTIAL,RESIDENTIAL CARE,2102790326,1000003889
09.03.2018,CHILDREN'S SERVICES,CREATING CARE CHOICES LTD,"14,000.00",RESIDENTIAL,RESIDENTIAL CARE,2102790323,1000076738
09.03.2018,CHILDREN'S SERVICES,SPORTFIT SHORT BREAK CARE LTD,"9,240.00",RESIDENTIAL,RESIDENTIAL CARE,2102790330,1000078113
09.03.2018,CHILDREN'S SERVICES,ALLIANCE CARE & EDUCATION LTD,"-6,778.75",RESIDENTIAL,RESIDENTIAL CARE,2102790329,1000079956
09.03.2018,CHILDREN'S SERVICES,ALLIANCE CARE & EDUCATION LTD,"30,020.21",RESIDENTIAL,RESIDENTIAL CARE,2102790328,1000079956
09.03.2018,CHILDREN'S SERVICES,ASPIRE HOUSE LTD,"2,164.29",RESIDENTIAL,RESIDENTIAL CARE,2102790324,1000080373
09.03.2018,CHILDREN'S SERVICES,KARTIKEYA SOLUTIONS LTD,"17,580.08",RESIDENTIAL,RESIDENTIAL CARE,2102790322,1000080483
09.03.2018,CHILDREN'S SERVICES,NORTHUMBERLAND COUNTY COUNCIL,"18,370.00",RESIDENTIAL,RESIDENTIAL CARE,2102790327,1000030424
09.03.2018,CHILDREN'S SERVICES,CARE R US LTD,"2,626.13",S24 CLA,EXTERNAL AGENCIES AND BODIES,2102788363,1000053515
09.03.2018,CHILDREN'S SERVICES,TLK PROPERTY & INVESTMENT LTD,"1,008.00",S24 CLA,EXTERNAL AGENCIES AND BODIES,2102790446,1000065661
09.03.2018,CHILDREN'S SERVICES,PURPLE PEBBLES(CHILD CARE) SERVICES,-400,S24 CLA,EXTERNAL AGENCIES AND BODIES,2102790445,1000070705
09.03.2018,CHILDREN'S SERVICES,PURPLE PEBBLES(CHILD CARE) SERVICES,300,S24 CLA,EXTERNAL AGENCIES AND BODIES,2102790414,1000070705
09.03.2018,CHILDREN'S SERVICES,PURPLE PEBBLES(CHILD CARE) SERVICES,300,S24 CLA,EXTERNAL AGENCIES AND BODIES,2102790425,1000070705
09.03.2018,CHILDREN'S SERVICES,PURPLE PEBBLES(CHILD CARE) SERVICES,300,S24 CLA,EXTERNAL AGENCIES AND BODIES,2102790427,1000070705
09.03.2018,CHILDREN'S SERVICES,PURPLE PEBBLES(CHILD CARE) SERVICES,300,S24 CLA,EXTERNAL AGENCIES AND BODIES,2102790431,1000070705
09.03.2018,CHILDREN'S SERVICES,PURPLE PEBBLES(CHILD CARE) SERVICES,300,S24 CLA,EXTERNAL AGENCIES AND BODIES,2102790447,1000070705
09.03.2018,CHILDREN'S SERVICES,PURPLE PEBBLES(CHILD CARE) SERVICES,300,S24 CLA,EXTERNAL AGENCIES AND BODIES,2102790449,1000070705
09.03.2018,CHILDREN'S SERVICES,PURPLE PEBBLES(CHILD CARE) SERVICES,300,S24 CLA,EXTERNAL AGENCIES AND BODIES,2102790450,1000070705
09.03.2018,CHILDREN'S SERVICES,PURPLE PEBBLES(CHILD CARE) SERVICES,300,S24 CLA,EXTERNAL AGENCIES AND BODIES,2102790451,1000070705
09.03.2018,CHILDREN'S SERVICES,PURPLE PEBBLES(CHILD CARE) SERVICES,300,S24 CLA,EXTERNAL AGENCIES AND BODIES,2102790458,1000070705
09.03.2018,CHILDREN'S SERVICES,PURPLE PEBBLES(CHILD CARE) SERVICES,740,S24 CLA,EXTERNAL AGENCIES AND BODIES,2102790412,1000070705
09.03.2018,CHILDREN'S SERVICES,PURPLE PEBBLES(CHILD CARE) SERVICES,"1,100.00",S24 CLA,EXTERNAL AGENCIES AND BODIES,2102790411,1000070705
09.03.2018,CHILDREN'S SERVICES,PURPLE PEBBLES(CHILD CARE) SERVICES,"1,120.00",S24 CLA,EXTERNAL AGENCIES AND BODIES,2102790440,1000070705
09.03.2018,CHILDREN'S SERVICES,PURPLE PEBBLES(CHILD CARE) SERVICES,"1,153.84",S24 CLA,EXTERNAL AGENCIES AND BODIES,2102790459,1000070705
09.03.2018,CHILDREN'S SERVICES,PURPLE PEBBLES(CHILD CARE) SERVICES,"1,160.00",S24 CLA,EXTERNAL AGENCIES AND BODIES,2102790423,1000070705
09.03.2018,CHILDREN'S SERVICES,PURPLE PEBBLES(CHILD CARE) SERVICES,"1,180.00",S24 CLA,EXTERNAL AGENCIES AND BODIES,2102790438,1000070705
09.03.2018,CHILDREN'S SERVICES,PURPLE PEBBLES(CHILD CARE) SERVICES,"1,200.00",S24 CLA,EXTERNAL AGENCIES AND BODIES,2102790439,1000070705
09.03.2018,CHILDREN'S SERVICES,PURPLE PEBBLES(CHILD CARE) SERVICES,"1,200.00",S24 CLA,EXTERNAL AGENCIES AND BODIES,2102790443,1000070705
09.03.2018,CHILDREN'S SERVICES,PURPLE PEBBLES(CHILD CARE) SERVICES,"1,220.00",S24 CLA,EXTERNAL AGENCIES AND BODIES,2102790456,1000070705
09.03.2018,CHILDREN'S SERVICES,PURPLE PEBBLES(CHILD CARE) SERVICES,"1,300.00",S24 CLA,EXTERNAL AGENCIES AND BODIES,2102790416,1000070705
09.03.2018,CHILDREN'S SERVICES,PURPLE PEBBLES(CHILD CARE) SERVICES,"1,300.00",S24 CLA,EXTERNAL AGENCIES AND BODIES,2102790434,1000070705
09.03.2018,CHILDREN'S SERVICES,PURPLE PEBBLES(CHILD CARE) SERVICES,"1,600.00",S24 CLA,EXTERNAL AGENCIES AND BODIES,2102790417,1000070705
09.03.2018,CHILDREN'S SERVICES,FINEFAIR LTD,688.93,S24 CLA,EXTERNAL AGENCIES AND BODIES,2102790457,1000075570
09.03.2018,CHILDREN'S SERVICES,FINEFAIR LTD,"1,524.04",S24 CLA,EXTERNAL AGENCIES AND BODIES,2102790413,1000075570
09.03.2018,CHILDREN'S SERVICES,FINEFAIR LTD,"1,524.04",S24 CLA,EXTERNAL AGENCIES AND BODIES,2102790420,1000075570
09.03.2018,CHILDREN'S SERVICES,FINEFAIR LTD,"1,524.04",S24 CLA,EXTERNAL AGENCIES AND BODIES,2102790428,1000075570
09.03.2018,CHILDREN'S SERVICES,FINEFAIR LTD,"1,524.04",S24 CLA,EXTERNAL AGENCIES AND BODIES,2102790433,1000075570
09.03.2018,CHILDREN'S SERVICES,FINEFAIR LTD,"1,524.04",S24 CLA,EXTERNAL AGENCIES AND BODIES,2102790437,1000075570
09.03.2018,CHILDREN'S SERVICES,FINEFAIR LTD,"1,811.32",S24 CLA,EXTERNAL AGENCIES AND BODIES,2102790432,1000075570
09.03.2018,CHILDREN'S SERVICES,FINEFAIR LTD,"1,980.16",S24 CLA,EXTERNAL AGENCIES AND BODIES,2102790452,1000075570
09.03.2018,CHILDREN'S SERVICES,CREATING LIFESTYLES,"1,800.00",S24 CLA,EXTERNAL AGENCIES AND BODIES,2102790435,1000075830
09.03.2018,CHILDREN'S SERVICES,CREATING LIFESTYLES,"2,180.00",S24 CLA,EXTERNAL AGENCIES AND BODIES,2102790424,1000075830
09.03.2018,CHILDREN'S SERVICES,CREATING LIFESTYLES,"2,667.40",S24 CLA,EXTERNAL AGENCIES AND BODIES,2102790441,1000075830
09.03.2018,CHILDREN'S SERVICES,CREATING LIFESTYLES,"2,780.00",S24 CLA,EXTERNAL AGENCIES AND BODIES,2102790410,1000075830
09.03.2018,CHILDREN'S SERVICES,CREATING LIFESTYLES,"2,780.00",S24 CLA,EXTERNAL AGENCIES AND BODIES,2102790429,1000075830
09.03.2018,CHILDREN'S SERVICES,CREATING LIFESTYLES,"2,780.00",S24 CLA,EXTERNAL AGENCIES AND BODIES,2102790442,1000075830
09.03.2018,CHILDREN'S SERVICES,CORNERSTONE CARE PARTNERSHIP LTD,"1,315.44",S24 CLA,EXTERNAL AGENCIES AND BODIES,2102790448,1000078888
09.03.2018,CHILDREN'S SERVICES,CORNERSTONE CARE PARTNERSHIP LTD,"1,411.07",S24 CLA,EXTERNAL AGENCIES AND BODIES,2102790460,1000078888
09.03.2018,CHILDREN'S SERVICES,CORNERSTONE CARE PARTNERSHIP LTD,"1,411.25",S24 CLA,EXTERNAL AGENCIES AND BODIES,2102790453,1000078888
09.03.2018,CHILDREN'S SERVICES,DALEY BREAD LTD,"4,207.01",S24 CLA,EXTERNAL AGENCIES AND BODIES,2102790418,1000080141
09.03.2018,CHILDREN'S SERVICES,CONTACT PROFESSIONALS,475,SEMI INDEPENDENT,EXTERNAL AGENCIES AND BODIES,2102790403,1000057263
09.03.2018,CHILDREN'S SERVICES,CREATING LIFESTYLES,"3,540.00",SEMI INDEPENDENT,EXTERNAL AGENCIES AND BODIES,2102790406,1000075830
09.03.2018,CHILDREN'S SERVICES,CREATING LIFESTYLES,"4,040.00",SEMI INDEPENDENT,EXTERNAL AGENCIES AND BODIES,2102790404,1000075830
09.03.2018,CHILDREN'S SERVICES,CREATING LIFESTYLES,"4,232.00",SEMI INDEPENDENT,EXTERNAL AGENCIES AND BODIES,2102790407,1000075830
09.03.2018,CHILDREN'S SERVICES,CREATING LIFESTYLES,"22,040.00",SEMI INDEPENDENT,EXTERNAL AGENCIES AND BODIES,2102790409,1000075830
09.03.2018,CHILDREN'S SERVICES,CREATING LIFESTYLES,"25,732.00",SEMI INDEPENDENT,EXTERNAL AGENCIES AND BODIES,2102790405,1000075830
09.03.2018,CHILDREN'S SERVICES,CONTACT PROFESSIONALS,283.44,SEMI INDEPENDENT,OTHER PAYMENTS FOR CLIENTS,2102790408,1000057263
09.03.2018,CHILDREN'S SERVICES,REDACTED PERSONAL DATA,881.1,SEMI INDEPENDENT,OTHER PAYMENTS FOR CLIENTS,REDACTED,REDACTED
09.03.2018,CHILDREN'S SERVICES,REDACTED PERSONAL DATA,300,SEMI INDEPENDENT,OTHER PAYMENTS FOR CLIENTS,REDACTED,REDACTED
09.03.2018,CHILDREN'S SERVICES,REDACTED PERSONAL DATA,300,SEMI INDEPENDENT,OTHER PAYMENTS FOR CLIENTS,REDACTED,REDACTED
09.03.2018,CHILDREN'S SERVICES,NATIONAL FOSTERING AGENCY,"1,327.76",STAYING PUT,EXTERNAL AGENCIES AND BODIES,2102790419,1000038868
09.03.2018,CHILDREN'S SERVICES,NATIONAL FOSTERING AGENCY,"1,680.00",STAYING PUT,EXTERNAL AGENCIES AND BODIES,2102790421,1000038868
09.03.2018,CHILDREN'S SERVICES,NATIONAL FOSTERING AGENCY,"1,680.00",STAYING PUT,EXTERNAL AGENCIES AND BODIES,2102790444,1000038868
09.03.2018,CHILDREN'S SERVICES,NATIONAL FOSTERING AGENCY,"1,680.00",STAYING PUT,EXTERNAL AGENCIES AND BODIES,2102790461,1000038868
09.03.2018,CHILDREN'S SERVICES,LIVING ACCOMODATION LTD,"3,948.00",TEMPORARY ACCOMMODATION,EXTERNAL AGENCIES AND BODIES,5902293721,1000063985
09.03.2018,CHILDREN'S SERVICES,SOCIETE GENERALE EQUIPMENT FINANCE LTD,295.02,THOMAS CALTON CENTRE,TELEPHONES (LAND LINES),5902293824,1000058395
09.03.2018,CHILDREN'S SERVICES,PURPLE PEBBLES(CHILD CARE) SERVICES,300,UASC SECTION 24,EXTERNAL AGENCIES AND BODIES,2102790415,1000070705
09.03.2018,CHILDREN'S SERVICES,PURPLE PEBBLES(CHILD CARE) SERVICES,"1,160.00",UASC SECTION 24,EXTERNAL AGENCIES AND BODIES,2102790455,1000070705
09.03.2018,CHILDREN'S SERVICES,PURPLE PEBBLES(CHILD CARE) SERVICES,"1,560.00",UASC SECTION 24,EXTERNAL AGENCIES AND BODIES,2102790436,1000070705
09.03.2018,COMMUNITIES,HOMELY HOUSING LETS LTD,"47,887.56",NO RECOURSE TO PUBLIC FUNDS,ACCOMMODATION CHARGES,5902293790,1000050013
09.03.2018,COMMUNITIES,WILLOW ESTATE AGENTS (LONDON) LTD,"7,392.00",NO RECOURSE TO PUBLIC FUNDS,ACCOMMODATION CHARGES,5902293722,1000060607
09.03.2018,COMMUNITIES,KINDLY PROPERTIES,"15,770.00",NO RECOURSE TO PUBLIC FUNDS,ACCOMMODATION CHARGES,5902293846,1000060734
09.03.2018,COMMUNITIES,D SINGH PROPERTIES LTD,"3,106.00",NO RECOURSE TO PUBLIC FUNDS,ACCOMMODATION CHARGES,5902293749,1000068030
09.03.2018,COMMUNITIES,CROMWOOD HOUSING,"20,840.00",NO RECOURSE TO PUBLIC FUNDS,ACCOMMODATION CHARGES,5902293723,1000071450
09.03.2018,COMMUNITIES,TAAKSVALE HOUSING LTD,"6,442.85",NO RECOURSE TO PUBLIC FUNDS,ACCOMMODATION CHARGES,5902293897,1000073665
09.03.2018,COMMUNITIES,TAAKSVALE HOUSING LTD,"22,827.75",NO RECOURSE TO PUBLIC FUNDS,ACCOMMODATION CHARGES,5902293897,1000073665
09.03.2018,COMMUNITIES,HOMELY HOUSING LETS LTD,"2,726.79",NO RECOURSE TO PUBLIC FUNDS,OTHER PAYMENTS FOR CLIENTS,5902293836,1000050013
09.03.2018,COMMUNITIES,HOMELY HOUSING LETS LTD,"5,020.05",NO RECOURSE TO PUBLIC FUNDS,OTHER PAYMENTS FOR CLIENTS,5902293834,1000050013
09.03.2018,COMMUNITIES,OPEN COMMUNITIES LTD,"1,506.75",RESIDENT INVOLVEMENT TEAM,PLANNED MAINTENANCE,5902293876,1000065800
09.03.2018,COMMUNITIES,EDF ENERGY PLC,"1,067.13",TRA HALLS (REPAIRS),ELECTRICITY,5902293848,1008746
09.03.2018,CUSTOMER EXPERIENCE HGF,SG PATH LTD,-595.9,CORONER'S,PROFESSIONAL FEES,5902294048,1000077883
09.03.2018,CUSTOMER EXPERIENCE HGF,SG PATH LTD,595.9,CORONER'S,PROFESSIONAL FEES,5902292136,1000077883
09.03.2018,CUSTOMER EXPERIENCE HGF,IMPERIAL COLLEGE PROJECTS LTD,492,CORONER'S,PROFESSIONAL FEES,5902293689,1000080106
09.03.2018,CUSTOMER EXPERIENCE HGF,BIRCHAM DYSON BELL,647.33,LONDON BRIDGE INQUEST,OFFICE EXPENSES,5902293596,1000048605
09.03.2018,CUSTOMER EXPERIENCE HGF,BIRCHAM DYSON BELL,"44,279.56",LONDON BRIDGE INQUEST,OFFICE EXPENSES,5902293596,1000048605
09.03.2018,CUSTOMER EXPERIENCE HGF,QUINARY LTD,"2,405.20",NIGHTLY TA (NSC),EXTERNAL AGENCIES AND BODIES,5902293827,1000029106
09.03.2018,CUSTOMER EXPERIENCE HGF,TAAKSVALE HOUSING LTD,"85,915.00",NIGHTLY TA (NSC),EXTERNAL AGENCIES AND BODIES,5902293809,1000073665
09.03.2018,CUSTOMER EXPERIENCE HGF,CROWN HOUSING LTD,"10,092.00",NIGHTLY TA (NSC),EXTERNAL AGENCIES AND BODIES,5902293761,1000075070
09.03.2018,CUSTOMER EXPERIENCE HGF,DELTALET LTD,"1,008.00",NIGHTLY TA (NSC),EXTERNAL AGENCIES AND BODIES,5902293453,1000075113
09.03.2018,CUSTOMER EXPERIENCE HGF,MSR HOUSING,"2,198.00",NIGHTLY TA (NSC),EXTERNAL AGENCIES AND BODIES,5902293797,1000079359
09.03.2018,CUSTOMER EXPERIENCE HGF,LONDON PROPERTY ONLINE LTD,"33,721.80",NIGHTLY TA (NSC),EXTERNAL AGENCIES AND BODIES,5902293829,1000080013
09.03.2018,ENVIRONMENT AND LEISURE,MICHAEL AND PARTNERS LTD,"4,475.00",CAPITAL PS (LEISURE),CONSTRUCTION FEES  - EXTERNAL,5902292636,1000077686
09.03.2018,ENVIRONMENT DIRECTORATE,SCOT GROUP LIMITED,371.28,COMMERCIAL VEH CTRL A/C,HIRED VEHICLES,5902293869,1709512
09.03.2018,ENVIRONMENT DIRECTORATE,DAWSON RENTALS BUS & COACH LTD,450,COMMERCIAL VEH CTRL A/C,HIRED VEHICLES,5902293889,1000042174
09.03.2018,ENVIRONMENT DIRECTORATE,PACE ACCIDENT REPAIRS CENTRE LTD,"1,180.25",FLEET INSURANCE WORKS,TRANSPORT INSURANCE COSTS,5902293887,1000069899
09.03.2018,ENVIRONMENT DIRECTORATE,METROPOLITAN POLICE AUTHORITY,"16,625.00",MPS/SOUTHWARK JETS,PROFESSIONAL FEES,5902293726,1000035048
09.03.2018,ENVIRONMENT DIRECTORATE,METROPOLITAN POLICE AUTHORITY,"106,000.00",MPS/SOUTHWARK JETS,PROFESSIONAL FEES,5902293729,1000035048
09.03.2018,ENVIRONMENT DIRECTORATE,TYCO INTEGRATED FIRE & SECURITY,420.57,TOWN CENTRE CCTV,OTHER CONTRACTORS,5902292952,1000077948
09.03.2018,ENVIRONMENT DIRECTORATE,WSP UK LTD,"8,626.08",TRANSPORT PROJECTS,CONSULTANTS SERVICES,5902292661,1000054214
09.03.2018,ENVIRONMENT DIRECTORATE,CITY OF LONDON CORPORATION,"2,058.42",WASTE DISPOSAL,OTHER CONTRACTORS,5902293868,1000052061
09.03.2018,ENVIRONMENT DIRECTORATE,CITY OF LONDON CORPORATION,"2,542.95",WASTE DISPOSAL,OTHER CONTRACTORS,5902293872,1000052061
09.03.2018,F & C S EXCLUDING CORPORATE BUDGETS,NORTHGATE PUBLIC SERVICES (UK) LTD,286.52,ADMINISTRATIVE SUPPORT,POSTAGES,5902293842,1000037405
09.03.2018,HOUSING HRA,HARRADINES REMOVALS,"2,200.00",CAPITAL PS (HRA),CAPITAL GRANTS,5902293732,1006511
09.03.2018,HOUSING HRA,A J MOODY T/A AJM,"2,607.00",CAPITAL PS (HRA),CONST'N MAIN CONTRACT - NON CERTIFICATED,2102790130,3000002026
09.03.2018,HOUSING HRA,CALFORD SEADEN LLP,"1,325.52",CAPITAL PS (HRA),CONSTRUCTION FEES  - EXTERNAL,5902293878,1061592
09.03.2018,HOUSING HRA,CALFORD SEADEN LLP,"1,527.63",CAPITAL PS (HRA),CONSTRUCTION FEES  - EXTERNAL,5902293880,1061592
09.03.2018,HOUSING HRA,CALFORD SEADEN LLP,"4,379.76",CAPITAL PS (HRA),CONSTRUCTION FEES  - EXTERNAL,5902292688,1061592
09.03.2018,HOUSING HRA,CALFORD SEADEN LLP,"8,844.23",CAPITAL PS (HRA),CONSTRUCTION FEES  - EXTERNAL,5902292679,1061592
09.03.2018,HOUSING HRA,GUIDELINE LIFT SERVICES LTD,"55,249.30",GUIDELINE,MANUAL CREDITORS,5902293770,1000064176
09.03.2018,HOUSING HRA,LIFTEC LIFTS LTD,"64,845.15",PAYMENTS CONTROL ACCOUNT - LIFTEC,MANUAL CREDITORS,5902293817,1000057278
09.03.2018,HOUSING HRA,LIFTEC LIFTS LTD,"65,614.46",PAYMENTS CONTROL ACCOUNT - LIFTEC,MANUAL CREDITORS,5902293818,1000057278
09.03.2018,HOUSING HRA,SCCI ALPHATRACK LTD,"78,839.00",SCCI ALPHATRACK,MANUAL CREDITORS,5902293805,1000071955
09.03.2018,LEISURE DIRECTORATE,ALDO RINALDI,"2,400.00",ARTS SERVICES,CONSULTANTS SERVICES,5902292835,1000079649
09.03.2018,LEISURE DIRECTORATE,TECHNICAL SURFACES,582.5,BURGESS SPORTS CENTRE,GROUNDS MAINTENANCE,5902293786,1000011451
09.03.2018,LEISURE DIRECTORATE,KENT COUNTY COUNCIL - LASER,318.72,DULWICH AREA TEAM,ELECTRICITY,5902293852,1000012926
09.03.2018,LEISURE DIRECTORATE,KENT COUNTY COUNCIL - LASER,326,DULWICH AREA TEAM,ELECTRICITY,5902293858,1000012926
09.03.2018,LEISURE DIRECTORATE,KENT COUNTY COUNCIL - LASER,327.25,DULWICH AREA TEAM,ELECTRICITY,5902293864,1000012926
09.03.2018,LEISURE DIRECTORATE,KENT COUNTY COUNCIL - LASER,327.3,DULWICH AREA TEAM,ELECTRICITY,5902293859,1000012926
09.03.2018,LEISURE DIRECTORATE,KENT COUNTY COUNCIL - LASER,328.15,DULWICH AREA TEAM,ELECTRICITY,5902293849,1000012926
09.03.2018,LEISURE DIRECTORATE,KENT COUNTY COUNCIL - LASER,329.18,DULWICH AREA TEAM,ELECTRICITY,5902293851,1000012926
09.03.2018,LEISURE DIRECTORATE,KENT COUNTY COUNCIL - LASER,329.41,DULWICH AREA TEAM,ELECTRICITY,5902293853,1000012926
09.03.2018,LEISURE DIRECTORATE,KENT COUNTY COUNCIL - LASER,330.03,DULWICH AREA TEAM,ELECTRICITY,5902293857,1000012926
09.03.2018,LEISURE DIRECTORATE,KENT COUNTY COUNCIL - LASER,330.29,DULWICH AREA TEAM,ELECTRICITY,5902293860,1000012926
09.03.2018,LEISURE DIRECTORATE,IDVERDE LTD,"2,206.62",HOMERSTALL ROAD SPORTS GROUND,GROUNDS MAINTENANCE,5902292706,1000079198
09.03.2018,MODERNISATION HGF,THE HUB EVENTS LTD,"1,680.00",CFM OPERATIONAL BUDGET,TRAINING,5902293277,1000065793
09.03.2018,MODERNISATION HGF,SODEXHO PASS LTD,696.63,CHILDCARE VOUCHERS,OTHER EMPLOYEE EXPENSES,5902293835,1000048650
09.03.2018,MODERNISATION HGF,SODEXHO PASS LTD,"23,221.06",CHILDCARE VOUCHERS,OTHER EMPLOYEE EXPENSES,5902293835,1000048650
09.03.2018,MODERNISATION HGF,RSM UK TAX AND ACCOUNTING LTD,"3,650.00",COMMISSIONING,TRAINING,5902293725,1000079825
09.03.2018,MODERNISATION HGF,PAMS ASSESSMENT LTD,980.83,"CSC - PROF DEV, QUALIFICATIONS AND CONSU",TRAINING,5902293882,1000080854
09.03.2018,MODERNISATION HGF,TMS DEVELOPMENT INTERNATIONAL LTD,"2,743.25",ORG TRANSFORMATION,TRAINING,5902293891,1000080859
09.03.2018,MODERNISATION HGF,CENTRAL EVENT HIRE LTD,291.9,SED GROUP DEVELOPMENT FUND,OP LEASE/HIRE CHARGES:PLANT/EQUIP/FURNIT,5902292015,1000080750
09.03.2018,MODERNISATION HGF,CAPITA SECURE INFORMATION,"33,508.47",TECHNOLOGY,PROFESSIONAL FEES,5902293902,1000070739
09.03.2018,MODERNISATION HGF,LONDON GRID FOR LEARNING TRUST,878.17,TECHNOLOGY,TELEPHONES (LAND LINES),5902293762,1000066669
09.03.2018,MODERNISATION HGF,LONDON GRID FOR LEARNING TRUST,"1,599.55",TECHNOLOGY,TELEPHONES (LAND LINES),5902293747,1000066669
09.03.2018,PUBLIC HEALTH,KINGSTON HOSPITAL NHS FOUNDATION TRUST,"1,593.60",SEXUAL HEALTH - STI,EXTERNAL AGENCIES AND BODIES,5902293801,1000076211
09.03.2018,PUBLIC HEALTH,KINGSTON HOSPITAL NHS FOUNDATION TRUST,"2,712.81",SEXUAL HEALTH - STI,EXTERNAL AGENCIES AND BODIES,5902293802,1000076211
09.03.2018,RESIDENT SERVICES,A & M PROPERTY AND CONSTRUCTION LTD,980,TA PLACEMENTS,EXTERNAL AGENCIES AND BODIES,5902293771,1000014564
10.03.2018,CHILDREN'S SERVICES,NATIONAL FOSTERING AGENCY,415,AGENCY FOSTERING,PUBLIC TRANSPORT,5902293540,1000038868
10.03.2018,CHILDREN'S SERVICES,NATIONAL FOSTERING AGENCY,415,AGENCY FOSTERING,PUBLIC TRANSPORT,5902293542,1000038868
10.03.2018,CHILDREN'S SERVICES,NATIONAL FOSTERING AGENCY,415,AGENCY FOSTERING,PUBLIC TRANSPORT,5902293544,1000038868
10.03.2018,CHILDREN'S SERVICES,ACCESS MOBILITY TRANSPORT LTD,"1,008.00",ALTERNATIVE PROVISION,EXTERNAL AGENCIES AND BODIES,5902293570,1000074637
10.03.2018,CHILDREN'S SERVICES,ACCESS MOBILITY TRANSPORT LTD,"1,125.00",ALTERNATIVE PROVISION,EXTERNAL AGENCIES AND BODIES,5902293573,1000074637
10.03.2018,CHILDREN'S SERVICES,DISCLOSURE & BARRING SERVICE,"6,908.00",CSC - RECHARGES,EXTERNAL AGENCIES AND BODIES,5902293533,1000027861
10.03.2018,CHILDREN'S SERVICES,REDACTED PERSONAL DATA,"1,050.00",HOME 2 SCHOOL TRANSPORT,OTHER PAYMENTS FOR CLIENTS,REDACTED,REDACTED
10.03.2018,CHILDREN'S SERVICES,PURPLE PEBBLES(CHILD CARE) SERVICES,-792.44,RESOURCE PANEL,SECTION 17 PAYMENTS TO AGENCIES/CARERS,5902293088,1000070705
10.03.2018,CHILDREN'S SERVICES,PURPLE PEBBLES(CHILD CARE) SERVICES,-792.44,RESOURCE PANEL,SECTION 17 PAYMENTS TO AGENCIES/CARERS,5902293089,1000070705
10.03.2018,CHILDREN'S SERVICES,PURPLE PEBBLES(CHILD CARE) SERVICES,"1,160.00",RESOURCE PANEL,SECTION 17 PAYMENTS TO AGENCIES/CARERS,5902293087,1000070705
10.03.2018,CHILDREN'S SERVICES,VEOLIA ES (UK)LTD,399.62,THOMAS CALTON CENTRE,REFUSE COLLECTION CONTRACT,5902293578,1824835
10.03.2018,COMMUNITIES,LETTING INTERNATIONAL LTD,"1,372.00",NO RECOURSE TO PUBLIC FUNDS,ACCOMMODATION CHARGES,5902293009,1000070102
10.03.2018,COMMUNITIES,PURPLE PEBBLES(CHILD CARE) SERVICES,"4,515.00",NO RECOURSE TO PUBLIC FUNDS,ACCOMMODATION CHARGES,5902293018,1000070705
10.03.2018,COMMUNITIES,ALLPAY NET LIMITED,"1,275.40",NO RECOURSE TO PUBLIC FUNDS,PROFESSIONAL FEES,5902293709,1000043001
10.03.2018,ENVIRONMENT AND LEISURE,LDA DESIGN CONSULTING LTD,"6,444.00",CAPITAL PS (LEISURE),CONSTRUCTION FEES  - EXTERNAL,5902293581,1000031830
10.03.2018,ENVIRONMENT AND LEISURE,THOMAS FORD AND PARTNERS,780,CAPITAL PS (LEISURE),CONSTRUCTION FEES  - EXTERNAL,5902293644,1000037686
10.03.2018,ENVIRONMENT DIRECTORATE,TIPPERHIRE LTD,460,COMMERCIAL VEH CTRL A/C,HIRED VEHICLES,5902293396,1000055357
10.03.2018,ENVIRONMENT DIRECTORATE,TIPPERHIRE LTD,460,COMMERCIAL VEH CTRL A/C,HIRED VEHICLES,5902293400,1000055357
10.03.2018,ENVIRONMENT DIRECTORATE,TIPPERHIRE LTD,460,COMMERCIAL VEH CTRL A/C,HIRED VEHICLES,5902293401,1000055357
10.03.2018,ENVIRONMENT DIRECTORATE,TIPPERHIRE LTD,"1,100.00",COMMERCIAL VEH CTRL A/C,HIRED VEHICLES,5902293394,1000055357
10.03.2018,ENVIRONMENT DIRECTORATE,TIPPERHIRE LTD,"1,100.00",COMMERCIAL VEH CTRL A/C,HIRED VEHICLES,5902293399,1000055357
10.03.2018,ENVIRONMENT DIRECTORATE,APCOA PARKING (UK) LTD,"286,410.01",PARKING OVERHEADS,OTHER CONTRACTORS,5902293273,1718645
10.03.2018,ENVIRONMENT DIRECTORATE,CROWN OIL UK,545.4,SANDGATE STREET,VEHICLE FUEL,5902293691,1000074865
10.03.2018,F & C S EXCLUDING CORPORATE BUDGETS,THE CAMDEN SOCIETY (CATERING),498,CONSTITUTIONAL TEAM,REFRESHMENTS FOR MEETINGS,5902293160,1000075365
10.03.2018,HOUSING HRA,ANSADOR LTD,929.82,CAPITAL PS (HRA),CONSTRUCTION FEES  - EXTERNAL,5902293093,1000032075
10.03.2018,HOUSING HRA,JOHN BURKE ASSOCIATES,"1,248.00",CAPITAL PS (HRA),CONSTRUCTION FEES - INTERNAL,5902293182,1000026411
10.03.2018,HOUSING HRA,JOHN BURKE ASSOCIATES,"1,888.00",CAPITAL PS (HRA),CONSTRUCTION FEES - INTERNAL,5902293187,1000026411
10.03.2018,HOUSING HRA,SMITH & BYFORD LTD,"517,683.39",SMITH AND BYFORD,MANUAL CREDITORS,5902293110,11212119
10.03.2018,LEISURE DIRECTORATE,VIVEDIA LIMITED,578,CREMATORIUM,OP LEASE/HIRE CHARGES:PLANT/EQUIP/FURNIT,5902293011,1000064867
10.03.2018,LEISURE DIRECTORATE,PENNINGTON CHOICES LTD,941,FACILITIES MAINTENANCE,BUILDING R&M,5902293279,1000001687
10.03.2018,LEISURE DIRECTORATE,PENNINGTON CHOICES LTD,"1,236.00",FACILITIES MAINTENANCE,BUILDING R&M,5902293279,1000001687
10.03.2018,MODERNISATION HGF,OFFICE DEPOT UK LTD,"5,790.85",160 TOOLEY ST.,STATIONERY,5902293664,1109426
10.03.2018,MODERNISATION HGF,TABRIS LTD,"2,393.75",ILM COSTS,TRAINING,5902293094,1000080027
10.03.2018,MODERNISATION HGF,ANALYTICAL BUSINESS SOLUTIONS (UK),"2,970.00",IT MANAGEMENT,CONSULTANTS SERVICES,5902293694,1000037133
10.03.2018,MODERNISATION HGF,VEOLIA ES (UK)LTD,"3,318.21",REFUSE - VEOLIA,WASTE DISPOSAL CONTRACT,5902293285,1824835
10.03.2018,MODERNISATION HGF,VEOLIA ES (UK)LTD,"9,403.74",REFUSE - VEOLIA,WASTE DISPOSAL CONTRACT,5902293123,1824835
10.03.2018,MODERNISATION HGF,MACH 1 COURIERS LTD,"1,243.43",REPAIR AND MAINTENANCE SERVICES,CAB FARES,5902293476,1000038113
10.03.2018,MODERNISATION HGF,LONDON GRID FOR LEARNING TRUST,"1,995.63",TECHNOLOGY,TELEPHONES (LAND LINES),5902293748,1000066669
10.03.2018,PLANNING AND TRANSPORT,RP2 LTD,495,PLANNING POLICY TEAM,MARKETING & PUBLICITY SERVICES,5902293825,1000063096
10.03.2018,PLANNING AND TRANSPORT,RP2 LTD,495,PLANNING POLICY TEAM,MARKETING & PUBLICITY SERVICES,5902293828,1000063096
10.03.2018,REGENERATION,OPEN COMMUNITIES LTD,"2,635.00",QUEENS ROAD BLOCK F FEASIBILTY,PROFESSIONAL FEES,5902293685,1000065800
10.03.2018,RESIDENT SERVICES,CARLISLE SECURITY SERVICES LTD,"9,864.96",CAMBERWELL,SECURITY SERVICES,5902293799,11212342
11.03.2018,ADULT SOCIAL CARE,TUNSTALL HEALTHCARE (UK) LTD,"3,747.00",SOUTHWARK RESOURCE CENTRE,EQUIPMENT PURCHASE & REPAIR,5902293275,1012297
11.03.2018,ASSET MANAGEMENT,PJP DEVELOPMENT CONSULTANCY LTD,"4,462.50",DEVELOPMENT DELIVERY,PROFESSIONAL FEES,5902293197,1000080388
11.03.2018,CHIEF EXECUTIVE,LANDOLT & BROWN,"36,541.00",CAPITAL PS (REGEN),CONSTRUCTION FEES - ARCHITECT,5902293098,1000069588
11.03.2018,CHILDREN AND ADULT,NUMBER 10 INTERIM LTD,"2,625.00",CAPITAL PS (STRAT SERV),ICT ACQUISITION,5902292959,1000075139
11.03.2018,CHILDREN'S SERVICES,HANNAH MAULE-FFINCH,450,DISABILITY & HIV,MARKETING & PUBLICITY SERVICES,5902293321,1000034725
11.03.2018,CHILDREN'S SERVICES,CITYGLEN LTD,812,S24 CLA,EXTERNAL AGENCIES AND BODIES,5902293899,1000026239
11.03.2018,CHILDREN'S SERVICES,CITYGLEN LTD,"1,260.00",S24 CLA,EXTERNAL AGENCIES AND BODIES,5902293901,1000026239
11.03.2018,COMMISSIONING & CENTRAL,CLEARNOTION LTD,"7,150.00",COMMISSIONING TEAM,EXTERNAL AGENCIES AND BODIES,5902293536,1000080769
11.03.2018,COMMUNITIES,S & G PROPERTIES,"10,060.12",NO RECOURSE TO PUBLIC FUNDS,ACCOMMODATION CHARGES,5902293700,1000005082
11.03.2018,COMMUNITIES,RENT CONNECT HOUSING LTD,952,NO RECOURSE TO PUBLIC FUNDS,ACCOMMODATION CHARGES,5902293251,1000074815
11.03.2018,COMMUNITIES,S & G PROPERTIES,979.67,NO RECOURSE TO PUBLIC FUNDS,OTHER PAYMENTS FOR CLIENTS,5902293712,1000005082
11.03.2018,CUSTOMER EXPERIENCE HGF,ABLE 2 OCCUPATIONAL THERAPY SERVICE,"1,290.00",BLUE BADGES,PROFESSIONAL FEES,5902293509,1000064695
11.03.2018,CUSTOMER EXPERIENCE HGF,S & G PROPERTIES,"2,016.00",NIGHTLY TA (NSC),EXTERNAL AGENCIES AND BODIES,5902293884,1000005082
11.03.2018,ENVIRONMENT DIRECTORATE,TENNANT UK CLEANING SOLUTIONS LTD,588,MANAGEMENT TEAM,EQUIPMENT PURCHASE & REPAIR,5902293666,1065589
11.03.2018,ENVIRONMENT DIRECTORATE,SOUTHWARK NEWSPAPER LTD,276,STREET WORKS OVERHEADS,MARKETING & PUBLICITY SERVICES,5902293740,1556957
11.03.2018,ENVIRONMENT DIRECTORATE,SOUTHWARK NEWSPAPER LTD,288,STREET WORKS OVERHEADS,MARKETING & PUBLICITY SERVICES,5902293736,1556957
11.03.2018,ENVIRONMENT DIRECTORATE,SOUTHWARK NEWSPAPER LTD,288,STREET WORKS OVERHEADS,MARKETING & PUBLICITY SERVICES,5902293776,1556957
11.03.2018,ENVIRONMENT DIRECTORATE,SOUTHWARK NEWSPAPER LTD,300,STREET WORKS OVERHEADS,MARKETING & PUBLICITY SERVICES,5902293774,1556957
11.03.2018,ENVIRONMENT DIRECTORATE,SOUTHWARK NEWSPAPER LTD,312,STREET WORKS OVERHEADS,MARKETING & PUBLICITY SERVICES,5902293730,1556957
11.03.2018,ENVIRONMENT DIRECTORATE,SOUTHWARK NEWSPAPER LTD,312,STREET WORKS OVERHEADS,MARKETING & PUBLICITY SERVICES,5902293744,1556957
11.03.2018,ENVIRONMENT DIRECTORATE,SOUTHWARK NEWSPAPER LTD,432,STREET WORKS OVERHEADS,MARKETING & PUBLICITY SERVICES,5902293728,1556957
11.03.2018,F & C S EXCLUDING CORPORATE BUDGETS,LONDON BRIDGE BUSINESS IMPROVEMENT,"96,541.46",TEAM LONDON BRIDGE,EXTERNAL AGENCIES AND BODIES,5902293302,1000050879
11.03.2018,LEISURE DIRECTORATE,HONOR OAK GROUP PRACTICE,"1,598.50",CREMATORIUM,PROFESSIONAL FEES,5902293107,1000047167
11.03.2018,LEISURE DIRECTORATE,HONOR OAK GROUP PRACTICE,"2,242.50",CREMATORIUM,PROFESSIONAL FEES,5902293104,1000047167
11.03.2018,SOUTHWARK BUILDING SERVICES,ACCLAIM HANDLING PLC,346.66,STORES/LOGISTICS,OP LEASE/HIRE CHARGES:PLANT/EQUIP/FURNIT,5902293407,1000008515
12.03.2018,ADULT SOCIAL CARE,SOUTHWARK CARERS,"91,233.90",BREAK FOR CARERS,EXTERNAL AGENCIES AND BODIES,5902294069,1050893
12.03.2018,ADULT SOCIAL CARE,CITY OF LONDON CORPORATION,"5,000.00",DIR OF ASC,SUBSCRIPTIONS,5902294036,1000052061
12.03.2018,ADULT SOCIAL CARE,BUDDI LTD,588,LD LTS 18-64,EXTERNAL AGENCIES AND BODIES,2102790523,1000067243
12.03.2018,ADULT SOCIAL CARE,CHOICE SUPPORT,734.8,LD LTS 18-64,HOMECARE - C&V,2102790510,1104183
12.03.2018,ADULT SOCIAL CARE,CHOICE SUPPORT,955.2,LD LTS 18-64,HOMECARE - SPOT,2102790506,1104183
12.03.2018,ADULT SOCIAL CARE,PEOPLEPLUS ILS,787.74,LD LTS 18-64,PAYMENTS TO CLIENTS (DIRECT PAYMENTS),2102790524,1000061886
12.03.2018,ADULT SOCIAL CARE,CHOICE SUPPORT,330.66,LD LTS 18-64,SUPPORTED LIVING,2102790497,1104183
12.03.2018,ADULT SOCIAL CARE,CHOICE SUPPORT,367.4,LD LTS 18-64,SUPPORTED LIVING,2102790496,1104183
12.03.2018,ADULT SOCIAL CARE,CHOICE SUPPORT,367.4,LD LTS 18-64,SUPPORTED LIVING,2102790504,1104183
12.03.2018,ADULT SOCIAL CARE,CHOICE SUPPORT,440.88,LD LTS 18-64,SUPPORTED LIVING,2102790494,1104183
12.03.2018,ADULT SOCIAL CARE,CHOICE SUPPORT,514.36,LD LTS 18-64,SUPPORTED LIVING,2102790516,1104183
12.03.2018,ADULT SOCIAL CARE,CHOICE SUPPORT,569.46,LD LTS 18-64,SUPPORTED LIVING,2102790508,1104183
12.03.2018,ADULT SOCIAL CARE,CHOICE SUPPORT,587.84,LD LTS 18-64,SUPPORTED LIVING,2102790493,1104183
12.03.2018,ADULT SOCIAL CARE,CHOICE SUPPORT,661.32,LD LTS 18-64,SUPPORTED LIVING,2102790505,1104183
12.03.2018,ADULT SOCIAL CARE,CHOICE SUPPORT,955.24,LD LTS 18-64,SUPPORTED LIVING,2102790507,1104183
12.03.2018,ADULT SOCIAL CARE,CHOICE SUPPORT,"1,102.20",LD LTS 18-64,SUPPORTED LIVING,2102790513,1104183
12.03.2018,ADULT SOCIAL CARE,CHOICE SUPPORT,440.88,LD LTS 65+,SUPPORTED LIVING,2102790509,1104183
12.03.2018,ADULT SOCIAL CARE,PEOPLEPLUS ILS,882.21,MEM LTS 18-64,PAYMENTS TO CLIENTS (DIRECT PAYMENTS),2102790519,1000061886
12.03.2018,ADULT SOCIAL CARE,KENT COUNTY COUNCIL - LASER,884.07,MH PREMISES COSTS,ELECTRICITY,5902294046,1000012926
12.03.2018,ADULT SOCIAL CARE,KENT COUNTY COUNCIL - LASER,"1,052.39",MH PREMISES COSTS,ELECTRICITY,5902294040,1000012926
12.03.2018,ADULT SOCIAL CARE,KENT COUNTY COUNCIL - LASER,"1,455.55",MH PREMISES COSTS,ELECTRICITY,5902294042,1000012926
12.03.2018,ADULT SOCIAL CARE,BUDDI LTD,724.8,PHY LTS 18-64,EXTERNAL AGENCIES AND BODIES,2102790517,1000067243
12.03.2018,ADULT SOCIAL CARE,BUDDI LTD,724.8,PHY LTS 18-64,EXTERNAL AGENCIES AND BODIES,2102790518,1000067243
12.03.2018,ADULT SOCIAL CARE,PEOPLEPLUS ILS,261.25,PHY LTS 18-64,PAYMENTS TO CLIENTS (DIRECT PAYMENTS),2102790522,1000061886
12.03.2018,ADULT SOCIAL CARE,SWK DISABLEMENT ASSN,420.87,PHY LTS 65+,HOMECARE - SPOT,2102790520,1000011698
12.03.2018,ADULT SOCIAL CARE,CHOICE SUPPORT,293.92,PHY LTS 65+,SUPPORTED LIVING,2102790498,1104183
12.03.2018,ADULT SOCIAL CARE,PEOPLEPLUS ILS,333.58,PLACEMENTS FOR CHILDREN WITH SPEC NEEDS,PAYMENTS TO CLIENTS (DIRECT PAYMENTS),2102790526,1000061886
12.03.2018,ADULT SOCIAL CARE,REDACTED PERSONAL DATA,370.97,PLACEMENTS FOR CHILDREN WITH SPEC NEEDS,PAYMENTS TO CLIENTS (DIRECT PAYMENTS),REDACTED,REDACTED
12.03.2018,ADULT SOCIAL CARE,REDACTED PERSONAL DATA,370.97,PLACEMENTS FOR CHILDREN WITH SPEC NEEDS,PAYMENTS TO CLIENTS (DIRECT PAYMENTS),REDACTED,REDACTED
12.03.2018,ADULT SOCIAL CARE,TURUN UK LTD,"1,120.79",SOUTHWARK RESOURCE CENTRE,EQUIPMENT PURCHASE & REPAIR,5902294029,1000073595
12.03.2018,ASSET MANAGEMENT,STANNAH LIFT SERVICES LTD,"6,206.00",ADAPTATIONS,BUILDING R&M,5902294077,1063595
12.03.2018,ASSET MANAGEMENT,CLARKE BARNES SOLICITORS LLP,"1,500.00",DISREPAIR,LEGAL FEES & COURT COSTS,2102790538,1000078090
12.03.2018,CHIEF EXECUTIVE,CONWAY AECOM LTD,"7,990.34",CAPITAL PS (REGEN),CONSTRUCTION,5902293994,1000071205
12.03.2018,CHIEF EXECUTIVE,BRAC CONTRACTS,"8,529.91",CAPITAL PS (REGEN),CONSTRUCTION FEES  - EXTERNAL,2102790472,3000002025
12.03.2018,CHIEF EXECUTIVE,CONWAY AECOM LTD,"54,979.33",CAPITAL PS (REGEN),CONSTRUCTION SUB CONTRACT -CERTIFICATED,2102790473,3000001595
12.03.2018,CHIEF EXECUTIVE'S OFFICE,RP2 LTD,960.85,BUSINESS SUPPORT,MARKETING & PUBLICITY SERVICES,5902294044,1000063096
12.03.2018,CHIEF EXECUTIVE'S OFFICE,SOUTH LONDON  MAUDSLEY NHS FOUNDATION TRUST,"26,656.88",CHIEF EXEC'S OFFICE,GRANTS,5902293970,1000018045
12.03.2018,CHILDREN AND ADULT,MORGAN SINDALL PLC,"780,231.64",CAPITAL PS (EDUCATION),CONSTRUCTION MAIN CONTRACT -CERTIFICATED,2102790467,3000001556
12.03.2018,CHILDREN'S SERVICES,ACTION FOR CHILDREN SERVICES LTD,"12,477.50",ACTION FOR CHILDREN - IV,EXTERNAL AGENCIES AND BODIES,5902293938,1000049984
12.03.2018,CHILDREN'S SERVICES,INTERSERVE HEALTHCARE,534.5,HOME 2 SCHOOL TRANSPORT,AGENCY STAFF,5902293291,1000049612
12.03.2018,CHILDREN'S SERVICES,REDACTED PERSONAL DATA,456,HOME 2 SCHOOL TRANSPORT,OTHER PAYMENTS FOR CLIENTS,REDACTED,REDACTED
12.03.2018,CHILDREN'S SERVICES,REDACTED PERSONAL DATA,860,HOME 2 SCHOOL TRANSPORT,OTHER PAYMENTS FOR CLIENTS,REDACTED,REDACTED
12.03.2018,CHILDREN'S SERVICES,MINI TREASURES NURSERY,"11,250.00",NURSERY ED GRANT 2 Y Y O,GRANTS,2102790534,1000062250
12.03.2018,CHILDREN'S SERVICES,MINI TREASURES NURSERY LTD,"23,625.00",NURSERY ED GRANT 2 Y Y O,GRANTS,2102790533,1000071834
12.03.2018,CHILDREN'S SERVICES,NICKI DAY NURSERY LTD,"1,071.00",NURSERY ED GRANT 3 Y Y.0.,GRANTS,2102790535,1000045363
12.03.2018,CHILDREN'S SERVICES,MINI TREASURES NURSERY,"19,373.40",NURSERY ED GRANT 3 Y Y.0.,GRANTS,2102790532,1000062250
12.03.2018,CHILDREN'S SERVICES,MINI TREASURES NURSERY LTD,"39,722.40",NURSERY ED GRANT 3 Y Y.0.,GRANTS,2102790531,1000071834
12.03.2018,CHILDREN'S SERVICES,HARRIS PRIMARY ACADEMY PECKHAM PARK,"14,994.00",NURSERY ED GRANT 3 Y Y.0.,GRANTS,2102790530,1000068029
12.03.2018,CHILDREN'S SERVICES,THE SALVATION ARMY,929.69,S24 CLA,EXTERNAL AGENCIES AND BODIES,5902294010,1000016253
12.03.2018,CHILDREN'S SERVICES,THE SALVATION ARMY,977.74,S24 CLA,EXTERNAL AGENCIES AND BODIES,5902294003,1000016253
12.03.2018,CHILDREN'S SERVICES,THE SALVATION ARMY,977.74,S24 CLA,EXTERNAL AGENCIES AND BODIES,5902294031,1000016253
12.03.2018,CHILDREN'S SERVICES,THE SALVATION ARMY,977.74,S24 CLA,EXTERNAL AGENCIES AND BODIES,5902294037,1000016253
12.03.2018,CHILDREN'S SERVICES,THE SALVATION ARMY,"1,019.59",S24 CLA,EXTERNAL AGENCIES AND BODIES,5902293999,1000016253
12.03.2018,CHILDREN'S SERVICES,RE CONSULTANT LTD,"3,500.00",SACRE,CONSULTANTS SERVICES,5902294000,1000076282
12.03.2018,CHILDREN'S SERVICES,PULSE HEALTHCARE LTD,-388.7,SEN TRANSPORT,STATEMENTED FEES,5902294363,1000035063
12.03.2018,CHILDREN'S SERVICES,PULSE HEALTHCARE LTD,388.7,SEN TRANSPORT,STATEMENTED FEES,5902294310,1000035063
12.03.2018,CHILDREN'S SERVICES,RS REAL ESTATE LTD,980,TEMPORARY ACCOMMODATION,EXTERNAL AGENCIES AND BODIES,5902293924,1000072485
